Workbook

Sheet Obsah
F2: 100
D4: B4 Základní vzdělávání, vývoj základních škol
D5: Zdroje dat jsou uvedeny v zápatí jednotlivých tabulek
D7: Text | F7: Obsah
D9: Tabulka 1 | F9: ='B4.1'!H4&" "&'B4.1'!D5 -> Povinná školní docházka – počet žáků, odpovídající věková populace ve školním roce 2008/09 až 2018/19
E10: Základní školy
D11: Tabulka 2 | F11: ='B4.2'!H4&" "&'B4.2'!D5 -> ZŠ – školy, třídy, žáci/dívky, učitelé ve školním roce 2008/09 až 2018/19 – podle zřizovatele
D13: Tabulka 3 | F13: ='B4.3'!H4&" "&'B4.3'!D5 -> ZŠ, 1. stupeň – školy, třídy, žáci/dívky, učitelé ve školním roce 2008/09 až 2018/19 – podle zřizovatele
D15: Tabulka 4 | F15: ='B4.4'!H4&" "&'B4.4'!D5 -> ZŠ, 2. stupeň – školy, třídy, žáci/dívky, učitelé ve školním roce 2008/09 až 2018/19 – podle zřizovatele
D17: Tabulka 5 | F17: ='B4.5'!H4&" "&'B4.5'!D5 -> ZŠ – školy ve školním roce 2008/09 až 2018/19 – podle počtu žáků
D19: Tabulka 6 | F19: ='B4.6'!H4&" "&'B4.6'!D5 -> ZŠ – nově přijatí do 1. ročníku, podíl na odpovídající věkové populaci – ve školním roce 2008/09 až 2018/19
D21: Tabulka 7 | F21: ='B4.7'!H4&" "&'B4.7'!D5 -> ZŠ – školy ve školním roce 2008/09 až 2018/19 – podle území
D23: Tabulka 8 | F23: ='B4.8'!H4&" "&'B4.8'!D5 -> ZŠ, 1. stupeň – žáci ve školním roce 2008/09 až 2018/19 – podle území
D25: Tabulka 9 | F25: ='B4.9'!H4&" "&'B4.9'!D5 -> ZŠ, 2. stupeň – žáci ve školním roce 2008/09 až 2018/19 – podle území
D27: Tabulka 10 | F27: ='B4.10'!H4&" "&'B4.10'!D5 -> ZŠ – zdravotně postižení a znevýhodnění žáci ve školním roce 2008/09 až 2018/19
D29: Tabulka 11 | F29: ='B4.11'!H4&" "&'B4.11'!D5 -> Základní vzdělávání – výdaje na základní vzdělávání, školní družiny a kluby v letech 2008 až 2018
D31: Tabulka 12 | F31: ='B4.12'!H4&" "&'B4.12'!D5 -> Základní školy – struktura učitelů v letech 2011 až 2018 – podle nejvyššího dosaženého vzdělání
D33: Tabulka 13 | F33: ='B4.13'!H4&" "&'B4.13'!D5 -> Základní školy – struktura učitelů v letech 2011 až 2018 – podle věku
D35: Tabulka 14 | F35: ='B4.14'!H4&" "&'B4.14'!D5 -> ZŠ – přepočtené počty zaměstnanců v letech 2008 až 2018
D37: Tabulka 15 | F37: ='B4.15'!H4&" "&'B4.15'!D5 -> ZŠ – průměrné měsíční mzdy zaměstnanců v letech 2008 až 2018
D39: Tabulka 16 | F39: ='B4.16'!H4&" "&'B4.16'!D5 -> ZŠ – žáci, kteří odešli ze základní školy ve školním roce 2008/09 až 2018/19
D41: Tabulka 17 | F41: ='B4.17'!H4&" "&'B4.17'!D5 -> ZŠ – žáci – podle ročníků ve školním roce 2008/09 až 2018/19
D43: Tabulka 18 | F43: ='B4.18'!$H$4&" "&'B4.18'!$D$5 -> ZŠ – žáci opakující ročník ve školním roce 2008/09 až 2018/19
D45: Tabulka 19 | F45: ='B4.19'!H4&" "&'B4.19'!D5 -> Zápisy do 1. ročníku základního vzdělávání v letech 2008 až 2018 – podle výsledku zápisu
D47: Tabulka 20 | F47: ='B4.20'!H4&" "&'B4.20'!D5 -> Zápisy do 1. ročníku základního vzdělávání v letech 2008 až 2018 – podle věku
D49: Tabulka 21 | F49: ='B4.21'!H4&" "&'B4.21'!D5 -> ZŠ – žáci plnící školní docházku podle § 38, § 41 a § 42 školského zákona ve školním roce 2008/09 až 2018/19 – podle ročníků
D51: Tabulka 22 | F51: ='B4.22'!$H$4&" "&'B4.22'!$D$5 -> ZŠ – žáci s individuálními vzdělávacími plány ve školním roce 2008/09 až 2018/19 – podle ročníků
E52: Obrazová příloha
D54: Graf 1 | F54: ='GB1'!$H$4&" "&'GB1'!$D$5 -> Povinná školní docházka – počty žáků na pozadí odpovídající věkové populace 6–14letých ve školním roce 2008/09 až 2018/19
D56: Graf 2 | F56: ='GB2'!$H$4&" "&'GB2'!$D$5 -> ZŠ – struktura škol ve školním roce 2008/09 až 2018/19 – podle počtu žáků
D58: Graf 3 | F58: ='GB3'!$G$4&" "&'GB3'!$D$5 -> ZŠ – školy, třídy, žáci, učitelé (přepočtené počty) – poměrové ukazatele v letech 2008/09 až 2018/19
D60: Graf 4 | F60: ='GB4'!$H$4&" "&'GB4'!$D$5 -> ZŠ – všichni zřizovatelé – průměrné přepočtené počty zaměstnanců a učitelů, průměrné měsíční nominální a reálné mzdy v letech 2008 až 2018

Sheet B4.1
D4: Tab. B4.1: | H4: Povinná školní docházka – počet žáků, odpovídající věková populace
D5: ve školním roce 2008/09 až 2018/19
J7: 2003/04 | K7: 2004/05 | L7: 2005/06 | M7: 2006/07 | N7: 2007/08 | O7: 2008/09 | P7: 2009/10 | Q7: 2010/11 | R7: 2011/12 | S7: 2012/13 | T7: 2013/14 | U7: 2014/15 | V7: 2015/16 | W7: 2016/17 | X7: 2017/18 | Y7: 2018/19
J11: 1) | K11: 1)
E12: Povinná školní docházka – žáci celkem | J12: 1040612 | K12: 1001096 | L12: 960034 | M12: 919800 | N12: 888000 | O12: 858627 | P12: 836372 | Q12: 830908 | R12: 835796 | S12: 848755 | T12: 868324 | U12: 894815 | V12: 921054 | W12: 947168 | X12: 967717 | Y12: 982878
E13: v tom | F13: žáci základních škol | J13: 998026 | K13: 958203 | L13: 916575 | M13: 876513 | N13: 844863 | O13: 816015 | P13: 794459 | Q13: 789486 | R13: 794642 | S13: 807950 | T13: 827654 | U13: 854137 | V13: 880251 | W13: 906188 | X13: 926108 | Y13: 940928
F14: v tom | G14: 1. stupeň | J14: . | K14: . | L14: 473269 | M14: 462820 | N14: 458046 | O14: 458198 | P14: 460754 | Q14: 465380 | R14: 474327 | S14: 488106 | T14: 505983 | U14: 529604 | V14: 551428 | W14: 568966 | X14: 575699 | Y14: 573442
G15: 2. stupeň | J15: . | K15: . | L15: 443306 | M15: 413693 | N15: 386817 | O15: 357817 | P15: 333705 | Q15: 324106 | R15: 320315 | S15: 319844 | T15: 321671 | U15: 324533 | V15: 328823 | W15: 337222 | X15: 350409 | Y15: 367486
F16: žáci SŠ a konzervatoří – ročníky odpovídající 6.–9. roč. ZŠ | J16: 42586 | K16: 42893 | L16: 43459 | M16: 43287 | N16: 43137 | O16: 42612 | P16: 41913 | Q16: 41422 | R16: 41154 | S16: 40805 | T16: 40670 | U16: 40678 | V16: 40803 | W16: 40980 | X16: 41609 | Y16: 41950
E17: Odpovídající věková populace 6–14letých | J17: 1009311 | K17: 972932 | L17: 932667 | M17: 894248 | N17: 867082 | O17: 842030 | P17: 831034 | Q17: 834721 | R17: 841785 | S17: 860211 | T17: 888233 | U17: 922461 | V17: 953677 | W17: 982626 | X17: 999745 | Y17: 1016541
E18: Podíl žáků plnících povinnou šk. docházku na populaci 6–14letých | J18: =J12/J17 -> 1.031012245 | K18: =K12/K17 -> 1.028947552 | L18: 1.029342734 | M18: 1.028573729 | N18: 1.024124593 | O18: 1.019710699 | P18: 1.006423323 | Q18: 0.9954320066 | R18: 0.9928853567 | S18: 0.9866823372 | T18: 0.9775858361 | U18: 0.9700301693 | V18: 0.9657924014 | W18: 0.9639150603 | X18: 0.9679638308 | Y18: 0.9668847592
Y19: Zdroj: databáze MŠMT, ČSÚ
H28: ;

Sheet B4.2
D4: Tab. B4.2: | H4: ZŠ – školy, třídy, žáci/dívky, učitelé
B5: 0 | D5: ve školním roce 2008/09 až 2018/19 – podle zřizovatele
D7: Zřizovatel | J7: 2003/04 | K7: 2004/05 | L7: 2005/06 | M7: 2006/07 | N7: 2007/08 | O7: 2008/09 | P7: 2009/10 | Q7: 2010/11 | R7: 2011/12 | S7: 2012/13 | T7: 2013/14 | U7: 2014/15 | V7: 2015/16 | W7: 2016/17 | X7: 2017/18 | Y7: 2018/19
J11: 1) | K11: 1)
D12: Školy
E13: Celkem | J13: 4838 | K13: 4765 | L13: 4474 | M13: 4197 | N13: 4155 | O13: 4133 | P13: 4125 | Q13: 4123 | R13: 4111 | S13: 4095 | T13: 4095 | U13: 4106 | V13: 4115 | W13: 4140 | X13: 4155 | Y13: 4172
E14: v tom | F14: veřejný | J14: 4704 | K14: 4630 | L14: 4358 | M14: 4100 | N14: 4057 | O14: 4025 | P14: 4013 | Q14: 4003 | R14: 3984 | S14: 3962 | T14: 3948 | U14: 3939 | V14: 3927 | W14: 3915 | X14: 3914 | Y14: 3911
F15: v tom | G15: MŠMT | J15: 77 | K15: 79 | L15: 74 | M15: 48 | N15: 48 | O15: 49 | P15: 49 | Q15: 51 | R15: 48 | S15: 46 | T15: 45 | U15: 45 | V15: 44 | W15: 43 | X15: 44 | Y15: 44
G16: obec | J16: 3938 | K16: 3851 | L16: 3785 | M16: 3728 | N16: 3700 | O16: 3674 | P16: 3665 | Q16: 3655 | R16: 3645 | S16: 3634 | T16: 3628 | U16: 3624 | V16: 3620 | W16: 3615 | X16: 3619 | Y16: 3618
G17: jiný resort | J17: 0 | K17: 0 | L17: 0 | M17: 0 | N17: 0 | O17: 0 | P17: 0 | Q17: 0 | R17: 0 | S17: 0 | T17: 0 | U17: 0 | V17: 0 | W17: 0 | X17: 0 | Y17: 0
G18: kraj | J18: 689 | K18: 700 | L18: 499 | M18: 324 | N18: 309 | O18: 302 | P18: 299 | Q18: 297 | R18: 291 | S18: 282 | T18: 275 | U18: 270 | V18: 263 | W18: 257 | X18: 251 | Y18: 249
F19: privátní sektor | J19: 92 | K19: 92 | L19: 80 | M19: 61 | N19: 62 | O19: 68 | P19: 72 | Q19: 80 | R19: 85 | S19: 91 | T19: 105 | U19: 124 | V19: 145 | W19: 180 | X19: 196 | Y19: 215
F20: církev | J20: 42 | K20: 43 | L20: 36 | M20: 36 | N20: 36 | O20: 40 | P20: 40 | Q20: 40 | R20: 42 | S20: 42 | T20: 42 | U20: 43 | V20: 43 | W20: 45 | X20: 45 | Y20: 46
D21: Třídy
E22: Celkem | J22: 49740 | K22: 47620 | L22: 45769 | M22: 44527 | N22: 43433 | O22: 42498 | P22: 41941 | Q22: 41720 | R22: 42105 | S22: 41739 | T22: 42334 | U22: 43259 | V22: 44091 | W22: 45116 | X22: 46023 | Y22: 46774
E23: v tom | F23: veřejný | J23: 49056 | K23: 46924 | L23: 45064 | M23: 43785 | N23: 42672 | O23: 41682 | P23: 41090 | Q23: 40828 | R23: 41150 | S23: 40760 | T23: 41287 | U23: 42089 | V23: 42831 | W23: 43691 | X23: 44454 | Y23: 45032
F24: v tom | G24: MŠMT | J24: 247 | K24: 263 | L24: 259 | M24: 281 | N24: 273 | O24: 273 | P24: 273 | Q24: 270 | R24: 280 | S24: 240 | T24: 245 | U24: 242 | V24: 248 | W24: 260 | X24: 243 | Y24: 250
G25: obec | J25: 45017 | K25: 42965 | L25: 41672 | M25: 40454 | N25: 39422 | O25: 38487 | P25: 37958 | Q25: 37796 | R25: 38095 | S25: 37967 | T25: 38571 | U25: 39432 | V25: 40261 | W25: 41170 | X25: 41980 | Y25: 42531
G26: jiný resort | J26: 0 | K26: 0 | L26: 0 | M26: 0 | N26: 0 | O26: 0 | P26: 0 | Q26: 0 | R26: 0 | S26: 0 | T26: 0 | U26: 0 | V26: 0 | W26: 0 | X26: 0 | Y26: 0
G27: kraj | J27: 3792 | K27: 3696 | L27: 3133 | M27: 3050 | N27: 2977 | O27: 2922 | P27: 2859 | Q27: 2762 | R27: 2775 | S27: 2553 | T27: 2471 | U27: 2415 | V27: 2322 | W27: 2261 | X27: 2231 | Y27: 2251
F28: privátní sektor | J28: 416 | K28: 418 | L28: 424 | M28: 447 | N28: 454 | O28: 482 | P28: 514 | Q28: 549 | R28: 586 | S28: 599 | T28: 650 | U28: 764 | V28: 843 | W28: 988 | X28: 1125 | Y28: 1293
F29: církev | J29: 268 | K29: 278 | L29: 281 | M29: 295 | N29: 307 | O29: 334 | P29: 337 | Q29: 343 | R29: 369 | S29: 380 | T29: 397 | U29: 406 | V29: 417 | W29: 437 | X29: 444 | Y29: 449
D30: Žáci
E31: Celkem | J31: 998026 | K31: 958203 | L31: 916575 | M31: 876513 | N31: 844863 | O31: 816015 | P31: 794459 | Q31: 789486 | R31: 794642 | S31: 807950 | T31: 827654 | U31: 854137 | V31: 880251 | W31: 906188 | X31: 926108 | Y31: 940928
E32: v tom | F32: veřejný | J32: 988847 | K32: 948893 | L32: 907257 | M32: 866951 | N32: 835104 | O32: 805526 | P32: 783542 | Q32: 778096 | R32: 782625 | S32: 795210 | T32: 813940 | U32: 839019 | V32: 863613 | W32: 887347 | X32: 905245 | Y32: 917851
F33: v tom | G33: MŠMT | J33: 1602 | K33: 1572 | L33: 1522 | M33: 1522 | N33: 1547 | O33: 1601 | P33: 1622 | Q33: 1540 | R33: 1464 | S33: 1344 | T33: 1315 | U33: 1334 | V33: 1453 | W33: 1468 | X33: 1460 | Y33: 1560
G34: obec | J34: 954333 | K34: 915456 | L34: 879090 | M34: 839736 | N34: 808850 | O34: 779799 | P34: 758272 | Q34: 754212 | R34: 759597 | S34: 773528 | T34: 792805 | U34: 818260 | V34: 843221 | W34: 867596 | X34: 885952 | Y34: 898282
G35: jiný resort | J35: 0 | K35: 0 | L35: 0 | M35: 0 | N35: 0 | O35: 0 | P35: 0 | Q35: 0 | R35: 0 | S35: 0 | T35: 0 | U35: 0 | V35: 0 | W35: 0 | X35: 0 | Y35: 0
G36: kraj | J36: 32912 | K36: 31865 | L36: 26645 | M36: 25693 | N36: 24707 | O36: 24126 | P36: 23648 | Q36: 22344 | R36: 21564 | S36: 20338 | T36: 19820 | U36: 19425 | V36: 18939 | W36: 18283 | X36: 17833 | Y36: 18009
F37: privátní sektor | J37: 4578 | K37: 4565 | L37: 4647 | M37: 4842 | N37: 5007 | O37: 5289 | P37: 5710 | Q37: 6129 | R37: 6542 | S37: 7017 | T37: 7731 | U37: 8805 | V37: 10057 | W37: 11949 | X37: 13702 | Y37: 15753
F38: církev | J38: 4601 | K38: 4745 | L38: 4671 | M38: 4720 | N38: 4752 | O38: 5200 | P38: 5207 | Q38: 5261 | R38: 5475 | S38: 5723 | T38: 5983 | U38: 6313 | V38: 6581 | W38: 6892 | X38: 7161 | Y38: 7324
E39: Z toho dívky | J39: 482082 | K39: 462728 | L39: 442206 | M39: 422041 | N39: 406776 | O39: 392745 | P39: 382748 | Q39: 381028 | R39: 384212 | S39: 391115 | T39: 400894 | U39: 414331 | V39: 427435 | W39: 440240 | X39: 449654 | Y39: 456757
E40: v tom | F40: veřejný | J40: 477949 | K40: 458460 | L40: 437950 | M40: 417735 | N40: 402428 | O40: 388040 | P40: 377844 | Q40: 375871 | R40: 378749 | S40: 385334 | T40: 394707 | U40: 407424 | V40: 419836 | W40: 431543 | X40: 440012 | Y40: 445992
F41: v tom | G41: MŠMT | J41: 488 | K41: 493 | L41: 472 | M41: 472 | N41: 465 | O41: 521 | P41: 516 | Q41: 463 | R41: 448 | S41: 402 | T41: 380 | U41: 388 | V41: 457 | W41: 470 | X41: 474 | Y41: 480
G42: obec | J42: 463892 | K42: 444908 | L42: 426961 | M42: 407208 | N42: 392394 | O42: 378237 | P42: 368225 | Q42: 366767 | R42: 369999 | S42: 377153 | T42: 386819 | U42: 399680 | V42: 412161 | W42: 424177 | X42: 432891 | Y42: 438840
G43: jiný resort | J43: 0 | K43: 0 | L43: 0 | M43: 0 | N43: 0 | O43: 0 | P43: 0 | Q43: 0 | R43: 0 | S43: 0 | T43: 0 | U43: 0 | V43: 0 | W43: 0 | X43: 0 | Y43: 0
G44: kraj | J44: 13569 | K44: 13059 | L44: 10517 | M44: 10055 | N44: 9569 | O44: 9282 | P44: 9103 | Q44: 8641 | R44: 8302 | S44: 7779 | T44: 7508 | U44: 7356 | V44: 7218 | W44: 6896 | X44: 6647 | Y44: 6672
F45: privátní sektor | J45: 1888 | K45: 1938 | L45: 1982 | M45: 2024 | N45: 2095 | O45: 2209 | P45: 2390 | Q45: 2600 | R45: 2789 | S45: 3005 | T45: 3298 | U45: 3850 | V45: 4448 | W45: 5337 | X45: 6175 | Y45: 7233
F46: církev | J46: 2245 | K46: 2330 | L46: 2274 | M46: 2282 | N46: 2253 | O46: 2496 | P46: 2514 | Q46: 2557 | R46: 2674 | S46: 2776 | T46: 2889 | U46: 3057 | V46: 3151 | W46: 3360 | X46: 3467 | Y46: 3532
D47: Učitelé
E48: Celkem (přepočtené počty) | J48: . | K48: . | L48: 63157.6 | M48: 62657.6 | N48: 60973.2 | O48: 59492.3 | P48: 58417.3 | Q48: 58023 | R48: 57814.8 | S48: 57668.9 | T48: 58269.1 | U48: 59128.7 | V48: 60220.7 | W48: 61634.9 | X48: 63004.8 | Y48: 64345.3
E49: v tom | F49: veřejný | J49: . | K49: . | L49: 62189.8 | M49: 61630.4 | N49: 59932.5 | O49: 58368.4 | P49: 57268.9 | Q49: 56837.7 | R49: 56561.6 | S49: 56359 | T49: 56885.8 | U49: 57641.1 | V49: 58593.7 | W49: 59798.7 | X49: 61006.8 | Y49: 62152.5
F50: v tom | G50: MŠMT | J50: . | K50: . | L50: 371.9 | M50: 382.5 | N50: 391.6 | O50: 396.4 | P50: 392.2 | Q50: 392.5 | R50: 380.9 | S50: 391.6 | T50: 382.6 | U50: 371.1 | V50: 377.9 | W50: 375.9 | X50: 389.8 | Y50: 389.4
G51: obec | J51: . | K51: . | L51: 57055.8 | M51: 56553.6 | N51: 54956.1 | O51: 53488.1 | P51: 52566.1 | Q51: 52279 | R51: 52181.1 | S51: 52161.9 | T51: 52825.1 | U51: 53737.9 | V51: 54803 | W51: 56092.8 | X51: 57360.7 | Y51: 58474.4
G52: jiný resort | J52: . | K52: . | L52: 0 | M52: 0 | N52: 0 | O52: 0 | P52: 0 | Q52: 0 | R52: 0 | S52: 0 | T52: 0 | U52: 0 | V52: 0 | W52: 0 | X52: 0 | Y52: 0
G53: kraj | J53: . | K53: . | L53: 4762.1 | M53: 4694.3 | N53: 4584.8 | O53: 4483.9 | P53: 4310.6 | Q53: 4166.2 | R53: 3999.6 | S53: 3805.5 | T53: 3678.1 | U53: 3532.1 | V53: 3412.8 | W53: 3330 | X53: 3256.3 | Y53: 3288.7
F54: privátní sektor | J54: . | K54: . | L54: 569.6 | M54: 601.3 | N54: 603.9 | O54: 647.9 | P54: 693 | Q54: 730.3 | R54: 769 | S54: 821.6 | T54: 875.6 | U54: 969.6 | V54: 1084.1 | W54: 1276.7 | X54: 1415.1 | Y54: 1590.6
F55: církev | J55: . | K55: . | L55: 398.2 | M55: 425.9 | N55: 436.8 | O55: 476 | P55: 455.4 | Q55: 455 | R55: 484.2 | S55: 488.3 | T55: 507.7 | U55: 518 | V55: 542.9 | W55: 559.5 | X55: 582.9 | Y55: 602.2
E56: Z toho ženy (přepočtené počty) | J56: . | K56: . | L56: 52712.7 | M56: 52264.4 | N56: 50967.3 | O56: 49912.6 | P56: 48997.6 | Q56: 48803.7 | R56: 48738 | S56: 48581.3 | T56: 49118.9 | U56: 49934.2 | V56: 50876.5 | W56: 52254.4 | X56: 53346.7 | Y56: 54400.9
E57: v tom | F57: veřejný | J57: . | K57: . | L57: 51906.7 | M57: 51416.8 | N57: 50106.5 | O57: 48985.1 | P57: 48061.7 | Q57: 47830.4 | R57: 47706.5 | S57: 47509.7 | T57: 47978.8 | U57: 48713.3 | V57: 49543.1 | W57: 50748 | X57: 51697.4 | Y57: 52629.8
F58: v tom | G58: MŠMT | J58: . | K58: . | L58: 238.9 | M58: 247.9 | N58: 256 | O58: 256.7 | P58: 257.7 | Q58: 267.5 | R58: 253.2 | S58: 270.2 | T58: 264.8 | U58: 256.5 | V58: 264.6 | W58: 267.1 | X58: 279.1 | Y58: 278.6
G59: obec | J59: . | K59: . | L59: 47628.6 | M59: 47181.7 | N59: 45957.4 | O59: 44910.7 | P59: 44141.4 | Q59: 44010.8 | R59: 44019.2 | S59: 43985.8 | T59: 44568.2 | U59: 45406.8 | V59: 46334.5 | W59: 47591.3 | X59: 48581.9 | Y59: 49493.5
G60: jiný resort | J60: . | K60: . | L60: 0 | M60: 0 | N60: 0 | O60: 0 | P60: 0 | Q60: 0 | R60: 0 | S60: 0 | T60: 0 | U60: 0 | V60: 0 | W60: 0 | X60: 0 | Y60: 0
G61: kraj | J61: . | K61: . | L61: 4039.2 | M61: 3987.2 | N61: 3893.1 | O61: 3817.7 | P61: 3662.6 | Q61: 3552.1 | R61: 3434.1 | S61: 3253.7 | T61: 3145.8 | U61: 3050 | V61: 2944 | W61: 2889.6 | X61: 2836.4 | Y61: 2857.7
F62: privátní sektor | J62: . | K62: . | L62: 478.8 | M62: 492.6 | N62: 500.5 | O62: 538.9 | P62: 566.8 | Q62: 606.6 | R62: 640.1 | S62: 668 | T62: 718.5 | U62: 797.1 | V62: 880.3 | W62: 1038.9 | X62: 1158.8 | Y62: 1280.6
F63: církev | J63: . | K63: . | L63: 327.2 | M63: 355 | N63: 360.3 | O63: 388.6 | P63: 369.1 | Q63: 366.7 | R63: 391.4 | S63: 403.6 | T63: 421.6 | U63: 423.8 | V63: 453.1 | W63: 467.5 | X63: 490.5 | Y63: 490.5
Y64: Zdroj: databáze MŠMT

Sheet B4.3
D4: Tab. B4.3: | H4: ZŠ, 1. stupeň – školy, třídy, žáci/dívky, učitelé
B5: 24 | D5: ve školním roce 2008/09 až 2018/19 – podle zřizovatele
D7: Zřizovatel | J7: 2003/04 | K7: 2004/05 | L7: 2005/06 | M7: 2006/07 | N7: 2007/08 | O7: 2008/09 | P7: 2009/10 | Q7: 2010/11 | R7: 2011/12 | S7: 2012/13 | T7: 2013/14 | U7: 2014/15 | V7: 2015/16 | W7: 2016/17 | X7: 2017/18 | Y7: 2018//19
J11: 1) | K11: 1)
D12: Školy
E13: Celkem | J13: . | K13: . | L13: 4435 | M13: 4173 | N13: 4132 | O13: 4108 | P13: 4098 | Q13: 4096 | R13: 4089 | S13: 4074 | T13: 4074 | U13: 4085 | V13: 4098 | W13: 4125 | X13: 4139 | Y13: 4156
E14: v tom | F14: veřejný | J14: . | K14: . | L14: 4319 | M14: 4075 | N14: 4034 | O14: 4001 | P14: 3987 | Q14: 3977 | R14: 3963 | S14: 3942 | T14: 3929 | U14: 3919 | V14: 3913 | W14: 3902 | X14: 3900 | Y14: 3897
F15: v tom | G15: MŠMT | J15: . | K15: . | L15: 46 | M15: 28 | N15: 30 | O15: 29 | P15: 27 | Q15: 29 | R15: 32 | S15: 29 | T15: 29 | U15: 29 | V15: 33 | W15: 33 | X15: 33 | Y15: 33
G16: obec | J16: . | K16: . | L16: 3780 | M16: 3724 | N16: 3697 | O16: 3671 | P16: 3662 | Q16: 3652 | R16: 3642 | S16: 3632 | T16: 3626 | U16: 3622 | V16: 3618 | W16: 3613 | X16: 3617 | Y16: 3616
G17: jiný resort | J17: . | K17: . | L17: 0 | M17: 0 | N17: 0 | O17: 0 | P17: 0 | Q17: 0 | R17: 0 | S17: 0 | T17: 0 | U17: 0 | V17: 0 | W17: 0 | X17: 0 | Y17: 0
G18: kraj | J18: . | K18: . | L18: 493 | M18: 323 | N18: 307 | O18: 301 | P18: 298 | Q18: 296 | R18: 289 | S18: 281 | T18: 274 | U18: 268 | V18: 262 | W18: 256 | X18: 250 | Y18: 248
F19: privátní sektor | J19: . | K19: . | L19: 80 | M19: 62 | N19: 62 | O19: 68 | P19: 72 | Q19: 80 | R19: 85 | S19: 91 | T19: 104 | U19: 124 | V19: 144 | W19: 180 | X19: 196 | Y19: 215
F20: církev | J20: . | K20: . | L20: 36 | M20: 36 | N20: 36 | O20: 39 | P20: 39 | Q20: 39 | R20: 41 | S20: 41 | T20: 41 | U20: 42 | V20: 41 | W20: 43 | X20: 43 | Y20: 44
D21: Třídy
E22: Celkem | J22: . | K22: . | L22: 24890 | M22: 24566 | N22: 24324 | O22: 24325 | P22: 24521 | Q22: 24703 | R22: 25277 | S22: 25187 | T22: 25764 | U22: 26663 | V22: 27465 | W22: 28222 | X22: 28624 | Y22: 28759
E23: v tom | F23: veřejný | J23: . | K23: . | L23: 24463 | M23: 24109 | N23: 23853 | O23: 23808 | P23: 23987 | Q23: 24137 | R23: 24658 | S23: 24549 | T23: 25069 | U23: 25878 | V23: 26607 | W23: 27242 | X23: 27536 | Y23: 27580
F24: v tom | G24: MŠMT | J24: . | K24: . | L24: 81 | M24: 87 | N24: 83 | O24: 76 | P24: 85 | Q24: 81 | R24: 98 | S24: 83 | T24: 84 | U24: 91 | V24: 92 | W24: 104 | X24: 96 | Y24: 96
G25: obec | J25: . | K25: . | L25: 22859 | M25: 22550 | N25: 22359 | O25: 22341 | P25: 22510 | Q25: 22703 | R25: 23186 | S25: 23216 | T25: 23773 | U25: 24560 | V25: 25276 | W25: 25881 | X25: 26192 | Y25: 26200
G26: jiný resort | J26: . | K26: . | L26: 0 | M26: 0 | N26: 0 | O26: 0 | P26: 0 | Q26: 0 | R26: 0 | S26: 0 | T26: 0 | U26: 0 | V26: 0 | W26: 0 | X26: 0 | Y26: 0
G27: kraj | J27: . | K27: . | L27: 1523 | M27: 1472 | N27: 1411 | O27: 1391 | P27: 1392 | Q27: 1353 | R27: 1374 | S27: 1250 | T27: 1212 | U27: 1227 | V27: 1239 | W27: 1257 | X27: 1248 | Y27: 1284
F28: privátní sektor | J28: . | K28: . | L28: 257 | M28: 278 | N28: 284 | O28: 313 | P28: 328 | Q28: 362 | R28: 396 | S28: 410 | T28: 450 | U28: 530 | V28: 602 | W28: 714 | X28: 814 | Y28: 910
F29: církev | J29: . | K29: . | L29: 170 | M29: 179 | N29: 187 | O29: 204 | P29: 206 | Q29: 204 | R29: 223 | S29: 228 | T29: 245 | U29: 255 | V29: 256 | W29: 266 | X29: 274 | Y29: 269
D30: Žáci
E31: Celkem | J31: . | K31: . | L31: 473269 | M31: 462820 | N31: 458046 | O31: 458198 | P31: 460754 | Q31: 465380 | R31: 474327 | S31: 488106 | T31: 505983 | U31: 529604 | V31: 551428 | W31: 568966 | X31: 575699 | Y31: 573442
E32: v tom | F32: veřejný | J32: . | K32: . | L32: 467658 | M32: 456985 | N32: 451981 | O32: 451615 | P32: 453823 | Q32: 458010 | R32: 466510 | S32: 479686 | T32: 496706 | U32: 519235 | V32: 539874 | W32: 555679 | X32: 561071 | Y32: 557448
F33: v tom | G33: MŠMT | J33: . | K33: . | L33: 468 | M33: 494 | N33: 491 | O33: 481 | P33: 506 | Q33: 516 | R33: 541 | S33: 519 | T33: 523 | U33: 540 | V33: 583 | W33: 607 | X33: 599 | Y33: 635
G34: obec | J34: . | K34: . | L34: 455471 | M34: 445202 | N34: 440661 | O34: 440419 | P34: 442535 | Q34: 447209 | R34: 456114 | S34: 469793 | T34: 487022 | U34: 509344 | V34: 529727 | W34: 545590 | X34: 551155 | Y34: 547304
G35: jiný resort | J35: . | K35: . | L35: 0 | M35: 0 | N35: 0 | O35: 0 | P35: 0 | Q35: 0 | R35: 0 | S35: 0 | T35: 0 | U35: 0 | V35: 0 | W35: 0 | X35: 0 | Y35: 0
G36: kraj | J36: . | K36: . | L36: 11719 | M36: 11289 | N36: 10829 | O36: 10715 | P36: 10782 | Q36: 10285 | R36: 9855 | S36: 9374 | T36: 9161 | U36: 9351 | V36: 9564 | W36: 9482 | X36: 9317 | Y36: 9509
F37: privátní sektor | J37: . | K37: . | L37: 2911 | M37: 3083 | N37: 3247 | O37: 3524 | P37: 3858 | Q37: 4264 | R37: 4585 | S37: 5016 | T37: 5646 | U37: 6480 | V37: 7562 | W37: 9099 | X37: 10376 | Y37: 11754
F38: církev | J38: . | K38: . | L38: 2700 | M38: 2752 | N38: 2818 | O38: 3059 | P38: 3073 | Q38: 3106 | R38: 3232 | S38: 3404 | T38: 3631 | U38: 3889 | V38: 3992 | W38: 4188 | X38: 4252 | Y38: 4240
E39: Z toho dívky | J39: . | K39: . | L39: 229244 | M39: 224264 | N39: 221913 | O39: 222245 | P39: 223589 | Q39: 225831 | R39: 230709 | S39: 237601 | T39: 246310 | U39: 258230 | V39: 269136 | W39: 277730 | X39: 281087 | Y39: 279721
E40: v tom | F40: veřejný | J40: . | K40: . | L40: 226661 | M40: 221597 | N40: 219173 | O40: 219239 | P40: 220411 | Q40: 222444 | R40: 227131 | S40: 233757 | T40: 242106 | U40: 253430 | V40: 263771 | W40: 271508 | X40: 274246 | Y40: 272172
F41: v tom | G41: MŠMT | J41: . | K41: . | L41: 155 | M41: 169 | N41: 162 | O41: 167 | P41: 169 | Q41: 155 | R41: 160 | S41: 157 | T41: 159 | U41: 158 | V41: 177 | W41: 190 | X41: 187 | Y41: 173
G42: obec | J42: . | K42: . | L42: 221944 | M42: 217057 | N42: 214856 | O42: 214953 | P42: 216093 | Q42: 218357 | R42: 223220 | S42: 230080 | T42: 238593 | U42: 249823 | V42: 260078 | W42: 267847 | X42: 270715 | Y42: 268592
G43: jiný resort | J43: . | K43: . | L43: 0 | M43: 0 | N43: 0 | O43: 0 | P43: 0 | Q43: 0 | R43: 0 | S43: 0 | T43: 0 | U43: 0 | V43: 0 | W43: 0 | X43: 0 | Y43: 0
G44: kraj | J44: . | K44: . | L44: 4562 | M44: 4371 | N44: 4155 | O44: 4119 | P44: 4149 | Q44: 3932 | R44: 3751 | S44: 3520 | T44: 3354 | U44: 3449 | V44: 3516 | W44: 3471 | X44: 3344 | Y44: 3407
F45: privátní sektor | J45: . | K45: . | L45: 1303 | M45: 1344 | N45: 1405 | O45: 1510 | P45: 1662 | Q45: 1863 | R45: 1994 | S45: 2188 | T45: 2459 | U45: 2920 | V45: 3444 | W45: 4185 | X45: 4768 | Y45: 5511
F46: církev | J46: . | K46: . | L46: 1280 | M46: 1323 | N46: 1335 | O46: 1496 | P46: 1516 | Q46: 1524 | R46: 1584 | S46: 1656 | T46: 1745 | U46: 1880 | V46: 1921 | W46: 2037 | X46: 2073 | Y46: 2038
D47: Učitelé (přepočtené počty)
E48: Celkem | J48: . | K48: . | L48: 27586 | M48: 27727.1 | N48: 27520 | O48: 27529.2 | P48: 27634.9 | Q48: 27796 | R48: 28114.6 | S48: 28374.9 | T48: 29025.1 | U48: 29888.3 | V48: 30829 | W48: 31827.9 | X48: 32452.3 | Y48: 32829.7
E49: v tom | F49: veřejný | J49: . | K49: . | L49: 27069.5 | M49: 27171.3 | N49: 26946 | O49: 26911.8 | P49: 27001.1 | Q49: 27127.1 | R49: 27412 | S49: 27622.9 | T49: 28214.6 | U49: 28994.1 | V49: 29854.5 | W49: 30692.7 | X49: 31221.7 | Y49: 31477.2
F50: v tom | G50: MŠMT | J50: . | K50: . | L50: 105.5 | M50: 98.8 | N50: 93 | O50: 93.5 | P50: 94.7 | Q50: 99.1 | R50: 92.2 | S50: 103 | T50: 110 | U50: 112.5 | V50: 117.7 | W50: 121.7 | X50: 127.7 | Y50: 129.5
G51: obec | J51: . | K51: . | L51: 24968.7 | M51: 25103.1 | N51: 24967.7 | O51: 24999.9 | P51: 25126.7 | Q51: 25321.1 | R51: 25676.7 | S51: 25963.3 | T51: 26598.1 | U51: 27396.4 | V51: 28250.6 | W51: 29083.1 | X51: 29599.2 | Y51: 29852.6
G52: jiný resort | J52: . | K52: . | L52: 0 | M52: 0 | N52: 0 | O52: 0 | P52: 0 | Q52: 0 | R52: 0 | S52: 0 | T52: 0 | U52: 0 | V52: 0 | W52: 0 | X52: 0 | Y52: 0
G53: kraj | J53: . | K53: . | L53: 1995.3 | M53: 1969.4 | N53: 1885.3 | O53: 1818.4 | P53: 1779.7 | Q53: 1706.9 | R53: 1643.1 | S53: 1556.6 | T53: 1506.5 | U53: 1485.2 | V53: 1486.2 | W53: 1487.9 | X53: 1494.8 | Y53: 1495.1
F54: privátní sektor | J54: . | K54: . | L54: 319.9 | M54: 350.2 | N54: 347.8 | O54: 373.1 | P54: 407.5 | Q54: 451 | R54: 475.9 | S54: 511.9 | T54: 569.7 | U54: 638.3 | V54: 702.7 | W54: 849.4 | X54: 941.8 | Y54: 1068.2
F55: církev | J55: . | K55: . | L55: 196.6 | M55: 205.6 | N55: 226.2 | O55: 244.3 | P55: 226.3 | Q55: 217.9 | R55: 226.7 | S55: 240.1 | T55: 240.8 | U55: 255.9 | V55: 271.8 | W55: 285.8 | X55: 288.8 | Y55: 284.3
E56: Z toho ženy (přepočtené počty) | J56: . | K56: . | L56: 26185 | M56: 26286.1 | N56: 26146.2 | O56: 26167.9 | P56: 26208.9 | Q56: 26353.5 | R56: 26599.8 | S56: 26853 | T56: 27411.2 | U56: 28169.6 | V56: 29002.8 | W56: 29978.8 | X56: 30552.7 | Y56: 30880.3
E57: v tom | F57: veřejný | J57: . | K57: . | L57: 25710.4 | M57: 25786.4 | N57: 25628 | O57: 25607.7 | P57: 25639.7 | Q57: 25752.9 | R57: 25965.5 | S57: 26173.1 | T57: 26685.1 | U57: 27384.5 | V57: 28142.9 | W57: 28976.8 | X57: 29460.3 | Y57: 29687.8
F58: v tom | G58: MŠMT | J58: . | K58: . | L58: 90.5 | M58: 92.3 | N58: 86.9 | O58: 87.4 | P58: 86.4 | Q58: 91.1 | R58: 83.7 | S58: 93.4 | T58: 100.5 | U58: 103.2 | V58: 107.2 | W58: 108.1 | X58: 119.4 | Y58: 119.5
G59: obec | J59: . | K59: . | L59: 23704.8 | M59: 23799 | N59: 23713.6 | O59: 23764.6 | P59: 23843.7 | Q59: 24015.6 | R59: 24304.3 | S59: 24590.5 | T59: 25151.8 | U59: 25858 | V59: 26611.9 | W59: 27436.7 | X59: 27905.6 | Y59: 28131.4
G60: jiný resort | J60: . | K60: . | L60: 0 | M60: 0 | N60: 0 | O60: 0 | P60: 0 | Q60: 0 | R60: 0 | S60: 0 | T60: 0 | U60: 0 | V60: 0 | W60: 0 | X60: 0 | Y60: 0
G61: kraj | J61: . | K61: . | L61: 1915.1 | M61: 1895.1 | N61: 1827.5 | O61: 1755.7 | P61: 1709.6 | Q61: 1646.2 | R61: 1577.5 | S61: 1489.2 | T61: 1432.8 | U61: 1423.3 | V61: 1423.8 | W61: 1432 | X61: 1435.3 | Y61: 1436.9
F62: privátní sektor | J62: . | K62: . | L62: 293.5 | M62: 311.1 | N62: 312.6 | O62: 334.3 | P62: 361.2 | Q62: 399.1 | R62: 427.1 | S62: 453.5 | T62: 500.1 | U62: 550.2 | V62: 604.5 | W62: 738.3 | X62: 823.8 | Y62: 932
F63: církev | J63: . | K63: . | L63: 181.1 | M63: 188.6 | N63: 205.6 | O63: 225.9 | P63: 208 | Q63: 201.5 | R63: 207.2 | S63: 226.4 | T63: 226 | U63: 234.9 | V63: 255.4 | W63: 263.7 | X63: 268.6 | Y63: 260.5
Y64: Zdroj: databáze MŠMT

Sheet B4.4
D4: Tab. B4.4: | H4: ZŠ, 2. stupeň – školy, třídy, žáci/dívky, učitelé
B5: 24 | D5: ve školním roce 2008/09 až 2018/19 – podle zřizovatele
D7: Zřizovatel | J7: 2003/04 | K7: 2004/05 | L7: 2005/06 | M7: 2006/07 | N7: 2007/08 | O7: 2008/09 | P7: 2009/10 | Q7: 2010/11 | R7: 2011/12 | S7: 2012/13 | T7: 2013/14 | U7: 2014/15 | V7: 2015/16 | W7: 2016/17 | X7: 2017/18 | Y7: 2018/19
J11: 1) | K11: 1)
D12: Školy
E13: Celkem | J13: . | K13: . | L13: 3052 | M13: 2809 | N13: 2775 | O13: 2760 | P13: 2755 | Q13: 2748 | R13: 2738 | S13: 2718 | T13: 2705 | U13: 2707 | V13: 2710 | W13: 2719 | X13: 2729 | Y13: 2746
E14: v tom | F14: veřejný | J14: . | K14: . | L14: 2961 | M14: 2733 | N14: 2698 | O14: 2678 | P14: 2670 | Q14: 2662 | R14: 2648 | S14: 2625 | T14: 2609 | U14: 2601 | V14: 2597 | W14: 2590 | X14: 2588 | Y14: 2588
F15: v tom | G15: MŠMT | J15: . | K15: . | L15: 73 | M15: 47 | N15: 48 | O15: 49 | P15: 49 | Q15: 51 | R15: 48 | S15: 46 | T15: 45 | U15: 45 | V15: 44 | W15: 43 | X15: 44 | Y15: 44
G16: obec | J16: . | K16: . | L16: 2408 | M16: 2365 | N16: 2345 | O16: 2331 | P16: 2326 | Q16: 2319 | R16: 2314 | S16: 2302 | T16: 2294 | U16: 2291 | V16: 2295 | W16: 2295 | X16: 2298 | Y16: 2300
G17: jiný resort | J17: . | K17: . | L17: 0 | M17: 0 | N17: 0 | O17: 0 | P17: 0 | Q17: 0 | R17: 0 | S17: 0 | T17: 0 | U17: 0 | V17: 0 | W17: 0 | X17: 0 | Y17: 0
G18: kraj | J18: . | K18: . | L18: 480 | M18: 321 | N18: 305 | O18: 298 | P18: 295 | Q18: 292 | R18: 286 | S18: 277 | T18: 270 | U18: 265 | V18: 258 | W18: 252 | X18: 246 | Y18: 244
F19: privátní sektor | J19: . | K19: . | L19: 59 | M19: 45 | N19: 44 | O19: 46 | P19: 48 | Q19: 49 | R19: 53 | S19: 56 | T19: 59 | U19: 68 | V19: 74 | W19: 87 | X19: 99 | Y19: 116
F20: církev | J20: . | K20: . | L20: 32 | M20: 31 | N20: 33 | O20: 36 | P20: 37 | Q20: 37 | R20: 37 | S20: 37 | T20: 37 | U20: 38 | V20: 39 | W20: 42 | X20: 42 | Y20: 42
D21: Třídy
E22: Celkem | J22: . | K22: . | L22: 20879 | M22: 19961 | N22: 19109 | O22: 18173 | P22: 17420 | Q22: 17017 | R22: 16828 | S22: 16552 | T22: 16570 | U22: 16596 | V22: 16626 | W22: 16894 | X22: 17399 | Y22: 18015
E23: v tom | F23: veřejný | J23: . | K23: . | L23: 20601 | M23: 19676 | N23: 18819 | O23: 17874 | P23: 17103 | Q23: 16691 | R23: 16492 | S23: 16211 | T23: 16218 | U23: 16211 | V23: 16224 | W23: 16449 | X23: 16918 | Y23: 17452
F24: v tom | G24: MŠMT | J24: . | K24: . | L24: 178 | M24: 194 | N24: 190 | O24: 197 | P24: 188 | Q24: 189 | R24: 182 | S24: 157 | T24: 161 | U24: 151 | V24: 156 | W24: 156 | X24: 147 | Y24: 154
G25: obec | J25: . | K25: . | L25: 18813 | M25: 17904 | N25: 17063 | O25: 16146 | P25: 15448 | Q25: 15093 | R25: 14909 | S25: 14751 | T25: 14798 | U25: 14872 | V25: 14985 | W25: 15289 | X25: 15788 | Y25: 16331
G26: jiný resort | J26: . | K26: . | L26: 0 | M26: 0 | N26: 0 | O26: 0 | P26: 0 | Q26: 0 | R26: 0 | S26: 0 | T26: 0 | U26: 0 | V26: 0 | W26: 0 | X26: 0 | Y26: 0
G27: kraj | J27: . | K27: . | L27: 1610 | M27: 1578 | N27: 1566 | O27: 1531 | P27: 1467 | Q27: 1409 | R27: 1401 | S27: 1303 | T27: 1259 | U27: 1188 | V27: 1083 | W27: 1004 | X27: 983 | Y27: 967
F28: privátní sektor | J28: . | K28: . | L28: 167 | M28: 169 | N28: 170 | O28: 169 | P28: 186 | Q28: 187 | R28: 190 | S28: 189 | T28: 200 | U28: 234 | V28: 241 | W28: 274 | X28: 311 | Y28: 383
F29: církev | J29: . | K29: . | L29: 111 | M29: 116 | N29: 120 | O29: 130 | P29: 131 | Q29: 139 | R29: 146 | S29: 152 | T29: 152 | U29: 151 | V29: 161 | W29: 171 | X29: 170 | Y29: 180
D30: Žáci
E31: Celkem | J31: . | K31: . | L31: 443306 | M31: 413693 | N31: 386817 | O31: 357817 | P31: 333705 | Q31: 324106 | R31: 320315 | S31: 319844 | T31: 321671 | U31: 324533 | V31: 328823 | W31: 337222 | X31: 350409 | Y31: 367486
E32: v tom | F32: veřejný | J32: . | K32: . | L32: 439599 | M32: 409966 | N32: 383123 | O32: 353911 | P32: 329719 | Q32: 320086 | R32: 316115 | S32: 315524 | T32: 317234 | U32: 319784 | V32: 323739 | W32: 331668 | X32: 344174 | Y32: 360403
F33: v tom | G33: MŠMT | J33: . | K33: . | L33: 1054 | M33: 1028 | N33: 1056 | O33: 1120 | P33: 1116 | Q33: 1024 | R33: 923 | S33: 825 | T33: 792 | U33: 794 | V33: 870 | W33: 861 | X33: 861 | Y33: 925
G34: obec | J34: . | K34: . | L34: 423619 | M34: 394534 | N34: 368189 | O34: 339380 | P34: 315737 | Q34: 307003 | R34: 303483 | S34: 303735 | T34: 305783 | U34: 308916 | V34: 313494 | W34: 322006 | X34: 334797 | Y34: 350978
G35: jiný resort | J35: . | K35: . | L35: 0 | M35: 0 | N35: 0 | O35: 0 | P35: 0 | Q35: 0 | R35: 0 | S35: 0 | T35: 0 | U35: 0 | V35: 0 | W35: 0 | X35: 0 | Y35: 0
G36: kraj | J36: . | K36: . | L36: 14926 | M36: 14404 | N36: 13878 | O36: 13411 | P36: 12866 | Q36: 12059 | R36: 11709 | S36: 10964 | T36: 10659 | U36: 10074 | V36: 9375 | W36: 8801 | X36: 8516 | Y36: 8500
F37: privátní sektor | J37: . | K37: . | L37: 1736 | M37: 1759 | N37: 1760 | O37: 1765 | P37: 1852 | Q37: 1865 | R37: 1957 | S37: 2001 | T37: 2085 | U37: 2325 | V37: 2495 | W37: 2850 | X37: 3326 | Y37: 3999
F38: církev | J38: . | K38: . | L38: 1971 | M38: 1968 | N38: 1934 | O38: 2141 | P38: 2134 | Q38: 2155 | R38: 2243 | S38: 2319 | T38: 2352 | U38: 2424 | V38: 2589 | W38: 2704 | X38: 2909 | Y38: 3084
E39: Z toho dívky | J39: . | K39: . | L39: 212962 | M39: 197777 | N39: 184863 | O39: 170500 | P39: 159159 | Q39: 155197 | R39: 153503 | S39: 153514 | T39: 154584 | U39: 156101 | V39: 158299 | W39: 162510 | X39: 168567 | Y39: 177036
E40: v tom | F40: veřejný | J40: . | K40: . | L40: 211289 | M40: 196138 | N40: 183255 | O40: 168801 | P40: 157433 | Q40: 153427 | R40: 151618 | S40: 151577 | T40: 152601 | U40: 153994 | V40: 156065 | W40: 160035 | X40: 165766 | Y40: 173820
F41: v tom | G41: MŠMT | J41: . | K41: . | L41: 317 | M41: 303 | N41: 303 | O41: 354 | P41: 347 | Q41: 308 | R41: 288 | S41: 245 | T41: 221 | U41: 230 | V41: 280 | W41: 280 | X41: 287 | Y41: 307
G42: obec | J42: . | K42: . | L42: 205017 | M42: 190151 | N42: 177538 | O42: 163284 | P42: 152132 | Q42: 148410 | R42: 146779 | S42: 147073 | T42: 148226 | U42: 149857 | V42: 152083 | W42: 156330 | X42: 162176 | Y42: 170248
G43: jiný resort | J43: . | K43: . | L43: 0 | M43: 0 | N43: 0 | O43: 0 | P43: 0 | Q43: 0 | R43: 0 | S43: 0 | T43: 0 | U43: 0 | V43: 0 | W43: 0 | X43: 0 | Y43: 0
G44: kraj | J44: . | K44: . | L44: 5955 | M44: 5684 | N44: 5414 | O44: 5163 | P44: 4954 | Q44: 4709 | R44: 4551 | S44: 4259 | T44: 4154 | U44: 3907 | V44: 3702 | W44: 3425 | X44: 3303 | Y44: 3265
F45: privátní sektor | J45: . | K45: . | L45: 679 | M45: 680 | N45: 690 | O45: 699 | P45: 728 | Q45: 737 | R45: 795 | S45: 817 | T45: 839 | U45: 930 | V45: 1004 | W45: 1152 | X45: 1407 | Y45: 1722
F46: církev | J46: . | K46: . | L46: 994 | M46: 959 | N46: 918 | O46: 1000 | P46: 998 | Q46: 1033 | R46: 1090 | S46: 1120 | T46: 1144 | U46: 1177 | V46: 1230 | W46: 1323 | X46: 1394 | Y46: 1494
D47: Učitelé (přepočtené počty)
E48: Celkem | J48: . | K48: . | L48: 35571.6 | M48: 34930.5 | N48: 33453.2 | O48: 31963.1 | P48: 30782.4 | Q48: 30227 | R48: 29700.2 | S48: 29294 | T48: 29244 | U48: 29240.4 | V48: 29391.7 | W48: 29807 | X48: 30552.5 | Y48: 31515.6
E49: v tom | F49: veřejný | J49: . | K49: . | L49: 35120.3 | M49: 34459.1 | N49: 32986.5 | O49: 31456.6 | P49: 30267.8 | Q49: 29710.6 | R49: 29149.6 | S49: 28736.1 | T49: 28671.2 | U49: 28647 | V49: 28739.2 | W49: 29106 | X49: 29785.1 | Y49: 30675.3
F50: v tom | G50: MŠMT | J50: . | K50: . | L50: 266.4 | M50: 283.7 | N50: 298.6 | O50: 302.9 | P50: 297.5 | Q50: 293.4 | R50: 288.7 | S50: 288.6 | T50: 272.6 | U50: 258.6 | V50: 260.2 | W50: 254.2 | X50: 262.1 | Y50: 259.9
G51: obec | J51: . | K51: . | L51: 32087.1 | M51: 31450.5 | N51: 29988.4 | O51: 28488.2 | P51: 27439.4 | Q51: 26957.9 | R51: 26504.4 | S51: 26198.6 | T51: 26227 | U51: 26341.5 | V51: 26552.4 | W51: 27009.7 | X51: 27761.5 | Y51: 28621.8
G52: jiný resort | J52: . | K52: . | L52: 0 | M52: 0 | N52: 0 | O52: 0 | P52: 0 | Q52: 0 | R52: 0 | S52: 0 | T52: 0 | U52: 0 | V52: 0 | W52: 0 | X52: 0 | Y52: 0
G53: kraj | J53: . | K53: . | L53: 2766.8 | M53: 2724.9 | N53: 2699.5 | O53: 2665.5 | P53: 2530.9 | Q53: 2459.3 | R53: 2356.5 | S53: 2248.9 | T53: 2171.6 | U53: 2046.9 | V53: 1926.6 | W53: 1842.1 | X53: 1761.5 | Y53: 1793.6
F54: privátní sektor | J54: . | K54: . | L54: 249.7 | M54: 251.1 | N54: 256.1 | O54: 274.8 | P54: 285.5 | Q54: 279.3 | R54: 293.1 | S54: 309.7 | T54: 305.9 | U54: 331.3 | V54: 381.4 | W54: 427.3 | X54: 473.3 | Y54: 522.4
F55: církev | J55: . | K55: . | L55: 201.6 | M55: 220.3 | N55: 210.6 | O55: 231.7 | P55: 229.1 | Q55: 237.1 | R55: 257.5 | S55: 248.2 | T55: 266.9 | U55: 262.1 | V55: 271.1 | W55: 273.7 | X55: 294.1 | Y55: 317.9
E56: Z toho ženy (přepočtené počty) | J56: . | K56: . | L56: 26527.7 | M56: 25978.3 | N56: 24821.1 | O56: 23744.7 | P56: 22788.7 | Q56: 22450.2 | R56: 22138.2 | S56: 21728.3 | T56: 21707.7 | U56: 21764.6 | V56: 21873.7 | W56: 22275.6 | X56: 22794 | Y56: 23520.6
E57: v tom | F57: veřejný | J57: . | K57: . | L57: 26196.3 | M57: 25630.4 | N57: 24478.5 | O57: 23377.4 | P57: 22422 | Q57: 22077.5 | R57: 21741 | S57: 21336.6 | T57: 21293.7 | U57: 21328.8 | V57: 21400.2 | W57: 21771.2 | X57: 22237.1 | Y57: 22942
F58: v tom | G58: MŠMT | J58: . | K58: . | L58: 148.4 | M58: 155.6 | N58: 169.1 | O58: 169.3 | P58: 171.3 | Q58: 176.4 | R58: 169.5 | S58: 176.8 | T58: 164.3 | U58: 153.3 | V58: 157.4 | W58: 159 | X58: 159.7 | Y58: 159.1
G59: obec | J59: . | K59: . | L59: 23923.8 | M59: 23382.7 | N59: 22243.8 | O59: 21146.1 | P59: 20297.7 | Q59: 19995.2 | R59: 19714.9 | S59: 19395.3 | T59: 19416.4 | U59: 19548.8 | V59: 19722.6 | W59: 20154.6 | X59: 20676.3 | Y59: 21362.1
G60: jiný resort | J60: . | K60: . | L60: 0 | M60: 0 | N60: 0 | O60: 0 | P60: 0 | Q60: 0 | R60: 0 | S60: 0 | T60: 0 | U60: 0 | V60: 0 | W60: 0 | X60: 0 | Y60: 0
G61: kraj | J61: . | K61: . | L61: 2124.1 | M61: 2092.1 | N61: 2065.6 | O61: 2062 | P61: 1953 | Q61: 1905.9 | R61: 1856.6 | S61: 1764.5 | T61: 1713 | U61: 1626.7 | V61: 1520.2 | W61: 1457.6 | X61: 1401.1 | Y61: 1420.8
F62: privátní sektor | J62: . | K62: . | L62: 185.3 | M62: 181.5 | N62: 187.9 | O62: 204.6 | P62: 205.6 | Q62: 207.5 | R62: 213 | S62: 214.5 | T62: 218.4 | U62: 246.9 | V62: 275.8 | W62: 300.6 | X62: 335 | Y62: 348.6
F63: církev | J63: . | K63: . | L63: 146.1 | M63: 166.4 | N63: 154.7 | O63: 162.7 | P63: 161.1 | Q63: 165.2 | R63: 184.2 | S63: 177.2 | T63: 195.6 | U63: 188.9 | V63: 197.7 | W63: 203.8 | X63: 221.9 | Y63: 230
Y64: Zdroj: databáze MŠMT

Sheet B4.5
D4: Tab. B4.5: | H4: ZŠ – školy
B5: 0 | D5: ve školním roce 2008/09 až 2018/19 – podle počtu žáků
D7: Počet žáků | J7: 2003/04 | K7: 2004/05 | L7: 2005/06 | M7: 2006/07 | N7: 2007/08 | O7: 2008/09 | P7: 2009/10 | Q7: 2010/11 | R7: 2011/12 | S7: 2012/13 | T7: 2013/14 | U7: 2014/15 | V7: 2015/16 | W7: 2016/17 | X7: 2017/18 | Y7: 2018/19
J11: 1),2) | K11: 1),2)
E12: Celkem školy | J12: 4838 | K12: 4768 | L12: 4474 | M12: 4197 | N12: 4155 | O12: 4133 | P12: 4125 | Q12: 4123 | R12: 4111 | S12: 4095 | T12: 4095 | U12: 4106 | V12: 4115 | W12: 4140 | X12: 4155 | Y12: 4172
E13: v tom školy s počtem žáků | F13: do 50 | J13: . | K13: . | L13: 1352 | M13: 1260 | N13: 1269 | O13: 1292 | P13: 1291 | Q13: 1425 | R13: 1286 | S13: 1323 | T13: 1237 | U13: 1216 | V13: 1187 | W13: 1191 | X13: 1179 | Y13: 1187
F14: 51–100 | J14: . | K14: . | L14: 353 | M14: 345 | N14: 334 | O14: 496 | P14: 511 | Q14: 512 | R14: 518 | S14: 493 | T14: 546 | U14: 550 | V14: 568 | W14: 562 | X14: 580 | Y14: 582
F15: 101–150 | J15: . | K15: . | L15: 331 | M15: 329 | N15: 327 | O15: 393 | P15: 396 | Q15: 372 | R15: 398 | S15: 382 | T15: 385 | U15: 383 | V15: 383 | W15: 385 | X15: 381 | Y15: 345
F16: 151–200 | J16: . | K16: . | L16: 402 | M16: 377 | N16: 373 | O16: 376 | P16: 379 | Q16: 383 | R16: 367 | S16: 342 | T16: 350 | U16: 348 | V16: 331 | W16: 336 | X16: 309 | Y16: 331
F17: 201–250 | J17: . | K17: . | L17: 283 | M17: 252 | N17: 246 | O17: 221 | P17: 223 | Q17: 233 | R17: 236 | S17: 250 | T17: 246 | U17: 257 | V17: 266 | W17: 247 | X17: 258 | Y17: 258
F18: 251–300 | J18: . | K18: . | L18: 218 | M18: 244 | N18: 235 | O18: 231 | P18: 255 | Q18: 240 | R18: 233 | S18: 221 | T18: 200 | U18: 174 | V18: 174 | W18: 177 | X18: 186 | Y18: 191
F19: 301–350 | J19: . | K19: . | L19: 260 | M19: 262 | N19: 238 | O19: 220 | P19: 218 | Q19: 213 | R19: 220 | S19: 210 | T19: 209 | U19: 201 | V19: 189 | W19: 176 | X19: 172 | Y19: 164
F20: 351–400 | J20: . | K20: . | L20: 232 | M20: 205 | N20: 213 | O20: 216 | P20: 205 | Q20: 190 | R20: 205 | S20: 196 | T20: 193 | U20: 207 | V20: 200 | W20: 199 | X20: 185 | Y20: 196
F21: 401–450 | J21: . | K21: . | L21: 247 | M21: 241 | N21: 235 | O21: 185 | P21: 179 | Q21: 168 | R21: 175 | S21: 178 | T21: 182 | U21: 168 | V21: 171 | W21: 173 | X21: 181 | Y21: 166
F22: 451–500 | J22: . | K22: . | L22: 208 | M22: 180 | N22: 189 | O22: 141 | P22: 153 | Q22: 132 | R22: 158 | S22: 160 | T22: 153 | U22: 174 | V22: 172 | W22: 184 | X22: 176 | Y22: 176
F23: 501–550 | J23: . | K23: . | L23: 178 | M23: 157 | N23: 160 | O23: 128 | P23: 104 | Q23: 82 | R23: 92 | S23: 100 | T23: 124 | U23: 110 | V23: 124 | W23: 128 | X23: 127 | Y23: 142
F24: 551–600 | J24: . | K24: . | L24: 112 | M24: 101 | N24: 106 | O24: 95 | P24: 84 | Q24: 76 | R24: 81 | S24: 77 | T24: 77 | U24: 108 | V24: 110 | W24: 112 | X24: 130 | Y24: 111
F25: 601–650 | J25: . | K25: . | L25: 96 | M25: 102 | N25: 100 | O25: 56 | P25: 52 | Q25: 48 | R25: 62 | S25: 71 | T25: 81 | U25: 68 | V25: 75 | W25: 79 | X25: 85 | Y25: 107
F26: 651–700 | J26: . | K26: . | L26: 82 | M26: 57 | N26: 53 | O26: 40 | P26: 41 | Q26: 31 | R26: 44 | S26: 48 | T26: 44 | U26: 51 | V26: 51 | W26: 67 | X26: 65 | Y26: 69
F27: 701–750 | J27: . | K27: . | L27: 54 | M27: 39 | N27: 34 | O27: 21 | P27: 14 | Q27: 6 | R27: 15 | S27: 19 | T27: 32 | U27: 42 | V27: 52 | W27: 46 | X27: 51 | Y27: 50
F28: 751–800 | J28: . | K28: . | L28: 33 | M28: 28 | N28: 26 | O28: 10 | P28: 7 | Q28: 7 | R28: 9 | S28: 11 | T28: 17 | U28: 24 | V28: 20 | W28: 27 | X28: 28 | Y28: 37
F29: 801–850 | J29: . | K29: . | L29: 15 | M29: 3 | N29: 5 | O29: 2 | P29: 7 | Q29: 2 | R29: 4 | S29: 6 | T29: 7 | U29: 13 | V29: 24 | W29: 23 | X29: 27 | Y29: 22
F30: 851–900 | J30: . | K30: . | L30: 9 | M30: 5 | N30: 4 | O30: 4 | P30: 4 | Q30: 3 | R30: 6 | S30: 5 | T30: 5 | U30: 2 | V30: 8 | W30: 12 | X30: 16 | Y30: 15
F31: 901–950 | J31: . | K31: . | L31: 2 | M31: 7 | N31: 5 | O31: 4 | P31: 1 | Q31: 0 | R31: 1 | S31: 3 | T31: 5 | U31: 8 | V31: 6 | W31: 8 | X31: 8 | Y31: 10
F32: 951–1 000 | J32: . | K32: . | L32: 3 | M32: 1 | N32: 1 | O32: 0 | P32: 0 | Q32: 0 | R32: 0 | S32: 0 | T32: 1 | U32: 1 | V32: 2 | W32: 4 | X32: 4 | Y32: 4
F33: nad 1 000 | J33: . | K33: . | L33: 4 | M33: 2 | N33: 2 | O33: 2 | P33: 1 | Q33: 0 | R33: 1 | S33: 0 | T33: 1 | U33: 1 | V33: 2 | W33: 4 | X33: 7 | Y33: 9
Y34: Zdroj: databáze MŠMT

Sheet B4.6
D4: Tab. B4.6: | H4: ZŠ – nově přijatí do 1. ročníku, podíl na odpovídající věkové populaci
B5: 12 | D5: – ve školním roce 2008/09 až 2018/19
J7: 2003/04 | K7: 2004/05 | L7: 2005/06 | M7: 2006/07 | N7: 2007/08 | O7: 2008/09 | P7: 2009/10 | Q7: 2010/11 | R7: 2011/12 | S7: 2012/13 | T7: 2013/14 | U7: 2014/15 | V7: 2015/16 | W7: 2016/17 | X7: 2017/18 | Y7: 2018/19
J11: 1) | K11: 1)
D12: Nově přijatí do 1. ročníku základní školy
E13: Celkem | J13: . | K13: . | L13: 91839 | M13: 91712 | N13: 91436 | O13: 92595 | P13: 93789 | Q13: 95507 | R13: 100697 | S13: 105592 | T13: 110773 | U13: 117374 | V13: 116727 | W13: 117198 | X13: 111841 | Y13: 108062
E14: v tom | F14: mladší 6 let | J14: . | K14: . | L14: 839 | M14: 1277 | N14: 1046 | O14: 1216 | P14: 1060 | Q14: 958 | R14: 736 | S14: 763 | T14: 773 | U14: 820 | V14: 757 | W14: 718 | X14: 681 | Y14: 586
F15: 6letí | J15: . | K15: . | L15: 67828 | M15: 68700 | N15: 69235 | O15: 70227 | P15: 71361 | Q15: 73122 | R15: 77434 | S15: 81395 | T15: 88285 | U15: 93855 | V15: 91953 | W15: 91520 | X15: 86426 | Y15: 82517
F16: starší 6 let | J16: . | K16: . | L16: 23172 | M16: 21735 | N16: 21155 | O16: 21152 | P16: 21368 | Q16: 21427 | R16: 22527 | S16: 23434 | T16: 21715 | U16: 22699 | V16: 24017 | W16: 24960 | X16: 24734 | Y16: 24959
D17: Podíl na odpovídající věkové populaci
E18: Žáci mladší 6 let/populace 5letých | J18: . | K18: . | L18: 0.009359556453 | M18: 0.01393237832 | N18: 0.01117569127 | O18: 0.01282903413 | P18: 0.01072972234 | Q18: 0.009221646805 | R18: 0.006766820514 | S18: 0.006445073278 | T18: 0.006286597267 | U18: 0.00674813809 | V18: 0.006316492136 | W18: 0.006538268907 | X18: 0.006181412194 | Y18: 0.005359086212
E19: Žáci 6letí/populace 6letých | J19: . | K19: . | L19: 0.7660977896 | M19: 0.7657070251 | N19: 0.7524480236 | O19: 0.7478993387 | P19: 0.7512079583 | Q19: 0.7385687592 | R19: 0.7521296125 | S19: 0.7479439467 | T19: 0.7457574145 | U19: 0.7627635193 | V19: 0.7563230492 | W19: 0.7629591343 | X19: 0.7859767188 | Y19: 0.7474636762
E20: Žáci starší 6 let/populace 7letých | J20: . | K20: . | L20: 0.2581234474 | M20: 0.245285574 | N20: 0.2348624464 | O20: 0.2291930783 | P20: 0.2269738589 | Q20: 0.2250900802 | R20: 0.2294295579 | S20: 0.2275344448 | T20: 0.1995937351 | U20: 0.1915963975 | V20: 0.1951031284 | W20: 0.2052226534 | X20: 0.2059896397 | Y20: 0.2266445098
Y21: Zdroj: databáze MŠMT, ČSÚ

Sheet B4.7
D4: Tab. B4.7: | H4: ZŠ – školy
B5: 0 | D5: ve školním roce 2008/09 až 2018/19 – podle území
D7: Území | J7: 2003/04 | K7: 2004/05 | L7: 2005/06 | M7: 2006/07 | N7: 2007/08 | O7: 2008/09 | P7: 2009/10 | Q7: 2010/11 | R7: 2011/12 | S7: 2012/13 | T7: 2013/14 | U7: 2014/15 | V7: 2015/16 | W7: 2016/17 | X7: 2017/18 | Y7: 2018/19
J11: 1) | K11: 1)
E12: Česká republika | H12: CZ0 | J12: 4838 | K12: 4765 | L12: 4474 | M12: 4197 | N12: 4155 | O12: 4133 | P12: 4125 | Q12: 4123 | R12: 4111 | S12: 4095 | T12: 4095 | U12: 4106 | V12: 4115 | W12: 4140 | X12: 4155 | Y12: 4172
E13: Praha | H13: CZ01 | J13: 310 | K13: 303 | L13: 277 | M13: 255 | N13: 253 | O13: 251 | P13: 251 | Q13: 251 | R13: 253 | S13: 252 | T13: 254 | U13: 260 | V13: 265 | W13: 269 | X13: 271 | Y13: 279
F14: Hlavní město Praha | H14: CZ010 | J14: 310 | K14: 303 | L14: 277 | M14: 255 | N14: 253 | O14: 251 | P14: 251 | Q14: 251 | R14: 253 | S14: 252 | T14: 254 | U14: 260 | V14: 265 | W14: 269 | X14: 271 | Y14: 279
E15: Střední Čechy | H15: CZ02 | J15: 591 | K15: 582 | L15: 555 | M15: 525 | N15: 524 | O15: 522 | P15: 522 | Q15: 524 | R15: 524 | S15: 524 | T15: 529 | U15: 531 | V15: 534 | W15: 549 | X15: 553 | Y15: 557
F16: Středočeský kraj | H16: CZ020 | J16: 591 | K16: 582 | L16: 555 | M16: 525 | N16: 524 | O16: 522 | P16: 522 | Q16: 524 | R16: 524 | S16: 524 | T16: 529 | U16: 531 | V16: 534 | W16: 549 | X16: 553 | Y16: 557
E17: Jihozápad | H17: CZ03 | J17: 556 | K17: 552 | L17: 513 | M17: 488 | N17: 479 | O17: 476 | P17: 475 | Q17: 476 | R17: 477 | S17: 473 | T17: 474 | U17: 475 | V17: 475 | W17: 478 | X17: 482 | Y17: 482
F18: Jihočeský kraj | H18: CZ031 | J18: 305 | K18: 304 | L18: 276 | M18: 261 | N18: 255 | O18: 254 | P18: 254 | Q18: 254 | R18: 255 | S18: 255 | T18: 256 | U18: 255 | V18: 255 | W18: 257 | X18: 260 | Y18: 260
F19: Plzeňský kraj | H19: CZ032 | J19: 251 | K19: 248 | L19: 237 | M19: 227 | N19: 224 | O19: 222 | P19: 221 | Q19: 222 | R19: 222 | S19: 218 | T19: 218 | U19: 220 | V19: 220 | W19: 221 | X19: 222 | Y19: 222
E20: Severozápad | H20: CZ04 | J20: 490 | K20: 476 | L20: 439 | M20: 407 | N20: 400 | O20: 396 | P20: 395 | Q20: 392 | R20: 391 | S20: 387 | T20: 383 | U20: 384 | V20: 386 | W20: 385 | X20: 384 | Y20: 388
F21: Karlovarský kraj | H21: CZ041 | J21: 143 | K21: 140 | L21: 128 | M21: 119 | N21: 115 | O21: 112 | P21: 112 | Q21: 112 | R21: 110 | S21: 108 | T21: 107 | U21: 107 | V21: 106 | W21: 106 | X21: 106 | Y21: 107
F22: Ústecký kraj | H22: CZ042 | J22: 347 | K22: 336 | L22: 311 | M22: 288 | N22: 285 | O22: 284 | P22: 283 | Q22: 280 | R22: 281 | S22: 279 | T22: 276 | U22: 277 | V22: 280 | W22: 279 | X22: 278 | Y22: 281
E23: Severovýchod | H23: CZ05 | J23: 873 | K23: 865 | L23: 807 | M23: 745 | N23: 732 | O23: 727 | P23: 727 | Q23: 726 | R23: 721 | S23: 720 | T23: 721 | U23: 724 | V23: 723 | W23: 723 | X23: 723 | Y23: 723
F24: Liberecký kraj | H24: CZ051 | J24: 247 | K24: 242 | L24: 226 | M24: 209 | N24: 206 | O24: 207 | P24: 207 | Q24: 207 | R24: 206 | S24: 205 | T24: 205 | U24: 205 | V24: 205 | W24: 203 | X24: 202 | Y24: 201
F25: Královéhradecký kraj | H25: CZ052 | J25: 333 | K25: 330 | L25: 307 | M25: 276 | N25: 272 | O25: 268 | P25: 268 | Q25: 267 | R25: 264 | S25: 264 | T25: 265 | U25: 267 | V25: 268 | W25: 269 | X25: 269 | Y25: 271
F26: Pardubický kraj | H26: CZ053 | J26: 293 | K26: 293 | L26: 274 | M26: 260 | N26: 254 | O26: 252 | P26: 252 | Q26: 252 | R26: 251 | S26: 251 | T26: 251 | U26: 252 | V26: 250 | W26: 251 | X26: 252 | Y26: 251
E27: Jihovýchod | H27: CZ06 | J27: 840 | K27: 828 | L27: 787 | M27: 749 | N27: 742 | O27: 741 | P27: 740 | Q27: 741 | R27: 739 | S27: 739 | T27: 736 | U27: 735 | V27: 736 | W27: 743 | X27: 747 | Y27: 748
F28: Kraj Vysočina | H28: CZ063 | J28: 311 | K28: 305 | L28: 284 | M28: 270 | N28: 268 | O28: 266 | P28: 265 | Q28: 264 | R28: 264 | S28: 264 | T28: 263 | U28: 263 | V28: 263 | W28: 263 | X28: 265 | Y28: 266
F29: Jihomoravský kraj | H29: CZ064 | J29: 529 | K29: 523 | L29: 503 | M29: 479 | N29: 474 | O29: 475 | P29: 475 | Q29: 477 | R29: 475 | S29: 475 | T29: 473 | U29: 472 | V29: 473 | W29: 480 | X29: 482 | Y29: 482
E30: Střední Morava | H30: CZ07 | J30: 639 | K30: 628 | L30: 599 | M30: 566 | N30: 565 | O30: 562 | P30: 560 | Q30: 562 | R30: 558 | S30: 556 | T30: 556 | U30: 555 | V30: 554 | W30: 555 | X30: 554 | Y30: 555
F31: Olomoucký kraj | H31: CZ071 | J31: 357 | K31: 346 | L31: 334 | M31: 310 | N31: 309 | O31: 306 | P31: 304 | Q31: 305 | R31: 301 | S31: 299 | T31: 299 | U31: 297 | V31: 296 | W31: 297 | X31: 297 | Y31: 296
F32: Zlínský kraj | H32: CZ072 | J32: 282 | K32: 282 | L32: 265 | M32: 256 | N32: 256 | O32: 256 | P32: 256 | Q32: 257 | R32: 257 | S32: 257 | T32: 257 | U32: 258 | V32: 258 | W32: 258 | X32: 257 | Y32: 259
E33: Moravskoslezsko | H33: CZ08 | J33: 539 | K33: 531 | L33: 497 | M33: 464 | N33: 460 | O33: 458 | P33: 455 | Q33: 451 | R33: 448 | S33: 444 | T33: 442 | U33: 442 | V33: 442 | W33: 438 | X33: 441 | Y33: 440
F34: Moravskoslezský kraj | H34: CZ080 | J34: 539 | K34: 531 | L34: 497 | M34: 464 | N34: 460 | O34: 458 | P34: 455 | Q34: 451 | R34: 448 | S34: 444 | T34: 442 | U34: 442 | V34: 442 | W34: 438 | X34: 441 | Y34: 440
Y35: Zdroj: databáze MŠMT

Sheet B4.8
D4: Tab. B4.8: | H4: ZŠ, 1. stupeň – žáci
B5: 0 | D5: ve školním roce 2008/09 až 2018/19 – podle území
D7: Území | J7: 2003/04 | K7: 2004/05 | L7: 2005/06 | M7: 2006/07 | N7: 2007/08 | O7: 2008/09 | P7: 2009/10 | Q7: 2010/11 | R7: 2011/12 | S7: 2012/13 | T7: 2013/14 | U7: 2014/15 | V7: 2015/16 | W7: 2016/17 | X7: 2017/18 | Y7: 2018/19
J11: 1) | K11: 1)
E12: Česká republika | H12: CZ0 | J12: . | K12: . | L12: 473269 | M12: 462820 | N12: 458046 | O12: 458198 | P12: 460754 | Q12: 465380 | R12: 474327 | S12: 488106 | T12: 505983 | U12: 529604 | V12: 551428 | W12: 568966 | X12: 575699 | Y12: 573442
E13: Praha | H13: CZ01 | J13: . | K13: . | L13: 44045 | M13: 43245 | N13: 43497 | O13: 44036 | P13: 45076 | Q13: 46503 | R13: 48644 | S13: 51159 | T13: 54281 | U13: 58295 | V13: 62060 | W13: 65286 | X13: 66972 | Y13: 68114
F14: Hlavní město Praha | H14: CZ010 | J14: . | K14: . | L14: 44045 | M14: 43245 | N14: 43497 | O14: 44036 | P14: 45076 | Q14: 46503 | R14: 48644 | S14: 51159 | T14: 54281 | U14: 58295 | V14: 62060 | W14: 65286 | X14: 66972 | Y14: 68114
E15: Střední Čechy | H15: CZ02 | J15: . | K15: . | L15: 53546 | M15: 52921 | N15: 53283 | O15: 54401 | P15: 55734 | Q15: 57492 | R15: 59921 | S15: 62681 | T15: 66100 | U15: 70341 | V15: 74581 | W15: 78122 | X15: 80607 | Y15: 81592
F16: Středočeský kraj | H16: CZ020 | J16: . | K16: . | L16: 53546 | M16: 52921 | N16: 53283 | O16: 54401 | P16: 55734 | Q16: 57492 | R16: 59921 | S16: 62681 | T16: 66100 | U16: 70341 | V16: 74581 | W16: 78122 | X16: 80607 | Y16: 81592
E17: Jihozápad | H17: CZ03 | J17: . | K17: . | L17: 54348 | M17: 53161 | N17: 52880 | O17: 53021 | P17: 53462 | Q17: 54136 | R17: 54971 | S17: 56466 | T17: 58635 | U17: 61224 | V17: 63529 | W17: 65717 | X17: 66152 | Y17: 65615
F18: Jihočeský kraj | H18: CZ031 | J18: . | K18: . | L18: 29573 | M18: 28955 | N18: 28712 | O18: 28612 | P18: 28819 | Q18: 29164 | R18: 29459 | S18: 30244 | T18: 31353 | U18: 32450 | V18: 33522 | W18: 34504 | X18: 34685 | Y18: 34470
F19: Plzeňský kraj | H19: CZ032 | J19: . | K19: . | L19: 24775 | M19: 24206 | N19: 24168 | O19: 24409 | P19: 24643 | Q19: 24972 | R19: 25512 | S19: 26222 | T19: 27282 | U19: 28774 | V19: 30007 | W19: 31213 | X19: 31467 | Y19: 31145
E20: Severozápad | H20: CZ04 | J20: . | K20: . | L20: 55824 | M20: 54247 | N20: 53677 | O20: 53408 | P20: 53310 | Q20: 53630 | R20: 54209 | S20: 55077 | T20: 56378 | U20: 58547 | V20: 60164 | W20: 61455 | X20: 61519 | Y20: 60505
F21: Karlovarský kraj | H21: CZ041 | J21: . | K21: . | L21: 14733 | M21: 14250 | N21: 13936 | O21: 13870 | P21: 13693 | Q21: 13700 | R21: 13606 | S21: 13819 | T21: 14116 | U21: 14727 | V21: 15128 | W21: 15625 | X21: 15551 | Y21: 15240
F22: Ústecký kraj | H22: CZ042 | J22: . | K22: . | L22: 41091 | M22: 39997 | N22: 39741 | O22: 39538 | P22: 39617 | Q22: 39930 | R22: 40603 | S22: 41258 | T22: 42262 | U22: 43820 | V22: 45036 | W22: 45830 | X22: 45968 | Y22: 45265
E23: Severovýchod | H23: CZ05 | J23: . | K23: . | L23: 71810 | M23: 70689 | N23: 69807 | O23: 69552 | P23: 69434 | Q23: 69552 | R23: 70244 | S23: 71669 | T23: 74066 | U23: 77350 | V23: 80174 | W23: 82529 | X23: 83230 | Y23: 82504
F24: Liberecký kraj | H24: CZ051 | J24: . | K24: . | L24: 20942 | M24: 20660 | N24: 20489 | O24: 20456 | P24: 20535 | Q24: 20522 | R24: 20799 | S24: 21053 | T24: 21783 | U24: 22773 | V24: 23884 | W24: 24627 | X24: 25171 | Y24: 24826
F25: Královéhradecký kraj | H25: CZ052 | J25: . | K25: . | L25: 26164 | M25: 25783 | N25: 25332 | O25: 25252 | P25: 25169 | Q25: 25278 | R25: 25469 | S25: 26131 | T25: 26969 | U25: 28237 | V25: 29089 | W25: 30017 | X25: 29945 | Y25: 29661
F26: Pardubický kraj | H26: CZ053 | J26: . | K26: . | L26: 24704 | M26: 24246 | N26: 23986 | O26: 23844 | P26: 23730 | Q26: 23752 | R26: 23976 | S26: 24485 | T26: 25314 | U26: 26340 | V26: 27201 | W26: 27885 | X26: 28114 | Y26: 28017
E27: Jihovýchod | H27: CZ06 | J27: . | K27: . | L27: 76486 | M27: 74580 | N27: 73066 | O27: 73027 | P27: 73198 | Q27: 73601 | R27: 74932 | S27: 77287 | T27: 79867 | U27: 83091 | V27: 86601 | W27: 89078 | X27: 90323 | Y27: 90314
F28: Kraj Vysočina | H28: CZ063 | J28: . | K28: . | L28: 25197 | M28: 24578 | N28: 23827 | O28: 23628 | P28: 23499 | Q28: 23372 | R28: 23671 | S28: 24141 | T28: 24791 | U28: 25610 | V28: 26370 | W28: 26695 | X28: 26843 | Y28: 26632
F29: Jihomoravský kraj | H29: CZ064 | J29: . | K29: . | L29: 51289 | M29: 50002 | N29: 49239 | O29: 49399 | P29: 49699 | Q29: 50229 | R29: 51261 | S29: 53146 | T29: 55076 | U29: 57481 | V29: 60231 | W29: 62383 | X29: 63480 | Y29: 63682
E30: Střední Morava | H30: CZ07 | J30: . | K30: . | L30: 57128 | M30: 55682 | N30: 54845 | O30: 54546 | P30: 54765 | Q30: 54837 | R30: 55505 | S30: 56596 | T30: 58131 | U30: 60411 | V30: 62372 | W30: 63741 | X30: 64007 | Y30: 63083
F31: Olomoucký kraj | H31: CZ071 | J31: . | K31: . | L31: 29744 | M31: 28958 | N31: 28473 | O31: 28352 | P31: 28452 | Q31: 28492 | R31: 28991 | S31: 29701 | T31: 30552 | U31: 31740 | V31: 32913 | W31: 33734 | X31: 33904 | Y31: 33335
F32: Zlínský kraj | H32: CZ072 | J32: . | K32: . | L32: 27384 | M32: 26724 | N32: 26372 | O32: 26194 | P32: 26313 | Q32: 26345 | R32: 26514 | S32: 26895 | T32: 27579 | U32: 28671 | V32: 29459 | W32: 30007 | X32: 30103 | Y32: 29748
E33: Moravskoslezsko | H33: CZ08 | J33: . | K33: . | L33: 60082 | M33: 58295 | N33: 56991 | O33: 56207 | P33: 55775 | Q33: 55629 | R33: 55901 | S33: 57171 | T33: 58525 | U33: 60345 | V33: 61947 | W33: 63038 | X33: 62889 | Y33: 61715
F34: Moravskoslezský kraj | H34: CZ080 | J34: . | K34: . | L34: 60082 | M34: 58295 | N34: 56991 | O34: 56207 | P34: 55775 | Q34: 55629 | R34: 55901 | S34: 57171 | T34: 58525 | U34: 60345 | V34: 61947 | W34: 63038 | X34: 62889 | Y34: 61715
Y35: Zdroj: databáze MŠMT

Sheet B4.9
D4: Tab. B4.9: | H4: ZŠ, 2. stupeň – žáci
B5: 0 | D5: ve školním roce 2008/09 až 2018/19 – podle území
D7: Území | J7: 2003/04 | K7: 2004/05 | L7: 2005/06 | M7: 2006/07 | N7: 2007/08 | O7: 2008/09 | P7: 2009/10 | Q7: 2010/11 | R7: 2011/12 | S7: 2012/13 | T7: 2013/14 | U7: 2014/15 | V7: 2015/16 | W7: 2016/17 | X7: 2017/18 | Y7: 2018/19
J11: 1) | K11: 1)
E12: Česká republika | H12: CZ0 | J12: . | K12: . | L12: 443306 | M12: 413693 | N12: 386817 | O12: 357817 | P12: 333705 | Q12: 324106 | R12: 320315 | S12: 319844 | T12: 321671 | U12: 324533 | V12: 328823 | W12: 337222 | X12: 350409 | Y12: 367486
E13: Praha | H13: CZ01 | J13: . | K13: . | L13: 40073 | M13: 36518 | N13: 33619 | O13: 30434 | P13: 28324 | Q13: 27648 | R13: 27545 | S13: 28151 | T13: 28960 | U13: 29889 | V13: 31238 | W13: 32840 | X13: 35105 | Y13: 37773
F14: Hlavní město Praha | H14: CZ010 | J14: . | K14: . | L14: 40073 | M14: 36518 | N14: 33619 | O14: 30434 | P14: 28324 | Q14: 27648 | R14: 27545 | S14: 28151 | T14: 28960 | U14: 29889 | V14: 31238 | W14: 32840 | X14: 35105 | Y14: 37773
E15: Střední Čechy | H15: CZ02 | J15: . | K15: . | L15: 48700 | M15: 45807 | N15: 43159 | O15: 40318 | P15: 38254 | Q15: 37317 | R15: 37269 | S15: 37668 | T15: 38229 | U15: 39309 | V15: 40424 | W15: 42271 | X15: 44809 | Y15: 47927
F16: Středočeský kraj | H16: CZ020 | J16: . | K16: . | L16: 48700 | M16: 45807 | N16: 43159 | O16: 40318 | P16: 38254 | Q16: 37317 | R16: 37269 | S16: 37668 | T16: 38229 | U16: 39309 | V16: 40424 | W16: 42271 | X16: 44809 | Y16: 47927
E17: Jihozápad | H17: CZ03 | J17: . | K17: . | L17: 50929 | M17: 47467 | N17: 44727 | O17: 41687 | P17: 38554 | Q17: 37532 | R17: 37223 | S17: 37296 | T17: 37592 | U17: 37824 | V17: 38449 | W17: 39147 | X17: 40735 | Y17: 42692
F18: Jihočeský kraj | H18: CZ031 | J18: . | K18: . | L18: 27907 | M18: 25965 | N18: 24347 | O18: 22661 | P18: 21006 | Q18: 20426 | R18: 20278 | S18: 20149 | T18: 20216 | U18: 20291 | V18: 20532 | W18: 20922 | X18: 21652 | Y18: 22600
F19: Plzeňský kraj | H19: CZ032 | J19: . | K19: . | L19: 23022 | M19: 21502 | N19: 20380 | O19: 19026 | P19: 17548 | Q19: 17106 | R19: 16945 | S19: 17147 | T19: 17376 | U19: 17533 | V19: 17917 | W19: 18225 | X19: 19083 | Y19: 20092
E20: Severozápad | H20: CZ04 | J20: . | K20: . | L20: 50668 | M20: 47963 | N20: 45125 | O20: 41861 | P20: 39053 | Q20: 37641 | R20: 37032 | S20: 37083 | T20: 37146 | U20: 37337 | V20: 37795 | W20: 38364 | X20: 39562 | Y20: 41071
F21: Karlovarský kraj | H21: CZ041 | J21: . | K21: . | L21: 13207 | M21: 12434 | N21: 11664 | O21: 10800 | P21: 10034 | Q21: 9535 | R21: 9293 | S21: 9246 | T21: 9229 | U21: 9208 | V21: 9231 | W21: 9220 | X21: 9451 | Y21: 9945
F22: Ústecký kraj | H22: CZ042 | J22: . | K22: . | L22: 37461 | M22: 35529 | N22: 33461 | O22: 31061 | P22: 29019 | Q22: 28106 | R22: 27739 | S22: 27837 | T22: 27917 | U22: 28129 | V22: 28564 | W22: 29144 | X22: 30111 | Y22: 31126
E23: Severovýchod | H23: CZ05 | J23: . | K23: . | L23: 66976 | M23: 62868 | N23: 58806 | O23: 54638 | P23: 51138 | Q23: 50230 | R23: 49784 | S23: 49529 | T23: 49626 | U23: 49411 | V23: 49791 | W23: 50694 | X23: 52155 | Y23: 54685
F24: Liberecký kraj | H24: CZ051 | J24: . | K24: . | L24: 19488 | M24: 18190 | N24: 17141 | O24: 15947 | P24: 14892 | Q24: 14684 | R24: 14551 | S24: 14575 | T24: 14716 | U24: 14788 | V24: 14942 | W24: 15284 | X24: 15551 | Y24: 16298
F25: Královéhradecký kraj | H25: CZ052 | J25: . | K25: . | L25: 24502 | M25: 23072 | N25: 21605 | O25: 20014 | P25: 18710 | Q25: 18343 | R25: 18025 | S25: 17934 | T25: 17929 | U25: 17808 | V25: 18037 | W25: 18307 | X25: 18972 | Y25: 19908
F26: Pardubický kraj | H26: CZ053 | J26: . | K26: . | L26: 22986 | M26: 21606 | N26: 20060 | O26: 18677 | P26: 17536 | Q26: 17203 | R26: 17208 | S26: 17020 | T26: 16981 | U26: 16815 | V26: 16812 | W26: 17103 | X26: 17632 | Y26: 18479
E27: Jihovýchod | H27: CZ06 | J27: . | K27: . | L27: 72859 | M27: 68253 | N27: 63794 | O27: 58709 | P27: 54415 | Q27: 52546 | R27: 51749 | S27: 51324 | T27: 51456 | U27: 51818 | V27: 52162 | W27: 53788 | X27: 55536 | Y27: 57985
F28: Kraj Vysočina | H28: CZ063 | J28: . | K28: . | L28: 24307 | M28: 22726 | N28: 21487 | O28: 19743 | P28: 18403 | Q28: 17801 | R28: 17338 | S28: 17026 | T28: 16777 | U28: 16818 | V28: 16739 | W28: 17181 | X28: 17476 | Y28: 18097
F29: Jihomoravský kraj | H29: CZ064 | J29: . | K29: . | L29: 48552 | M29: 45527 | N29: 42307 | O29: 38966 | P29: 36012 | Q29: 34745 | R29: 34411 | S29: 34298 | T29: 34679 | U29: 35000 | V29: 35423 | W29: 36607 | X29: 38060 | Y29: 39888
E30: Střední Morava | H30: CZ07 | J30: . | K30: . | L30: 55005 | M30: 51225 | N30: 47560 | O30: 44005 | P30: 40907 | Q30: 39589 | R30: 38963 | S30: 38844 | T30: 39050 | U30: 39216 | V30: 39393 | W30: 39896 | X30: 41149 | Y30: 42620
F31: Olomoucký kraj | H31: CZ071 | J31: . | K31: . | L31: 28087 | M31: 26133 | N31: 24249 | O31: 22347 | P31: 20763 | Q31: 20118 | R31: 19686 | S31: 19556 | T31: 19691 | U31: 19764 | V31: 19986 | W31: 20492 | X31: 21145 | Y31: 21957
F32: Zlínský kraj | H32: CZ072 | J32: . | K32: . | L32: 26918 | M32: 25092 | N32: 23311 | O32: 21658 | P32: 20144 | Q32: 19471 | R32: 19277 | S32: 19288 | T32: 19359 | U32: 19452 | V32: 19407 | W32: 19404 | X32: 20004 | Y32: 20663
E33: Moravskoslezsko | H33: CZ08 | J33: . | K33: . | L33: 58096 | M33: 53592 | N33: 50027 | O33: 46165 | P33: 43060 | Q33: 41603 | R33: 40750 | S33: 39949 | T33: 39612 | U33: 39729 | V33: 39571 | W33: 40222 | X33: 41358 | Y33: 42733
F34: Moravskoslezský kraj | H34: CZ080 | J34: . | K34: . | L34: 58096 | M34: 53592 | N34: 50027 | O34: 46165 | P34: 43060 | Q34: 41603 | R34: 40750 | S34: 39949 | T34: 39612 | U34: 39729 | V34: 39571 | W34: 40222 | X34: 41358 | Y34: 42733
Y35: Zdroj: databáze MŠMT

Sheet B4.10
D4: Tab. B4.10: | H4: ZŠ – zdravotně postižení a znevýhodnění žáci
B5: 6 | D5: ve školním roce 2008/09 až 2018/19
J7: 2003/04 | K7: 2004/05 | L7: 2005/06 | M7: 2006/07 | N7: 2007/08 | O7: 2008/09 | P7: 2009/10 | Q7: 2010/11 | R7: 2011/12 | S7: 2012/13 | T7: 2013/14 | U7: 2014/15 | V7: 2015/16 | W7: 2016/17 | X7: 2017/18 | Y7: 2018/19
J11: 1) | K11: 1)
E12: Zdravotně postižení a znevýhodnění žáci celkem | J12: 99386 | K12: 96263 | L12: 89527 | M12: 82080 | N12: 76294 | O12: 72854 | P12: 71801 | Q12: 70723 | R12: 71791 | S12: 72110 | T12: 73629 | U12: 75848 | V12: 78717 | W12: 81644 | X12: 95631 | Y12: 101983
E13: v tom | F13: ve speciálních třídách | J13: 46268 | K13: 45006 | L13: 43971 | M13: 42098 | N13: 40209 | O13: 38504 | P13: 37040 | Q13: 34497 | R13: 32631 | S13: 31222 | T13: 30277 | U13: 29995 | V13: 29492 | W13: 28438 | X13: 27212 | Y13: 25946
F14: individ. integrovaní žáci v běžných třídách ZŠ | J14: 53550 | K14: 51587 | L14: 45556 | M14: 39982 | N14: 36085 | O14: 34350 | P14: 34761 | Q14: 36226 | R14: 39160 | S14: 40888 | T14: 43352 | U14: 45853 | V14: 49225 | W14: 53206 | X14: 68419 | Y14: 76037
D15: Podíly na celkovém počtu žáků základních škol
E16: Zdravotně postižení a znevýhodnění žáci celkem | J16: 0.09958257601 | K16: 0.1004620107 | L16: 0.09767558574 | M16: 0.09364379079 | N16: 0.0903033983 | O16: 0.08928022156 | P16: 0.09037722526 | Q16: 0.09037722526 | R16: 0.09034382779 | S16: 0.09037722526 | T16: 0.0889610876 | U16: 0.09037722526 | V16: 0.08942562974 | W16: 0.09009609485 | X16: 0.1032611747 | Y16: 0.1083855513
E17: Žáci ve speciálních třídách ZŠ | J17: 0.04635951368 | K17: 0.04696917042 | L17: 0.04797316095 | M17: 0.04802895108 | N17: 0.04759233154 | O17: 0.04718540713 | P17: 0.04662292201 | Q17: 0.04369551835 | R17: 0.04106377463 | S17: 0.03864348041 | T17: 0.03658171168 | U17: 0.03511731725 | V17: 0.03350408009 | W17: 0.03138200903 | X17: 0.02938318209 | Y17: 0.02757490477
E18: Individuálně integrovaní žáci v běžných třídách ZŠ | J18: 0.05365591678 | K18: 0.05383723491 | L18: 0.04970242479 | M18: 0.04561483971 | N18: 0.04271106676 | O18: 0.04209481443 | P18: 0.04375430324 | Q18: 0.04588555085 | R18: 0.04928005316 | S18: 0.05060709202 | T18: 0.05237937592 | U18: 0.05368342549 | V18: 0.05592154965 | W18: 0.05871408582 | X18: 0.07387799263 | Y18: 0.08081064651
Y19: Zdroj: databáze MŠMT

Sheet B4.11
D4: Tab. B4.10: | H4: Základní vzdělávání – výdaje na základní vzdělávání, školní družiny a kluby
D5: v letech 2008 až 2018
Y6: v tis. Kč
J7: 2003 | K7: 2004 | L7: 2005 | M7: 2006 | N7: 2007 | O7: 2008 | P7: 2009 | Q7: 2010 | R7: 2011 | S7: 2012 | T7: 2013 | U7: 2014 | V7: 2015 | W7: 2016 | X7: 2017 | Y7: 2018
D12: Výdaje na základní vzdělávání, včetně výdajů na školní družiny a kluby z rozpočtů kapitol 333-MŠMT; 700-Obce a DSO, KÚ
E13: Celkem | J13: 42706822.96 | K13: 44864168.16 | L13: 43971260.39 | M13: 48144181.83 | N13: 47863098.51 | O13: 49541859.35 | P13: 54102939.06 | Q13: 52339033.77 | R13: 54542157.14 | S13: 54540073.77 | T13: 54562217.84 | U13: 58180003.54 | V13: =V14+V15 -> 59503720.16 | W13: =W14+W15 -> 61099942.15 | X13: =X14+X15 -> 71149358.8 | Y13: =Y14+Y15 -> 85221933.34
E14: v tom | F14: neinvestiční výdaje | J14: 38432364.41 | K14: 39945496.18 | L14: 39728521.12 | M14: 42125815.67 | N14: 43442519.39 | O14: 44280443.47 | P14: 47029450.39 | Q14: 45850585.33 | R14: 48215748.12 | S14: 48903601.16 | T14: 49331533 | U14: 50985772 | V14: =V26+V38 -> 52845853.81 | W14: 56965920.11 | X14: =X26+X38 -> 65035339.21 | Y14: =Y26+Y38 -> 75547952.54
F15: investiční výdaje | J15: 4274458.55 | K15: 4918671.98 | L15: 4242739.27 | M15: 6018366.16 | N15: 4420579.12 | O15: 5261415.88 | P15: 7073488.67 | Q15: 6488448.44 | R15: 6326409.018 | S15: 4078488.71 | T15: 5230684.834 | U15: 7194231.536 | V15: 6657866.353 | W15: 4134022.036 | X15: =X27+X39 -> 6114019.597 | Y15: =Y27+Y39 -> 9673980.805
E16: v % | F16: neinvestiční výdaje | J16: 0.8999115773 | K16: 0.8903652473 | L16: 0.9035110835 | M16: 0.8749928666 | N16: 0.9076411838 | O16: 0.8937985786 | P16: 0.8692586985 | Q16: 0.8760304122 | R16: 0.8840088227 | S16: 0.896654474 | T16: 0.9041335737 | U16: 0.8763452888 | V16: =V14/V13 -> 0.8881100823 | W16: =W14/W13 -> 0.9323400008 | X16: =X14/X13 -> 0.9140678188 | Y16: =Y14/Y13 -> 0.886484847
F17: investiční výdaje | J17: 0.1000884227 | K17: 0.1096347527 | L17: 0.09648891645 | M17: 0.1250071334 | N17: 0.09235881624 | O17: 0.1062014214 | P17: 0.1307413015 | Q17: 0.1239695878 | R17: 0.1159911773 | S17: 0.07477966985 | T17: 0.09586642629 | U17: 0.1236547112 | V17: =V15/V13 -> 0.1118899177 | W17: =W15/W13 -> 0.06765999919 | X17: =X15/X13 -> 0.08593218125 | Y17: =Y15/Y13 -> 0.113515153
D18: z toho výdaje na školní družiny a kluby z rozpočtů kapitol 333-MŠMT; 700-Obce a DSO, KÚ2)
E19: Celkem | J19: 334676.44 | K19: 330625.88 | L19: 988302.43 | M19: 1054073.36 | N19: 1141084.39 | O19: 1208348.88 | P19: 1267055.24 | Q19: 1309002.71 | R19: 1186092.66 | S19: 1230620.93 | T19: 1281213.707 | U19: 1355401.945 | V19: =V20+V21 -> 1432613.483 | W19: =W20+W21 -> 1563672.2 | X19: =X20+X21 -> 1752015.327 | Y19: 2018255.58
E20: v tom | F20: neinvestiční výdaje | J20: 333732.83 | K20: 330091.85 | L20: 985393.89 | M20: 1053615.17 | N20: 1135836.74 | O20: 1204088.64 | P20: 1263686.94 | Q20: 1309002.71 | R20: 1185085.73 | S20: 1225126.63 | T20: 1276484.94 | U20: 1349138.551 | V20: =V32+V44 -> 1427136.563 | W20: 1560654.153 | X20: =X32+X44 -> 1751597.612 | Y20: 2018169.877
F21: investiční výdaje | J21: 943.61 | K21: 534.03 | L21: 2908.54 | M21: 458.19 | N21: 5247.65 | O21: 4260.24 | P21: 3368.3 | Q21: 0 | R21: 1006.93 | S21: 5494.3 | T21: 4728.76756 | U21: 6263.39374 | V21: 5476.92 | W21: 3018.0465 | X21: =X33+X45 -> 417.7155 | Y21: 85.703
E22: v % | F22: neinvestiční výdaje | J22: 0.9971805305 | K22: 0.9983847907 | L22: 0.9970570345 | M22: 0.9995653149 | N22: 0.9954011727 | O22: 0.9964743295 | P22: 0.9973416313 | Q22: 1 | R22: 0.9991510528 | S22: 0.9955353433 | T22: 0.99630915 | U22: 0.99537894 | V22: =V20/V19 -> 0.996176973 | W22: =W20/W19 -> 0.9980698982 | X22: =X20/X19 -> 0.99976158 | Y22: 0.9999575361
F23: investiční výdaje | J23: 0.002819469455 | K23: 0.001615209312 | L23: 0.002942965545 | M23: 0.0004346851153 | N23: 0.004620074184 | O23: 0.003538144833 | P23: 0.002665454468 | Q23: 0 | R23: 0.000848947164 | S23: 0.004464656716 | T23: 0.003690849959 | U23: 0.004621060022 | V23: =V21/V19 -> 0.003823026982 | W23: =W21/W19 -> 0.001930101782 | X23: =X21/X19 -> 0.0002384200033 | Y23: 4.246389845e-05
D24: Výdaje na základní vzdělávání z rozpočtu kapitoly 333-MŠMT, včetně výdajů na školní družiny a kluby
E25: Celkem | J25: 411864.25 | K25: 491081.32 | L25: 577035.99 | M25: 532480.97 | N25: 515278.57 | O25: 513350.51 | P25: 556134.98 | Q25: 1198035.03 | R25: 2381504.437 | S25: 2207389.951 | T25: 892031.8869 | U25: 810190.7225 | V25: =V26+V27 -> 785142.3129 | W25: =W26+W27 -> 879549.7188 | X25: =X26+X27 -> 2683565.485 | Y25: 2830630.042
E26: v tom | F26: neinvestiční výdaje | J26: 374454 | K26: 416800.43 | L26: 466813.31 | M26: 483061.97 | N26: 496004.41 | O26: 512142 | P26: 555992.18 | Q26: 1192006.37 | R26: 2374716.569 | S26: 2205733.311 | T26: 892031.8869 | U26: 808155.1045 | V26: 765243.22 | W26: 856136.4548 | X26: 2680397.964 | Y26: 2809613.755
F27: investiční výdaje | J27: 37410.25 | K27: 74280.89 | L27: 110222.68 | M27: 49419 | N27: 19274.16 | O27: 1208.51 | P27: 142.8 | Q27: 6028.66 | R27: 6787.868 | S27: 1656.64 | T27: 0 | U27: 2035.618 | V27: 19899.09292 | W27: 23413.264 | X27: 3167.521 | Y27: 21016.287
E28: v % | F28: neinvestiční výdaje | J28: 0.9091684942 | K28: 0.8487401435 | L28: 0.8089847394 | M28: 0.9071910495 | N28: 0.9625946796 | O28: 0.9976458385 | P28: 0.9997432278 | Q28: 0.9949678767 | R28: 0.9971497563 | S28: 0.9992495028 | T28: 1 | U28: 0.997487483 | V28: =V26/V25 -> 0.9746554318 | W28: =W26/W25 -> 0.9733803974 | X28: =X26/X25 -> 0.9988196595 | Y28: 0.9925754031
F29: investiční výdaje | J29: 0.09083150577 | K29: 0.1512598565 | L29: 0.1910152606 | M29: 0.09280895052 | N29: 0.03740532039 | O29: 0.002354161487 | P29: 0.0002567721958 | Q29: 0.005032123309 | R29: 0.002850243693 | S29: 0.0007504972102 | T29: 0 | U29: 0.002512517045 | V29: =V27/V25 -> 0.02534456823 | W29: =W27/W25 -> 0.02661960262 | X29: =X27/X25 -> 0.00118034049 | Y29: 0.007424596887
D30: z toho výdaje na školní družiny a kluby z rozpočtu kapitoly 333-MŠMT2)
E31: Celkem | J31: 12465 | K31: 12862 | L31: 17134 | M31: 20144 | N31: 29187 | O31: 33150 | P31: 38107 | Q31: 43832 | R31: 52146 | S31: 64520 | T31: 62067 | U31: 79419 | V31: =V32+V33 -> 87165 | W31: =W32+W33 -> 95823.254 | X31: =X32+X33 -> 108720.727 | Y31: =Y32+Y33 -> 128792.747
E32: v tom | F32: neinvestiční výdaje | J32: 12465 | K32: 12862 | L32: 17134 | M32: 20144 | N32: 29187 | O32: 33150 | P32: 38107 | Q32: 43832 | R32: 52146 | S32: 64520 | T32: 62067 | U32: 79419 | V32: 87165 | W32: 95823.254 | X32: 108720.727 | Y32: 128792.747
F33: investiční výdaje | J33: 0 | K33: 0 | L33: 0 | M33: 0 | N33: 0 | O33: 0 | P33: 0 | Q33: 0 | R33: 0 | S33: 0 | T33: 0 | U33: 0 | V33: 0 | W33: 0 | X33: 0 | Y33: 0
E34: v % | F34: neinvestiční výdaje | J34: 1 | K34: 1 | L34: 1 | M34: 1 | N34: 1 | O34: 1 | P34: 1 | Q34: 1 | R34: 1 | S34: 1 | T34: 1 | U34: 1 | V34: =V32/V31 -> 1 | W34: =W32/W31 -> 1 | X34: =X32/X31 -> 1 | Y34: =Y32/Y31 -> 1
F35: investiční výdaje | J35: 0 | K35: 0 | L35: 0 | M35: 0 | N35: 0 | O35: 0 | P35: 0 | Q35: 0 | R35: 0 | S35: 0 | T35: 0 | U35: 0 | V35: =V33/V31 -> 0 | W35: =W33/W31 -> 0 | X35: =X33/X31 -> 0 | Y35: =Y33/Y31 -> 0
D36: Výdaje na základní vzdělávání, včetně výdajů na školní družiny a kluby z rozpočtu kapitoly 700-Obce a DSO, KÚ4)
E37: Celkem | J37: 42294958.71 | K37: 44373086.84 | L37: 43394224.4 | M37: 47611700.86 | N37: 47347819.94 | O37: 49028508.84 | P37: 53552974.7 | Q37: 51755611.59 | R37: 53921799.37 | S37: 52332683.82 | T37: 53670185.95 | U37: 57369812.82 | V37: =V38+V39 -> 58718577.85 | W37: =W38+W39 -> 60220392.43 | X37: =X38+X39 -> 68465793.32 | Y37: 82391303.3
E38: v tom | F38: neinvestiční výdaje | J38: 38057910.41 | K38: 39528695.75 | L38: 39261707.81 | M38: 41642753.7 | N38: 42946514.98 | O38: 43768301.47 | P38: 46479628.83 | Q38: 45272666.5 | R38: 47602178.22 | S38: 48254821.75 | T38: 48439501.12 | U38: 50177616.9 | V38: 52080610.59 | W38: 56109783.66 | X38: 62354941.24 | Y38: 72738338.78
F39: investiční výdaje | J39: 4237048.3 | K39: 4844391.09 | L39: 4132516.59 | M39: 5968947.16 | N39: 4401304.96 | O39: 5260207.37 | P39: 7073345.87 | Q39: 6482945.09 | R39: 6319621.15 | S39: 4077862.07 | T39: 5230684.834 | U39: 7192195.918 | V39: 6637967.26 | W39: 4110608.772 | X39: 6110852.076 | Y39: 9652964.518
E40: v % | F40: neinvestiční výdaje | J40: 0.8998214343 | K40: 0.8908259165 | L40: 0.9047680504 | M40: 0.8746327677 | N40: 0.9070431339 | O40: 0.8927112512 | P40: 0.8679187121 | Q40: 0.8747392816 | R40: 0.8828002547 | S40: 0.9220781016 | T40: 0.9025402141 | U40: 0.8746344887 | V40: =V38/V37 -> 0.8869528605 | W40: =W38/W37 -> 0.9317405848 | X40: =X38/X37 -> 0.91074591 | Y40: 0.882840007
F41: investiční výdaje | J41: 0.1001785657 | K41: 0.1091740835 | L41: 0.09523194958 | M41: 0.1253672323 | N41: 0.09295686614 | O41: 0.1072887488 | P41: 0.1320812879 | Q41: 0.1252607184 | R41: 0.1171997453 | S41: 0.07792189837 | T41: 0.09745978594 | U41: 0.1253655113 | V41: =V39/V37 -> 0.1130471395 | W41: =W39/W37 -> 0.06825941523 | X41: =X39/X37 -> 0.08925408995 | Y41: 0.117159993
D42: z toho výdaje na školní družiny a kluby z rozpočtu kapitoly 700-Obce a DSO, KÚ2,4)
E43: Celkem | J43: 322211.44 | K43: 317763.88 | L43: 971168.43 | M43: 1033929.36 | N43: 1111897.39 | O43: 1175198.88 | P43: 1228948.24 | Q43: 1265170.71 | R43: 1133946.66 | S43: 1166100.93 | T43: 1219146.707 | U43: 1275982.945 | V43: =V44+V45 -> 1345448.483 | W43: =W44+W45 -> 1467848.946 | X43: =X44+X45 -> 1643294.6 | Y43: 1889462.833
E44: v tom | F44: neinvestiční výdaje | J44: 321267.83 | K44: 317229.85 | L44: 968259.89 | M44: 1033471.17 | N44: 1106649.74 | O44: 1170938.64 | P44: 1225579.94 | Q44: 1265170.71 | R44: 1132939.73 | S44: 1160606.63 | T44: 1214417.94 | U44: 1269719.551 | V44: 1339971.563 | W44: 1464830.899 | X44: 1642876.885 | Y44: 1889377.13
F45: investiční výdaje | J45: 943.61 | K45: 534.03 | L45: 2908.54 | M45: 458.19 | N45: 5247.65 | O45: 4260.24 | P45: 3368.3 | Q45: 0 | R45: 1006.93 | S45: 5494.3 | T45: 4728.76756 | U45: 6263.39374 | V45: 5476.92 | W45: 3018.0465 | X45: 417.7155 | Y45: 85.703
E46: v % | F46: neinvestiční výdaje | J46: 0.9970714572 | K46: 0.9983194125 | L46: 0.9970051127 | M46: 0.9995568459 | N46: 0.9952804548 | O46: 0.9963748774 | P46: 0.9972592011 | Q46: 1 | R46: 0.9991120129 | S46: 0.9952883152 | T46: 0.9961212481 | U46: 0.9950913186 | V46: =V44/V43 -> 0.9959292979 | W46: =W44/W43 -> 0.9979438984 | X46: =X44/X43 -> 0.9997458061 | Y46: 0.9999546416
F47: investiční výdaje | J47: 0.002928542823 | K47: 0.001680587485 | L47: 0.002994887303 | M47: 0.0004431540662 | N47: 0.004719545209 | O47: 0.003625122584 | P47: 0.002740798913 | Q47: 0 | R47: 0.0008879870946 | S47: 0.004711684777 | T47: 0.003878751861 | U47: 0.004908681394 | V47: =V45/V43 -> 0.004070702126 | W47: =W45/W43 -> 0.002056101555 | X47: =X45/X43 -> 0.0002541939224 | Y47: 4.535839419e-05
D48: Podíl výdajů na základní vzdělávání (včetně školních družin a klubů) na celkových výdajích na školství a podíl na HDP
E49: Výdaje na školství celkem v mld. Kč1),3) | J49: 114.2477725 | K49: 121.3480397 | L49: 128.5541745 | M49: 141.2484394 | N49: 151.5849897 | O49: 149.7997268 | P49: 162.803504 | Q49: 161.8748019 | R49: 172.7687959 | S49: 170.3742654 | T49: 171.7249628 | U49: 177.5906341 | V49: 181.6089812 | W49: 172.2724 | X49: 193.6421335 | Y49: 221.5246672
E50: Podíl výdajů na ZŠ na celk. výdajích | J50: =J13/J49/1000000 -> 0.3738088019 | K50: =K13/K49/1000000 -> 0.369714816 | L50: 0.3420445938 | M50: 0.3408475309 | N50: 0.3157509105 | O50: 0.3307206255 | P50: 0.3323204829 | Q50: 0.323330334 | R50: =R13/R49/1000000 -> 0.3156944914 | S50: 0.3201192013 | T50: 0.3177302645 | U50: 0.3276073867 | V50: =V13/V49/1000000 -> 0.3276474531 | W50: =W13/W49/1000000 -> 0.3546705227 | X50: =X13/X49/1000000 -> 0.3674270548 | Y50: 0.3847062921
F51: z toho výdaje na družiny a kluby | J51: =J19/J49/1000000 -> 0.00292939138 | K51: =K19/K49/1000000 -> 0.002724608332 | L51: 0.007687828373 | M51: 0.007462548713 | N51: 0.007527687222 | O51: 0.008066429129 | P51: 0.007782727085 | Q51: 0.008086513122 | R51: =R19/R49/1000000 -> 0.006865201867 | S51: 0.00722304467 | T51: 0.007460847199 | U51: 0.007632170197 | V51: =V19/V49/1000000 -> 0.007888450633 | W51: =W19/W49/1000000 -> 0.009076742414 | X51: =X19/X49/1000000 -> 0.009047696878 | Y51: =Y19/Y49/1000000 -> 0.009110748728
E52: HDP v mld. Kč v běžných cenách | J52: 2688.107 | K52: 3057.66 | L52: 3257.972 | M52: 3507.131 | N52: 3840.117 | O52: 4024.117 | P52: 3930.409 | Q52: 3962.464 | R52: 4033.755 | S52: 4059.912 | T52: 4098.128 | U52: 4313.789 | V52: 4595.783 | W52: 4773.24 | X52: 5055.029 | Y52: 5408.766
E53: Výdaje na ZŠ v % HDP | J53: =J13/J52/1000000 -> 0.01588732255 | K53: =K13/K52/1000000 -> 0.01467271317 | L53: 0.01349651267 | M53: 0.0137275117 | N53: 0.01246396881 | O53: 0.01231123731 | P53: 0.0137652186 | Q53: 0.01320870897 | R53: =R13/R52/1000000 -> 0.01352143527 | S53: 0.01419031749 | T53: 0.01404874062 | U53: 0.01363761853 | V53: =V13/V52/1000000 -> 0.01294746078 | W53: =W13/W52/1000000 -> 0.0128005175 | X53: =X13/X52/1000000 -> 0.01407496551 | Y53: =Y13/Y52/1000000 -> 0.01575626184
F54: z toho výdaje na družiny a kluby | J54: =J19/J52/1000000 -> 0.0001245026481 | K54: =K19/K52/1000000 -> 0.0001081303611 | L54: 0.0003033489637 | M54: 0.000300551465 | N54: 0.0002971483395 | O54: 0.0003002767762 | P54: 0.0003223723638 | Q54: 0.0003303506884 | R54: =R19/R52/1000000 -> 0.0002940418196 | S54: 0.0003201847835 | T54: 0.0003298883324 | U54: 0.0003177114738 | V54: =V19/V52/1000000 -> 0.0003117234828 | W54: =W19/W52/1000000 -> 0.0003275913635 | X54: =X19/X52/1000000 -> 0.0003465885808 | Y54: =Y19/Y52/1000000 -> 0.0003731452942
D55: Dotace soukromým a církevním školám na základní vzdělávání včetně výdajů na školní družiny a kluby z kapitoly 333-MŠMT
E56: Celkem | J56: 403896.202 | K56: 444863.268 | L56: 488070.9636 | M56: 556010.537 | N56: 598287.591 | O56: . | P56: . | Q56: . | R56: . | S56: . | T56: . | U56: . | V56: . | W56: . | X56: . | Y56: .
E57: v tom | F57: soukromým školám5) | J57: 242508.379 | K57: 264382.635 | L57: 282776.631 | M57: 336636.992 | N57: 354858.572 | O57: . | P57: . | Q57: . | R57: . | S57: . | T57: . | U57: . | V57: . | W57: . | X57: . | Y57: .
G58: z toho na družiny a kluby | J58: 19901.711 | K58: 20431.171 | L58: 24781.942 | M58: 23666.715 | N58: 27130.232 | O58: . | P58: . | Q58: . | R58: . | S58: . | T58: . | U58: . | V58: . | W58: . | X58: . | Y58: .
F59: církevním školám6) | J59: 161387.823 | K59: 180480.633 | L59: 205294.3326 | M59: 219373.545 | N59: 243429.019 | O59: 263323 | P59: 282743 | Q59: 300501.191 | R59: 319624.701 | S59: 342269 | T59: 368011 | U59: 390247 | V59: 417767 | W59: 449704 | X59: 523110.415 | Y59: 514832.3
G60: z toho na družiny a kluby | J60: 8575 | K60: 9374 | L60: 13280 | M60: 16145 | N60: 21975 | O60: 24685 | P60: 29402 | Q60: 33396.191 | R60: 41703.701 | S60: 43397 | T60: 49387 | U60: 67023 | V60: 72898 | W60: 80074 | X60: 91142.207 | Y60: 107502.466
D61: Komentáře: | Y61: Zdroj: Státní závěrečný účet, ZÚ - kapitola 333-MŠMT; 700-Obce a DSO, KÚ; ČSÚ; monitor.statnipokladna.cz
D62: 1) | E62: Celkové výdaje kapitoly 333-MŠMT a kapitoly 700-Obce (část vzdělávání). Nejsou zahrnuty výdaje Ministerstva obrany.
D63: 2) | E63: Zejména v roce 2004 docházelo k chybnému účtování výdajů na školní družiny a kluby do výdajů na základní školy.
D64: 3) | E64: Meziroční snížení výdajů v roce 2008 je dáno aplikací zákona č. 26/2008 Sb. a z něj vyplývajícím nepřeváděním nevyčerpaných prostředků OSS do rezervních fondů, a tudíž jejich nezahrnutím do čerpání.
D65: 4) | E65: Údaje neobsahují z daných tříd následující položky: 5321, 5323, 5329, 5344, 5345, 5349, 5366, 5367, 5641, 5642, 5649, 6341, 6342, 6349, 6441, 6442, 6449.
D66: 5) | E66: Od roku 2008 nejsou k dispozici údaje o dotacích soukromým školám v potřebném členění.
D67: 6) | E67: Jedná se o uvolněné prostředky odpovídající hodnotám, na co bylo příjemcům dotačních prostředků vystavena rozhodnutí o poskytnutí dotace a co příjemcům dotačních prostředků skutečně v součtu za všechna rozhodnutí o poskytnutí dotace v příslušném roce odešlo.

Sheet B4.12
D4: Tab. B4.12: | H4: Základní školy – struktura učitelů
D5: v letech 2011 až 2018 – podle nejvyššího dosaženého vzdělání
D7: Nejvyšší dosažené vzdělání | J7: 2011 | K7: 2012 | L7: 2013 | M7: 2014 | N7: 2015 | O7: 2016 | P7: 2017 | Q7: 2018
D12: Učitelé (bez ředitelů a zástupců ředitele/řídících pracovníků)
E13: Střední a střední vzdělání s výučním listem | J13: 0.002489962804 | K13: 0.002030047242 | L13: 0.001991534073 | M13: 0.001337370246 | N13: 0.00105855495 | O13: 0.0008607313158 | P13: 0.0009541452596 | Q13: 0.001157803313
E14: Střední vzdělání s maturitní zkouškou | J14: 0.1096541197 | K14: 0.1030846494 | L14: 0.09771980277 | M14: 0.08548130352 | N14: 0.07148191788 | O14: 0.06781396405 | P14: 0.0678336744 | Q14: 0.06666748061
E15: Vyšší odborné vzdělání | J15: 0.03561723562 | K15: 0.03060646237 | L15: 0.02488217614 | M15: 0.01999066847 | N15: 0.01773533573 | O15: 0.01487697927 | P15: 0.01358779611 | Q15: 0.01325998377
E16: Vysokoškolské – bakalářské | J16: 0.02609109166 | K16: 0.02797902488 | L16: 0.02959980194 | M16: 0.03037090438 | N16: 0.03062966903 | O16: 0.03267300407 | P16: 0.03593715445 | Q16: 0.03787162446
E17: Vysokoškolské – magisterské | J17: 0.8196546679 | K17: 0.8288635354 | L17: 0.8382101847 | M17: 0.8556994774 | N17: 0.8713096885 | O17: 0.875920077 | P17: 0.8737685372 | Q17: 0.8726463305
E18: Vysokoškolské – doktorské | J18: 0.006492922359 | K18: 0.00743628072 | L18: 0.007596500369 | M18: 0.007120276019 | N18: 0.007784833934 | O18: 0.007855223804 | P18: 0.007918692529 | Q18: 0.008396777328
D19: Komentáře: | Q19: Zdroj: databáze MŠMT

Sheet B4.13
D4: Tab. B4.13: | H4: Základní školy – struktura učitelů
D5: v letech 2011 až 2018 – podle věku
D7: Věk | J7: 2011 | K7: 2012 | L7: 2013 | M7: 2014 | N7: 2015 | O7: 2016 | P7: 2017 | Q7: 2018
D12: Učitelé (bez ředitelů a zástupců ředitele/řídících pracovníků)
E13: do 24 let | J13: 0.009109604246 | K13: 0.006953792798 | L13: 0.005836103194 | M13: 0.00628815403 | N13: 0.006407132935 | O13: 0.006355602239 | P13: 0.00695010794 | Q13: 0.007580572534
E14: 25–29 let | J14: 0.08500243561 | K14: 0.07946961181 | L14: 0.07691013414 | M14: 0.07306369181 | N14: 0.07407585352 | O14: 0.07441681042 | P14: 0.07777044855 | Q14: 0.07667700679
E15: 30–34 let | J15: 0.09966916319 | K15: 0.09401263734 | L15: 0.08893208955 | M15: 0.08653968784 | N15: 0.08421761579 | O15: 0.08229461943 | P15: 0.07711881346 | Q15: 0.07603161676
E16: 35–39 let | J16: 0.1388092542 | K16: 0.1442268963 | L16: 0.1443946795 | M16: 0.1449754713 | N16: 0.1411012294 | O16: 0.1303760485 | P16: 0.1224574238 | Q16: 0.1156546991
E17: 40–44 let | J17: 0.154883208 | K17: 0.1490017553 | L17: 0.1498765503 | M17: 0.1530045 | N17: 0.1585926047 | O17: 0.1643845934 | P17: 0.1697909171 | Q17: 0.1692417965
E18: 45–49 let | J18: 0.1906408351 | K18: 0.1905181855 | L18: 0.1824631802 | M18: 0.1682745421 | N18: 0.1569035595 | O18: 0.150538373 | P18: 0.1439234029 | Q18: 0.1454429446
E19: 50–54 let | J19: 0.1499499121 | K19: 0.153467082 | L19: 0.161910739 | M19: 0.1713167993 | N19: 0.1759903092 | O19: 0.1763463374 | P19: 0.1752038858 | Q19: 0.1659692696
E20: 55–59 let | J20: 0.1303579138 | K20: 0.1351019958 | L20: 0.1368870313 | M20: 0.1381670063 | N20: 0.1349812205 | O20: 0.137960137 | P20: 0.1402414648 | Q20: 0.1471710539
E21: 60–64 let | J21: 0.03022046077 | K21: 0.03630518471 | L21: 0.04175604496 | M21: 0.04719474833 | N21: 0.0555590441 | O21: 0.06390772234 | P21: 0.06951906932 | Q21: 0.07590491173
E22: 65 a více let | J22: 0.01135723428 | K22: 0.01094285847 | L22: 0.01103346929 | M22: 0.01117542028 | N22: 0.01217143045 | O22: 0.01341975629 | P22: 0.01703046294 | Q22: 0.02032612837
Q23: Zdroj: databáze MŠMT

Sheet B4.14
D4: Tab. B4.14.: | H4: ZŠ – přepočtené počty zaměstnanců
B5: 12 | D5: v letech 2008 až 2018
D7: Zřizovatel | J7: 2003 | K7: 2004 | L7: 2005 | M7: 2006 | N7: 2007 | O7: 2008 | P7: 2009 | Q7: 2010 | R7: 2011 | S7: 2012 | T7: 2013 | U7: 2014 | V7: 2015 | W7: 2016 | X7: 2017 | Y7: 2018
D12: Všichni zřizovatelé (bez jiných resortů)
E13: Zaměstnanci celkem | J13: 87259.594 | K13: 85207.249 | L13: 83512.342 | M13: 82701.592 | N13: 82023.446 | O13: 80586.011 | P13: 79390.132 | Q13: 79060.596 | R13: 78449.15 | S13: 78210.537 | T13: 78657.622 | U13: 80204.172 | V13: 82478.382 | W13: 85045.596 | X13: 89941.204 | Y13: 94533.6493
F14: z toho učitelé1) | J14: 66965.167 | K14: 65304.272 | L14: 63782.147 | M14: 62871.136 | N14: 61933.266 | O14: 60403.918 | P14: 59183.683 | Q14: 58762.003 | R14: 58583.761 | S14: 58502.984 | T14: 58637.32 | U14: 59369.9 | V14: 60533.178 | W14: 61592.398 | X14: 63116.945 | Y14: 64631.2078
D15: Komentáře: | Y15: Zdroj: databáze MŠMT
D16: 1) | E16: Včetně vedoucích zaměstnanců.

Sheet B4.15
D4: Tab. B4.15: | H4: ZŠ – průměrné měsíční mzdy zaměstnanců
B5: 42 | D5: v letech 2008 až 2018
J7: 2003 | K7: 2004 | L7: 2005 | M7: 2006 | N7: 2007 | O7: 2008 | P7: 2009 | Q7: 2010 | R7: 2011 | S7: 2012 | T7: 2013 | U7: 2014 | V7: 2015 | W7: 2016 | X7: 2017 | Y7: 2018
D12: Všichni zřizovatelé (bez jiných resortů)
D13: Nominální mzda (v běžných cenách)
E14: Zaměstnanci celkem | J14: 16628.98072 | K14: 18046.91632 | L14: 19180.9129 | M14: 20337 | N14: 21370 | O14: 22104.96608 | P14: 23658.13023 | Q14: 22925.20907 | R14: 23883.29677 | S14: 24160.72594 | T14: 24398.54354 | U14: 24856.44268 | V14: 25513.41198 | W14: 26841.64015 | X14: 28741.28101 | Y14: 31661.8
F15: z toho učitelé1) | J15: 18645.8851 | K15: 20388.87855 | L15: 21797.41802 | M15: 23097 | N15: 24327 | O15: 25209.41617 | P15: 26807.35545 | Q15: 25802.22227 | R15: 26994.61002 | S15: 27331.91201 | T15: 27622.98414 | U15: 28151.47136 | V15: 29004.56607 | W15: 30670.78189 | X15: 33039.68345 | Y15: 36622.6
D16: Reálná mzda (ve stálých cenách roku 2015)
E17: Zaměstnanci celkem | J17: =J14/J$20*100 -> 17412.54526 | K17: 18396.44885 | L17: 19180.9129 | M17: =M14/M20*100 -> 24502.40964 | N17: 25052.75498 | O17: 24371.51718 | P17: 25799.48771 | Q17: 24650.76244 | R17: 25193.35103 | S17: 24678.98461 | T17: 24570.5373 | U17: 24931.23639 | V17: 25513.41198 | W17: =W14/W20*100 -> 26655.05477 | X17: =X14/X20*100 -> 27877.09118 | Y17: =Y14/Y20*100 -> 30068.18613
F18: z toho učitelé | J18: 19524.48702 | K18: 20783.77019 | L18: 21797.41802 | M18: =M15/M20*100 -> 27827.71084 | N18: 28519.34349 | O18: 27794.28465 | P18: 29233.75731 | Q18: 27744.32502 | R18: 28475.32702 | S18: 27918.19409 | T18: 27817.7081 | U18: 28236.1799 | V18: 29004.56607 | W18: =W15/W20*100 -> 30457.57884 | X18: =X15/X20*100 -> 32046.24971 | Y18: =Y15/Y20*100 -> 34779.29725
D19: Index spotřebitelských cen a meziroční inflace
E20: Index spotřebitelských cen (rok 2015 = 100) | J20: 95.5 | K20: 98.1 | L20: 100 | M20: 83 | N20: 85.3 | O20: 90.7 | P20: 91.7 | Q20: 93 | R20: 94.8 | S20: 97.9 | T20: 99.3 | U20: 99.7 | V20: 100 | W20: 100.7 | X20: 103.1 | Y20: 105.3
E21: Meziroční inflace | J21: 0.001 | K21: 0.028 | L21: 0.019 | M21: 0.025 | N21: 0.028 | O21: 0.063 | P21: 0.01 | Q21: 0.015 | R21: 0.019 | S21: 0.033 | T21: 0.014 | U21: 0.004 | V21: 0.003 | W21: 0.007 | X21: 0.025 | Y21: 0.021
D22: Komentáře: | Y22: Zdroj: databáze MŠMT, ČSÚ
D23: 1) | E23: Včetně vedoucích zaměstnanců.

Sheet B4.16
D4: Tab. B4.16: | H4: ZŠ – žáci, kteří odešli ze základní školy
B5: 12 | D5: ve školním roce 2008/09 až 2018/19
J7: 2003/04 | K7: 2004/05 | L7: 2005/06 | M7: 2006/07 | N7: 2007/08 | O7: 2008/09 | P7: 2009/10 | Q7: 2010/11 | R7: 2011/12 | S7: 2012/13 | T7: 2013/14 | U7: 2014/15 | V7: 2015/16 | W7: 2016/17 | X7: 2017/18 | Y7: 2018/19
J11: 1)
D12: Žáci, kteří ukončili školní docházku
E13: 1.–10. ročník celkem1) | J13: 118500 | K13: 114788 | L13: 117921 | M13: 110210 | N13: 109011 | O13: 102361 | P13: 88590 | Q13: 82237 | R13: 78874 | S13: 78247 | T13: 78946 | U13: 79515 | V13: 79481 | W13: 80803 | X13: 82091 | Y13: .
F14: z toho dívky | J14: 57197 | K14: 55172 | L14: 56609 | M14: 52415 | N14: 52243 | O14: 48671 | P14: 41843 | Q14: 39130 | R14: 37601 | S14: 37539 | T14: 37916 | U14: 37944 | V14: 37999 | W14: 38833 | X14: 39497 | Y14: .
E15: 1.–7. ročník1) | J15: 2550 | K15: 1867 | L15: 1086 | M15: 934 | N15: 889 | O15: 889 | P15: 782 | Q15: 670 | R15: 612 | S15: 582 | T15: 658 | U15: 686 | V15: 786 | W15: 793 | X15: 767 | Y15: .
F16: z toho dívky | J16: 1066 | K16: 701 | L16: 430 | M16: 400 | N16: 353 | O16: 351 | P16: 287 | Q16: 263 | R16: 229 | S16: 241 | T16: 238 | U16: 280 | V16: 323 | W16: 325 | X16: 312 | Y16: .
E17: 8. ročník | J17: 4143 | K17: 3768 | L17: 4236 | M17: 3631 | N17: 3747 | O17: 3942 | P17: 3711 | Q17: 3182 | R17: 3192 | S17: 2933 | T17: 3163 | U17: 3113 | V17: 3192 | W17: 3241 | X17: 3187 | Y17: .
F18: z toho dívky | J18: 1399 | K18: 1327 | L18: 1504 | M18: 1199 | N18: 1266 | O18: 1301 | P18: 1240 | Q18: 1190 | R18: 1123 | S18: 1054 | T18: 1208 | U18: 1154 | V18: 1242 | W18: 1282 | X18: 1230 | Y18: .
E19: 9.–10. ročník | J19: 111807 | K19: 109153 | L19: 112599 | M19: 105645 | N19: 104375 | O19: 97530 | P19: 84097 | Q19: 78385 | R19: 75070 | S19: 74732 | T19: 75125 | U19: 75716 | V19: 75429 | W19: 76627 | X19: 78033 | Y19: .
F20: z toho dívky | J20: 54558 | K20: 53144 | L20: 54675 | M20: 51216 | N20: 50624 | O20: 47019 | P20: 40316 | Q20: 37677 | R20: 36249 | S20: 36244 | T20: 36470 | U20: 36510 | V20: 36392 | W20: 37154 | X20: 37903 | Y20: .
E21: Nezařazení do ročníku | J21: 111807 | K21: 109153 | L21: 112599 | M21: . | N21: . | O21: . | P21: . | Q21: . | R21: . | S21: . | T21: . | U21: . | V21: 74 | W21: 142 | X21: 104 | Y21: .
F22: z toho dívky | J22: 54558 | K22: 53144 | L22: 54675 | M22: . | N22: . | O22: . | P22: . | Q22: . | R22: . | S22: . | T22: . | U22: . | V22: 42 | W22: 72 | X22: 52 | Y22: .
D23: Odchody do víceletých středních škol a osmiletých konzervatoří
E24: Celkem | J24: 11195 | K24: 11953 | L24: 11562 | M24: 11589 | N24: 11253 | O24: 11180 | P24: 10945 | Q24: 9380 | R24: 9229 | S24: 9677 | T24: 9722 | U24: 10022 | V24: 10395 | W24: 10539 | X24: 10580 | Y24: .
E25: z toho dívky | J25: 6193 | K25: 6672 | L25: 6429 | M25: 6427 | N25: 6342 | O25: 6155 | P25: 5900 | Q25: 5053 | R25: 4850 | S25: 5186 | T25: 5186 | U25: 5570 | V25: 5725 | W25: 5806 | X25: 5638 | Y25: .
D26: Komentáře: | Y26: Zdroj: databáze MŠMT
D27: 1) | E27: Bez žáků, kteří odešli do víceletých středních škol a osmiletých konzervatoří.

Sheet B4.17
D4: Tab. B4.17: | H4: ZŠ – žáci – podle ročníků
B5: 0 | D5: ve školním roce 2008/09 až 2018/19
J7: 2003/04 | K7: 2004/05 | L7: 2005/06 | M7: 2006/07 | N7: 2007/08 | O7: 2008/09 | P7: 2009/10 | Q7: 2010/11 | R7: 2011/12 | S7: 2012/13 | T7: 2013/14 | U7: 2014/15 | V7: 2015/16 | W7: 2016/17 | X7: 2017/18 | Y7: 2018/19
J11: 1) | K11: 1)
E12: Žáci celkem | J12: 998026 | K12: 958203 | L12: 916575 | M12: 876513 | N12: 844863 | O12: 816015 | P12: 794459 | Q12: 789486 | R12: 794642 | S12: 807950 | T12: 827654 | U12: 854137 | V12: 880251 | W12: 906188 | X12: 926108 | Y12: 940928
E13: Žáci na 1. stupni1) | J13: . | K13: . | L13: 473269 | M13: 462820 | N13: 458046 | O13: 458198 | P13: 460754 | Q13: 465380 | R13: 474327 | S13: 488106 | T13: 505983 | U13: 529604 | V13: 551428 | W13: 568966 | X13: 575699 | Y13: 573442
E14: v tom | F14: 1. ročník | J14: . | K14: . | L14: 92885 | M14: 92673 | N14: 92437 | O14: 93633 | P14: 94804 | Q14: 96517 | R14: 101583 | S14: 106698 | T14: 111880 | U14: 118549 | V14: 118011 | W14: 118335 | X14: 113042 | Y14: 109209
F15: 2. ročník | J15: . | K15: . | L15: 90779 | M15: 91408 | N15: 91359 | O15: 91198 | P15: 92253 | Q15: 93561 | R15: 95316 | S15: 100276 | T15: 105279 | U15: 110428 | V15: 117139 | W15: 116916 | X15: 117062 | Y15: 111950
F16: 3. ročník | J16: . | K16: . | L16: 92054 | M16: 90483 | N16: 91284 | O16: 91133 | P16: 90919 | Q16: 92131 | R16: 93561 | S16: 94942 | T16: 99903 | U16: 105139 | V16: 110319 | W16: 117110 | X16: 116862 | Y16: 117044
F17: 4. ročník | J17: . | K17: . | L17: 95930 | M17: 91905 | N17: 90418 | O17: 91155 | P17: 91084 | Q17: 90883 | R17: 92102 | S17: 93442 | T17: 94878 | U17: 99879 | V17: 105176 | W17: 110427 | X17: 117320 | Y17: 116992
F18: 5. ročník | J18: . | K18: . | L18: 101040 | M18: 95732 | N18: 91885 | O18: 90461 | P18: 91020 | Q18: 91090 | R18: 90894 | S18: 91996 | T18: 93293 | U18: 94901 | V18: 100083 | W18: 105363 | X18: 110606 | Y18: 117431
F19: 6. ročník | J19: . | K19: . | L19: 581 | M19: 619 | N19: 663 | O19: 618 | P19: 674 | Q19: 1198 | R19: 871 | S19: 752 | T19: 750 | U19: 708 | V19: 700 | W19: 815 | X19: 807 | Y19: 816
E20: Žáci na 2. stupni2) | J20: . | K20: . | L20: 443306 | M20: 413693 | N20: 386817 | O20: 357817 | P20: 333705 | Q20: 324106 | R20: 320315 | S20: 319844 | T20: 321671 | U20: 324533 | V20: 328823 | W20: 337222 | X20: 350409 | Y20: 367486
E21: v tom | F21: 6. ročník | J21: . | K21: . | L21: 105566 | M21: 91696 | N21: 86426 | O21: 82985 | P21: 81475 | Q21: 81632 | R21: 81855 | S21: 82123 | T21: 82979 | U21: 84606 | V21: 86180 | W21: 90936 | X21: 96166 | Y21: 101599
F22: 7. ročník | J22: . | K22: . | L22: 112495 | M22: 105816 | N22: 92234 | O22: 86866 | P22: 83173 | Q22: 82061 | R22: 82573 | S22: 82299 | T22: 82543 | U22: 83418 | V22: 85115 | W22: 86726 | X22: 91626 | Y22: 96745
F23: 8. ročník | J23: . | K23: . | L23: 111279 | M23: 109498 | N23: 102904 | O23: 89490 | P23: 84098 | Q23: 80415 | R23: 79379 | S23: 79830 | T23: 79694 | U23: 79839 | V23: 80656 | W23: 81975 | X23: 83728 | Y23: 88509
F24: 9. ročník | J24: . | K24: . | L24: 113599 | M24: 106262 | N24: 104681 | O24: 97858 | P24: 84306 | Q24: 79302 | R24: 75750 | S24: 74832 | T24: 75652 | U24: 75501 | V24: 75773 | W24: 76592 | X24: 77861 | Y24: 79703
G25: z toho v 10letém vzděl. programu | J25: . | K25: . | L25: 446 | M25: 587 | N25: 649 | O25: 618 | P25: 716 | Q25: 900 | R25: 810 | S25: 887 | T25: 1237 | U25: 1018 | V25: 871 | W25: 862 | X25: 747 | Y25: 808
F26: 10. ročník | J26: . | K26: . | L26: 367 | M26: 421 | N26: 572 | O26: 619 | P26: 653 | Q26: 696 | R26: 758 | S26: 760 | T26: 803 | U26: 1169 | V26: 1099 | W26: 993 | X26: 1028 | Y26: 930
E27: Z toho dívky | J27: 482082 | K27: 462728 | L27: 442206 | M27: 422041 | N27: 406776 | O27: 392745 | P27: 382748 | Q27: 381028 | R27: 384212 | S27: 391115 | T27: 400894 | U27: 414331 | V27: 427435 | W27: 440240 | X27: 449654 | Y27: 456757
E28: Dívky na 1. stupni1) | J28: . | K28: . | L28: 229244 | M28: 224264 | N28: 221913 | O28: 222245 | P28: 223589 | Q28: 225831 | R28: 230709 | S28: 237601 | T28: 246310 | U28: 258230 | V28: 269136 | W28: 277730 | X28: 281087 | Y28: 279721
E29: v tom | F29: 1. ročník | J29: . | K29: . | L29: 45050 | M29: 44609 | N29: 44622 | O29: 45614 | P29: 46090 | Q29: 46931 | R29: 49499 | S29: 51710 | T29: 54529 | U29: 58100 | V29: 57659 | W29: 57743 | X29: 54876 | Y29: 52970
F30: 2. ročník | J30: . | K30: . | L30: 44200 | M30: 44469 | N30: 44096 | O30: 44078 | P30: 45049 | Q30: 45518 | R30: 46443 | S30: 48969 | T30: 51086 | U30: 53871 | V30: 57505 | W30: 57150 | X30: 57226 | Y30: 54430
F31: 3. ročník | J31: . | K31: . | L31: 44679 | M31: 44066 | N31: 44350 | O31: 44013 | P31: 43957 | Q31: 44987 | R31: 45533 | S31: 46251 | T31: 48790 | U31: 51002 | V31: 53825 | W31: 57521 | X31: 57123 | Y31: 57206
F32: 4. ročník | J32: . | K32: . | L32: 46378 | M32: 44642 | N32: 44023 | O32: 44294 | P32: 43973 | Q32: 43929 | R32: 44950 | S32: 45475 | T32: 46204 | U32: 48785 | V32: 51041 | W32: 53903 | X32: 57624 | Y32: 57180
F33: 5. ročník | J33: . | K33: . | L33: 48716 | M33: 46236 | N33: 44575 | O33: 44022 | P33: 44252 | Q33: 43996 | R33: 43955 | S33: 44907 | T33: 45403 | U33: 46196 | V33: 48859 | W33: 51105 | X33: 53936 | Y33: 57632
F34: 6. ročník | J34: . | K34: . | L34: 221 | M34: 242 | N34: 247 | O34: 224 | P34: 268 | Q34: 470 | R34: 329 | S34: 289 | T34: 298 | U34: 276 | V34: 247 | W34: 308 | X34: 302 | Y34: 303
E35: Dívky na 2. stupni2) | J35: . | K35: . | L35: 212962 | M35: 197777 | N35: 184863 | O35: 170500 | P35: 159159 | Q35: 155197 | R35: 153503 | S35: 153514 | T35: 154584 | U35: 156101 | V35: 158299 | W35: 162510 | X35: 168567 | Y35: 177036
E36: v tom | F36: 6. ročník | J36: . | K36: . | L36: 50443 | M36: 43521 | N36: 41029 | O36: 39603 | P36: 39113 | Q36: 39308 | R36: 39174 | S36: 39335 | T36: 40113 | U36: 40891 | V36: 41493 | W36: 43901 | X36: 46173 | Y36: 49260
F37: 7. ročník | J37: . | K37: . | L37: 54134 | M37: 50485 | N37: 43770 | O37: 41163 | P37: 39609 | Q37: 39398 | R37: 39619 | S37: 39364 | T37: 39467 | U37: 40258 | V37: 41099 | W37: 41679 | X37: 44131 | Y37: 46423
F38: 8. ročník | J38: . | K38: . | L38: 52851 | M38: 52490 | N38: 48911 | O38: 42265 | P38: 39662 | Q38: 38182 | R38: 37893 | S38: 38242 | T38: 37999 | U38: 38099 | V38: 38684 | W38: 39420 | X38: 40060 | Y38: 42475
F39: 9. ročník | J39: . | K39: . | L39: 55390 | M39: 51093 | N39: 50955 | O39: 47229 | P39: 40515 | Q39: 38025 | R39: 36520 | S39: 36284 | T39: 36687 | U39: 36389 | V39: 36589 | W39: 37091 | X39: 37797 | Y39: 38501
G40: z toho v 10letém vzděl. programu | J40: . | K40: . | L40: 194 | M40: 202 | N40: 250 | O40: 250 | P40: 263 | Q40: 334 | R40: 312 | S40: 372 | T40: 481 | U40: 380 | V40: 356 | W40: 332 | X40: 306 | Y40: 296
F41: 10. ročník | J41: . | K41: . | L41: 144 | M41: 188 | N41: 198 | O41: 240 | P41: 260 | Q41: 284 | R41: 297 | S41: 289 | T41: 318 | U41: 464 | V41: 434 | W41: 419 | X41: 406 | Y41: 377
D42: Komentáře: | Y42: Zdroj: databáze MŠMT
D43: 1) | E43: Žáci v 1.–5. ročníku 9letého vzdělávacího programu a žáci v 1.–6. ročníku 10letého vzdělávacího programu.
D44: 2) | E44: Žáci v 6.–9. ročníku 9letého vzdělávacího programu a žáci v 7.–10. ročníku 10letého vzdělávacího programu.

Sheet B4.18
D4: Tab. B4.18: | H4: ZŠ – žáci opakující ročník
B5: 0 | D5: ve školním roce 2008/09 až 2018/19
J7: 2003/04 | K7: 2004/05 | L7: 2005/06 | M7: 2006/07 | N7: 2007/08 | O7: 2008/09 | P7: 2009/10 | Q7: 2010/11 | R7: 2011/12 | S7: 2012/13 | T7: 2013/14 | U7: 2014/15 | V7: 2015/16 | W7: 2016/17 | X7: 2017/18 | Y7: 2018/19
J11: 1) | K11: 1)
E12: Opakující žáci celkem | J12: . | K12: . | L12: 7640 | M12: 6916 | N12: 7209 | O12: 7251 | P12: 7030 | Q12: 6541 | R12: 5997 | S12: 6056 | T12: 6191 | U12: 6238 | V12: 6459 | W12: 6059 | X12: 6352 | Y12: 6624
E13: Opakující žáci na 1. stupni1) | J13: . | K13: . | L13: 3273 | M13: 2848 | N13: 2895 | O13: 2903 | P13: 2966 | Q13: 2852 | R13: 2577 | S13: 2810 | T13: 2912 | U13: 2952 | V13: 3129 | W13: 2885 | X13: 3080 | Y13: 3118
E14: v tom | F14: 1. ročník | J14: . | K14: . | L14: 1046 | M14: 961 | N14: 1001 | O14: 1038 | P14: 1015 | Q14: 1010 | R14: 886 | S14: 1106 | T14: 1107 | U14: 1175 | V14: 1284 | W14: 1137 | X14: 1201 | Y14: 1147
F15: 2. ročník | J15: . | K15: . | L15: 520 | M15: 442 | N15: 498 | O15: 521 | P15: 549 | Q15: 506 | R15: 452 | S15: 520 | T15: 510 | U15: 515 | V15: 559 | W15: 518 | X15: 535 | Y15: 567
F16: 3. ročník | J16: . | K16: . | L16: 491 | M16: 438 | N16: 446 | O16: 456 | P16: 494 | Q16: 429 | R16: 405 | S16: 376 | T16: 424 | U16: 402 | V16: 433 | W16: 431 | X16: 418 | Y16: 436
F17: 4. ročník | J17: . | K17: . | L17: 597 | M17: 523 | N17: 472 | O17: 412 | P17: 459 | Q17: 449 | R17: 384 | S17: 370 | T17: 395 | U17: 387 | V17: 414 | W17: 381 | X17: 429 | Y17: 472
F18: 5. ročník | J18: . | K18: . | L18: 614 | M18: 482 | N18: 475 | O18: 475 | P18: 437 | Q18: 442 | R18: 415 | S18: 415 | T18: 452 | U18: 442 | V18: 414 | W18: 390 | X18: 460 | Y18: 467
F19: 6. ročník | J19: . | K19: . | L19: 5 | M19: 2 | N19: 3 | O19: 1 | P19: 12 | Q19: 16 | R19: 35 | S19: 23 | T19: 24 | U19: 31 | V19: 25 | W19: 28 | X19: 37 | Y19: 29
E20: Opakující žáci na 2. stupni2) | J20: . | K20: . | L20: 4367 | M20: 4068 | N20: 4314 | O20: 4348 | P20: 4064 | Q20: 3689 | R20: 3420 | S20: 3246 | T20: 3279 | U20: 3286 | V20: 3330 | W20: 3174 | X20: 3272 | Y20: 3506
E21: v tom | F21: 6. ročník | J21: . | K21: . | L21: 1261 | M21: 1269 | N21: 1292 | O21: 1312 | P21: 1294 | Q21: 1174 | R21: 1098 | S21: 1097 | T21: 1069 | U21: 1090 | V21: 1084 | W21: 1069 | X21: 1150 | Y21: 1244
F22: 7. ročník | J22: . | K22: . | L22: 1438 | M22: 1219 | N22: 1369 | O22: 1331 | P22: 1219 | Q22: 1138 | R22: 1009 | S22: 953 | T22: 972 | U22: 966 | V22: 969 | W22: 976 | X22: 981 | Y22: 1062
F23: 8. ročník | J23: . | K23: . | L23: 1421 | M23: 1344 | N23: 1444 | O23: 1520 | P23: 1335 | Q23: 1191 | R23: 1108 | S23: 1009 | T23: 1037 | U23: 1002 | V23: 977 | W23: 853 | X23: 894 | Y23: 962
F24: 9. a 10. ročník | J24: . | K24: . | L24: 247 | M24: 236 | N24: 209 | O24: 185 | P24: 216 | Q24: 186 | R24: 205 | S24: 187 | T24: 201 | U24: 228 | V24: 300 | W24: 276 | X24: 247 | Y24: 238
E25: Z toho opakující dívky | J25: . | K25: . | L25: 2865 | M25: 2542 | N25: 2663 | O25: 2686 | P25: 2761 | Q25: 2518 | R25: 2293 | S25: 2390 | T25: 2493 | U25: 2486 | V25: 2653 | W25: 2467 | X25: 2576 | Y25: 2705
E26: Opakující dívky na 1. stupni1) | J26: . | K26: . | L26: 1314 | M26: 1119 | N26: 1170 | O26: 1177 | P26: 1256 | Q26: 1122 | R26: 1048 | S26: 1105 | T26: 1205 | U26: 1188 | V26: 1282 | W26: 1208 | X26: 1292 | Y26: 1311
E27: v tom | F27: 1. ročník | J27: . | K27: . | L27: 454 | M27: 403 | N27: 442 | O27: 468 | P27: 462 | Q27: 418 | R27: 362 | S27: 461 | T27: 490 | U27: 496 | V27: 549 | W27: 503 | X27: 521 | Y27: 480
F28: 2. ročník | J28: . | K28: . | L28: 208 | M28: 181 | N28: 203 | O28: 214 | P28: 237 | Q28: 203 | R28: 185 | S28: 208 | T28: 207 | U28: 214 | V28: 237 | W28: 212 | X28: 223 | Y28: 249
F29: 3. ročník | J29: . | K29: . | L29: 184 | M29: 158 | N29: 165 | O29: 185 | P29: 203 | Q29: 164 | R29: 172 | S29: 156 | T29: 182 | U29: 144 | V29: 163 | W29: 171 | X29: 176 | Y29: 187
F30: 4. ročník | J30: . | K30: . | L30: 246 | M30: 211 | N30: 186 | O30: 140 | P30: 168 | Q30: 175 | R30: 144 | S30: 131 | T30: 145 | U30: 148 | V30: 167 | W30: 148 | X30: 172 | Y30: 196
F31: 5. ročník | J31: . | K31: . | L31: 219 | M31: 164 | N31: 172 | O31: 169 | P31: 179 | Q31: 155 | R31: 169 | S31: 140 | T31: 170 | U31: 172 | V31: 154 | W31: 162 | X31: 183 | Y31: 187
F32: 6. ročník | J32: . | K32: . | L32: 3 | M32: 2 | N32: 2 | O32: 1 | P32: 7 | Q32: 7 | R32: 16 | S32: 9 | T32: 11 | U32: 14 | V32: 12 | W32: 12 | X32: 17 | Y32: 12
E33: Opakující dívky na 2. stupni2) | J33: . | K33: . | L33: 1551 | M33: 1423 | N33: 1493 | O33: 1509 | P33: 1505 | Q33: 1396 | R33: 1245 | S33: 1285 | T33: 1288 | U33: 1298 | V33: 1371 | W33: 1259 | X33: 1284 | Y33: 1394
E34: v tom | F34: 6. ročník | J34: . | K34: . | L34: 471 | M34: 453 | N34: 442 | O34: 481 | P34: 495 | Q34: 436 | R34: 405 | S34: 402 | T34: 415 | U34: 429 | V34: 447 | W34: 430 | X34: 469 | Y34: 473
F35: 7. ročník | J35: . | K35: . | L35: 446 | M35: 411 | N35: 464 | O35: 455 | P35: 442 | Q35: 415 | R35: 358 | S35: 378 | T35: 356 | U35: 355 | V35: 404 | W35: 358 | X35: 369 | Y35: 430
F36: 8. ročník | J36: . | K36: . | L36: 514 | M36: 460 | N36: 500 | O36: 500 | P36: 476 | Q36: 450 | R36: 402 | S36: 408 | T36: 426 | U36: 416 | V36: 389 | W36: 357 | X36: 351 | Y36: 378
F37: 9. a 10. ročník | J37: . | K37: . | L37: 120 | M37: 99 | N37: 87 | O37: 73 | P37: 92 | Q37: 95 | R37: 80 | S37: 97 | T37: 91 | U37: 98 | V37: 131 | W37: 114 | X37: 95 | Y37: 113
D38: Komentáře: | Y38: Zdroj: databáze MŠMT
D39: 1) | E39: Žáci v 1.–5. ročníku 9letého vzdělávacího programu a žáci v 1.–6. ročníku 10letého vzdělávacího programu.
D40: 2) | E40: Žáci v 6.–9. ročníku 9letého vzdělávacího programu a žáci v 7.–10. ročníku 10letého vzdělávacího programu.

Sheet B4.19
D4: Tab. B4.19: | H4: Zápisy do 1. ročníku základního vzdělávání
B5: 0 | D5: v letech 2008 až 2018 – podle výsledku zápisu
J7: 2007 | K7: 2008 | L7: 2008 | M7: 2009 | N7: 2010 | O7: 2011 | P7: 2012 | Q7: 2013 | R7: 2014 | S7: 2015 | T7: 2016 | U7: 2017 | V7: 2018
D12: Zapisovaní
E13: Děti celkem | J13: 112091 | K13: 111784 | L13: 113353 | M13: 115652 | N13: 118900 | O13: 125703 | P13: 130870 | Q13: 138178 | R13: 148296 | S13: 150100 | T13: 152335 | U13: 148109 | V13: 145105
E14: v tom | F14: poprvé u zápisu | J14: 92374 | K14: 92144 | L14: 93949 | M14: 95800 | N14: 98853 | O14: 104529 | P14: 108272 | Q14: 116433 | R14: 125341 | S14: 125744 | T14: 126728 | U14: 122449 | V14: 118703
F15: přicházejí po odkladu | J15: 19717 | K15: 19640 | L15: 19404 | M15: 19852 | N15: 20047 | O15: 21174 | P15: 22598 | Q15: 21745 | R15: 22955 | S15: 24356 | T15: 25607 | U15: 25660 | V15: 26402
G16: z toho po dodatečném | J16: 594 | K16: 545 | L16: 573 | M16: 558 | N16: 582 | O16: 536 | P16: 511 | Q16: 564 | R16: 587 | S16: 628 | T16: 558 | U16: 575 | V16: 589
E17: Z toho dívky | J17: 51379 | K17: 51284 | L17: 52278 | M17: 53146 | N17: 54645 | O17: 57870 | P17: 60102 | Q17: 64066 | R17: 68956 | S17: 69434 | T17: 70349 | U17: 67770 | V17: 66552
E18: v tom | F18: poprvé u zápisu | J18: 44356 | K18: 44438 | L18: 45454 | M18: 46345 | N18: 47840 | O18: 50656 | P18: 52447 | Q18: 56840 | R18: 61184 | S18: 61269 | T18: 61788 | U18: 59277 | V18: 57652
F19: přicházejí po odkladu | J19: 7023 | K19: 6846 | L19: 6824 | M19: 6801 | N19: 6805 | O19: 7214 | P19: 7655 | Q19: 7226 | R19: 7772 | S19: 8165 | T19: 8561 | U19: 8493 | V19: 8900
G20: z toho po dodatečném | J20: 272 | K20: 220 | L20: 266 | M20: 233 | N20: 254 | O20: 230 | P20: 221 | Q20: 228 | R20: 258 | S20: 269 | T20: 239 | U20: 218 | V20: 259
D21: Zapsaní
E22: Celkem | J22: 95490 | K22: 95172 | L22: 96432 | M22: 98789 | N22: 101706 | O22: 106930 | P22: 113921 | Q22: 120592 | R22: 130120 | S22: 131713 | T22: 134342 | U22: 124582 | V22: 121647
E23: v tom | F23: poprvé u zápisu | J23: 75951 | K23: 75656 | L23: 77133 | M23: 79068 | N23: 81728 | O23: 85842 | P23: 91393 | Q23: 98913 | R23: 107358 | S23: 107553 | T23: 108958 | U23: 99045 | V23: 95384
F24: přicházejí po odkladu | J24: 19539 | K24: 19516 | L24: 19299 | M24: 19721 | N24: 19978 | O24: 21088 | P24: 22528 | Q24: 21679 | R24: 22762 | S24: 24160 | T24: 25384 | U24: 25537 | V24: 26263
G25: z toho po dodatečném | J25: 564 | K25: 543 | L25: 560 | M25: 550 | N25: 580 | O25: 532 | P25: 508 | Q25: 564 | R25: 573 | S25: 618 | T25: 550 | U25: 567 | V25: 579
E26: Z toho dívky | J26: 45667 | K26: 45534 | L26: 46524 | M26: 47540 | N26: 48792 | O26: 51468 | P26: 54339 | Q26: 57956 | R26: 62655 | S26: 62985 | T26: 64158 | U26: 59890 | V26: 58509
E27: v tom | F27: poprvé u zápisu | J27: 38707 | K27: 38736 | L27: 39730 | M27: 40786 | N27: 42019 | O27: 44278 | P27: 46702 | Q27: 50748 | R27: 54955 | S27: 54895 | T27: 55667 | U27: 51433 | V27: 49662
F28: přicházejí po odkladu | J28: 6960 | K28: 6798 | L28: 6794 | M28: 6754 | N28: 6773 | O28: 7190 | P28: 7637 | Q28: 7208 | R28: 7700 | S28: 8090 | T28: 8491 | U28: 8457 | V28: 8847
G29: z toho po dodatečném | J29: 261 | K29: 218 | L29: 262 | M29: 231 | N29: 252 | O29: 230 | P29: 220 | Q29: 228 | R29: 250 | S29: 264 | T29: 235 | U29: 217 | V29: 251
D30: S žádosti o odklad docházky
E31: Celkem | J31: 16552 | K31: 16587 | L31: 16902 | M31: 16849 | N31: 17180 | O31: 18111 | P31: 16139 | Q31: 16672 | R31: 16672 | S31: 17013 | T31: 16629 | U31: 23117 | V31: 22980
E32: v tom | F32: poprvé u zápisu | J32: 16421 | K32: 16483 | L32: 16811 | M32: 16730 | N32: 17123 | O32: 18031 | P32: 16076 | Q32: 16608 | R32: 16635 | S32: 16989 | T32: 16592 | U32: 23100 | V32: 22961
F33: přicházejí po odkladu | J33: 131 | K33: 104 | L33: 91 | M33: 119 | N33: 57 | O33: 80 | P33: 63 | Q33: 64 | R33: 37 | S33: 24 | T33: 37 | U33: 17 | V33: 19
G34: z toho po dodatečném | J34: 6 | K34: 1 | L34: 9 | M34: 6 | N34: 2 | O34: 4 | P34: 3 | Q34: 0 | R34: 1 | S34: 1 | T34: 0 | U34: 1 | V34: 2
E35: Z toho dívky | J35: 5693 | K35: 5738 | L35: 5747 | M35: 5599 | N35: 5848 | O35: 5966 | P35: 5222 | Q35: 5510 | R35: 5414 | S35: 5647 | T35: 5406 | U35: 7678 | V35: 7823
E36: v tom | F36: poprvé u zápisu | J36: 5647 | K36: 5697 | L36: 5721 | M36: 5559 | N36: 5821 | O36: 5944 | P36: 5208 | Q36: 5492 | R36: 5401 | S36: 5634 | T36: 5398 | U36: 7671 | V36: 7816
F37: přicházejí po odkladu | J37: 46 | K37: 41 | L37: 26 | M37: 40 | N37: 27 | O37: 22 | P37: 14 | Q37: 18 | R37: 13 | S37: 13 | T37: 8 | U37: 7 | V37: 7
G38: z toho po dodatečném | J38: 3 | K38: 1 | L38: 4 | M38: 1 | N38: 2 | O38: 0 | P38: 1 | Q38: 0 | R38: 1 | S38: 1 | T38: 0 | U38: 0 | V38: 2
D39: Vzdělávání podle § 42 zákona
E40: Celkem | J40: 49 | K40: 25 | L40: 19 | M40: 14 | N40: 14 | O40: 7 | P40: 8 | Q40: 3 | R40: 13 | S40: 2 | T40: 3 | U40: 8 | V40: 12
E41: v tom | F41: poprvé u zápisu | J41: 2 | K41: 5 | L41: 5 | M41: 2 | N41: 2 | O41: 1 | P41: 1 | Q41: 1 | R41: 0 | S41: 0 | T41: 0 | U41: 3 | V41: 1
F42: přicházejí po odkladu | J42: 47 | K42: 20 | L42: 14 | M42: 12 | N42: 12 | O42: 6 | P42: 7 | Q42: 2 | R42: 13 | S42: 2 | T42: 3 | U42: 5 | V42: 11
G43: z toho po dodatečném | J43: 24 | K43: 1 | L43: 4 | M43: 2 | N43: 0 | O43: 0 | P43: 0 | Q43: 0 | R43: 0 | S43: 0 | T43: 0 | U43: 1 | V43: 0
E44: Z toho dívky | J44: 19 | K44: 12 | L44: 7 | M44: 7 | N44: 5 | O44: 3 | P44: 5 | Q44: 1 | R44: 7 | S44: 2 | T44: 0 | U44: 4 | V44: 4
E45: v tom | F45: poprvé u zápisu | J45: 2 | K45: 5 | L45: 3 | M45: 0 | N45: 0 | O45: 1 | P45: 1 | Q45: 1 | R45: 0 | S45: 0 | T45: 0 | U45: 2 | V45: 0
F46: přicházejí po odkladu | J46: 17 | K46: 7 | L46: 4 | M46: 7 | N46: 5 | O46: 2 | P46: 4 | Q46: 0 | R46: 7 | S46: 2 | T46: 0 | U46: 2 | V46: 4
G47: z toho po dodatečném | J47: 8 | K47: 1 | L47: 0 | M47: 1 | N47: 0 | O47: 0 | P47: 0 | Q47: 0 | R47: 0 | S47: 0 | T47: 0 | U47: 1 | V47: 0
D48: Neuzavřený zápis 5letých
E49: Celkem | J49: . | K49: . | L49: . | M49: . | N49: . | O49: 655 | P49: 802 | Q49: 911 | R49: 1491 | S49: 1372 | T49: 1361 | U49: 402 | V49: 466
E50: v tom | F50: poprvé u zápisu | J50: . | K50: . | L50: . | M50: . | N50: . | O50: 655 | P50: 802 | Q50: 911 | R50: 1348 | S50: 1202 | T50: 1178 | U50: 301 | V50: 357
F51: přicházejí po odkladu | J51: . | K51: . | L51: . | M51: . | N51: . | O51: x | P51: x | Q51: x | R51: 143 | S51: 170 | T51: 183 | U51: 101 | V51: 109
G52: z toho po dodatečném | J52: . | K52: . | L52: . | M52: . | N52: . | O52: x | P52: x | Q52: x | R52: 13 | S52: 9 | T52: 8 | U52: 6 | V52: 8
E53: Z toho dívky | J53: . | K53: . | L53: . | M53: . | N53: . | O53: 433 | P53: 536 | Q53: 599 | R53: 880 | S53: 800 | T53: 785 | U53: 198 | V53: 216
E54: v tom | F54: poprvé u zápisu | J54: . | K54: . | L54: . | M54: . | N54: . | O54: 433 | P54: 536 | Q54: 599 | R54: 828 | S54: 740 | T54: 723 | U54: 171 | V54: 174
F55: přicházejí po odkladu | J55: . | K55: . | L55: . | M55: . | N55: . | O55: x | P55: x | Q55: x | R55: 52 | S55: 60 | T55: 62 | U55: 27 | V55: 42
G56: z toho po dodatečném | J56: . | K56: . | L56: . | M56: . | N56: . | O56: x | P56: x | Q56: x | R56: 7 | S56: 4 | T56: 4 | U56: 0 | V56: 6
V57: Zdroj: databáze MŠMT

Sheet B4.20
D4: Tab. B4.20: | H4: Zápisy do 1. ročníku základního vzdělávání
B5: 0 | D5: v letech 2008 až 2018 – podle věku
D7: Věk | J7: 2007 | K7: 2008 | L7: 2008 | M7: 2009 | N7: 2010 | O7: 2011 | P7: 2012 | Q7: 2013 | R7: 2014 | S7: 2015 | T7: 2016 | U7: 2017 | V7: 2018
D12: Zapisovaní
E13: Děti celkem | J13: 112091 | K13: 113353 | L13: 113353 | M13: 115652 | N13: 118900 | O13: 125703 | P13: 130870 | Q13: 138178 | R13: 148296 | S13: 150100 | T13: 152335 | U13: 148109 | V13: 145105
E14: v tom | F14: 5leté | J14: 1073 | K14: 1027 | L14: 1027 | M14: 1065 | N14: 1173 | O14: 1371 | P14: 1528 | Q14: 1431 | R14: 1654 | S14: 1489 | T14: 1404 | U14: 983 | V14: 874
F15: 6leté | J15: 89290 | K15: 91161 | L15: 91161 | M15: 93296 | N15: 96238 | O15: 101820 | P15: 105697 | Q15: 114888 | R15: 123602 | S15: 124141 | T15: 125214 | U15: 121360 | V15: 117753
F16: 7leté | J16: 21400 | K16: 21030 | L16: 21030 | M16: 21205 | N16: 21363 | O16: 22388 | P16: 23527 | Q16: 21763 | R16: 22958 | S16: 24330 | T16: 25587 | U16: 25628 | V16: 26301
F17: 8leté | J17: 187 | K17: 126 | L17: 126 | M17: 78 | N17: 120 | O17: 116 | P17: 111 | Q17: 88 | R17: 78 | S17: 136 | T17: 126 | U17: 135 | V17: 172
F18: 9leté a starší | J18: 141 | K18: 9 | L18: 9 | M18: 8 | N18: 6 | O18: 8 | P18: 7 | Q18: 8 | R18: 4 | S18: 4 | T18: 4 | U18: 3 | V18: 5
E19: Z toho dívky | J19: 51379 | K19: 52278 | L19: 52278 | M19: 53146 | N19: 54645 | O19: 57870 | P19: 60102 | Q19: 64066 | R19: 68956 | S19: 69434 | T19: 70349 | U19: 67770 | V19: 66552
E20: v tom | F20: 5leté | J20: 621 | K20: 643 | L20: 643 | M20: 649 | N20: 754 | O20: 886 | P20: 968 | Q20: 936 | R20: 1072 | S20: 961 | T20: 917 | U20: 659 | V20: 591
F21: 6leté | J21: 42880 | K21: 44035 | L21: 44035 | M21: 45101 | N21: 46468 | O21: 49212 | P21: 51098 | Q21: 55839 | R21: 60069 | S21: 60273 | T21: 60825 | U21: 58573 | V21: 57040
F22: 7leté | J22: 7730 | K22: 7550 | L22: 7550 | M22: 7368 | N22: 7374 | O22: 7719 | P22: 8000 | Q22: 7269 | R22: 7785 | S22: 8142 | T22: 8557 | U22: 8495 | V22: 8863
F23: 8leté | J23: 81 | K23: 46 | L23: 46 | M23: 24 | N23: 47 | O23: 51 | P23: 31 | Q23: 18 | R23: 28 | S23: 56 | T23: 49 | U23: 41 | V23: 55
F24: 9leté a starší | J24: 67 | K24: 4 | L24: 4 | M24: 4 | N24: 2 | O24: 2 | P24: 5 | Q24: 4 | R24: 2 | S24: 2 | T24: 1 | U24: 2 | V24: 3
D25: Zapsaní
E26: Celkem | J26: 94149 | K26: 96432 | L26: 94911 | M26: 98789 | N26: 101706 | O26: 106930 | P26: 113921 | Q26: 120592 | R26: 130120 | S26: 131713 | T26: 134342 | U26: 124582 | V26: 121647
E27: v tom | F27: 5leté | J27: 919 | K27: 943 | L27: 923 | M27: 953 | N27: 1173 | O27: 716 | P27: 726 | Q27: 520 | R27: 694 | S27: 548 | T27: 521 | U27: 854 | V27: 755
F28: 6leté | J28: 72198 | K28: 74593 | L28: 73473 | M28: 76802 | N28: 79269 | O28: 83871 | P28: 89685 | Q28: 98286 | R28: 106579 | S28: 106895 | T28: 108330 | U28: 98092 | V28: 94557
F29: 7leté | J29: 20747 | K29: 20766 | L29: 20390 | M29: 20951 | N29: 21140 | O29: 22220 | P29: 23396 | Q29: 21692 | R29: 22770 | S29: 24135 | T29: 25374 | U29: 25509 | V29: 26164
F30: 8leté | J30: 171 | K30: 121 | L30: 116 | M30: 75 | N30: 118 | O30: 115 | P30: 107 | Q30: 86 | R30: 75 | S30: 131 | T30: 113 | U30: 125 | V30: 166
F31: 9leté a starší | J31: 114 | K31: 9 | L31: 9 | M31: 8 | N31: 6 | O31: 8 | P31: 7 | Q31: 8 | R31: 2 | S31: 4 | T31: 4 | U31: 2 | V31: 5
E32: Z toho dívky | J32: 45032 | K32: 46524 | L32: 45802 | M32: 47540 | N32: 48792 | O32: 51468 | P32: 54339 | Q32: 57956 | R32: 62655 | S32: 62985 | T32: 64158 | U32: 59890 | V32: 58509
E33: v tom | F33: 5leté | J33: 546 | K33: 602 | L33: 591 | M33: 595 | N33: 754 | O33: 453 | P33: 432 | Q33: 337 | R33: 425 | S33: 326 | T33: 323 | U33: 563 | V33: 512
F34: 6leté | J34: 36860 | K34: 38420 | L34: 37846 | M34: 39639 | N34: 40694 | O34: 43288 | P34: 45911 | Q34: 50349 | R34: 54487 | S34: 54534 | T34: 55301 | U34: 50828 | V34: 49129
F35: 7leté | J35: 7496 | K35: 7453 | L35: 7317 | M35: 7279 | N35: 7295 | O35: 7674 | P35: 7961 | Q35: 7248 | R35: 7715 | S35: 8067 | T35: 8487 | U35: 8460 | V35: 8814
F36: 8leté | J36: 71 | K36: 45 | L36: 44 | M36: 23 | N36: 47 | O36: 51 | P36: 30 | Q36: 18 | R36: 27 | S36: 56 | T36: 46 | U36: 38 | V36: 51
F37: 9leté a starší | J37: 59 | K37: 4 | L37: 4 | M37: 4 | N37: 2 | O37: 2 | P37: 5 | Q37: 4 | R37: 1 | S37: 2 | T37: 1 | U37: 1 | V37: 3
D38: Z toho převedení na jinou školy
E39: Celkem | J39: 1341 | K39: 1521 | L39: 1521 | M39: 1966 | N39: 2004 | O39: 2276 | P39: 3529 | Q39: 4216 | R39: 5273 | S39: 6259 | T39: 7673 | U39: 9244 | V39: 9463
E40: v tom | F40: 5leté | J40: 7 | K40: 20 | L40: 20 | M40: 37 | N40: 34 | O40: 32 | P40: 56 | Q40: 34 | R40: 73 | S40: 59 | T40: 77 | U40: 74 | V40: 89
F41: 6leté | J41: 961 | K41: 1120 | L41: 1120 | M41: 1432 | N41: 1540 | O41: 1781 | P41: 2802 | Q41: 3503 | R41: 4421 | S41: 5242 | T41: 6460 | U41: 7696 | V41: 7597
F42: 7leté | J42: 362 | K42: 376 | L42: 376 | M42: 497 | N42: 425 | O42: 459 | P42: 660 | Q42: 676 | R42: 772 | S42: 949 | T42: 1131 | U42: 1465 | V42: 1763
F43: 8leté | J43: 10 | K43: 5 | L43: 5 | M43: 0 | N43: 5 | O43: 4 | P43: 11 | Q43: 2 | R43: 7 | S43: 9 | T43: 5 | U43: 9 | V43: 12
F44: 9leté a starší | J44: 1 | K44: 0 | L44: 0 | M44: 0 | N44: 0 | O44: 0 | P44: 0 | Q44: 1 | R44: 0 | S44: 0 | T44: 0 | U44: 0 | V44: 2
E45: Z toho dívky | J45: 635 | K45: 722 | L45: 722 | M45: 891 | N45: 893 | O45: 1025 | P45: 1665 | Q45: 2008 | R45: 2479 | S45: 2943 | T45: 3620 | U45: 4218 | V45: 4413
E46: v tom | F46: 5leté | J46: 6 | K46: 11 | L46: 11 | M46: 21 | N46: 19 | O46: 21 | P46: 39 | Q46: 27 | R46: 46 | S46: 34 | T46: 52 | U46: 44 | V46: 56
F47: 6leté | J47: 482 | K47: 574 | L47: 574 | M47: 702 | N47: 728 | O47: 846 | P47: 1416 | Q47: 1750 | R47: 2170 | S47: 2578 | T47: 3221 | U47: 3758 | V47: 3772
F48: 7leté | J48: 140 | K48: 136 | L48: 136 | M48: 168 | N48: 144 | O48: 155 | P48: 209 | Q48: 231 | R48: 262 | S48: 325 | T48: 345 | U48: 413 | V48: 579
F49: 8leté | J49: 7 | K49: 1 | L49: 1 | M49: 0 | N49: 2 | O49: 3 | P49: 1 | Q49: 0 | R49: 1 | S49: 6 | T49: 2 | U49: 3 | V49: 4
F50: 9leté a starší | J50: 0 | K50: 0 | L50: 0 | M50: 0 | N50: 0 | O50: 0 | P50: 0 | Q50: 0 | R50: 0 | S50: 0 | T50: 0 | U50: 0 | V50: 2
D51: S žádosti o odklad docházky
E52: Celkem | J52: 16552 | K52: 16902 | L52: 16902 | M52: 16849 | N52: 17180 | O52: 18111 | P52: 16139 | Q52: 16672 | R52: 16672 | S52: 17013 | T52: 16629 | U52: 23117 | V52: 22980
E53: v tom | F53: 5leté | J53: 147 | K53: 84 | L53: 84 | M53: 112 | N53: 0 | O53: 0 | P53: 0 | Q53: 0 | R53: 0 | S53: 0 | T53: 0 | U53: 0 | V53: 0
F54: 6leté | J54: 16128 | K54: 16565 | L54: 16565 | M54: 16492 | N54: 16967 | O54: 17948 | P54: 16011 | Q54: 16602 | R54: 16635 | S54: 16987 | T54: 16592 | U54: 23098 | V54: 22959
F55: 7leté | J55: 275 | K55: 251 | L55: 251 | M55: 244 | N55: 212 | O55: 162 | P55: 125 | Q55: 68 | R55: 37 | S55: 26 | T55: 36 | U55: 18 | V55: 21
F56: 8leté | J56: 2 | K56: 2 | L56: 2 | M56: 1 | N56: 1 | O56: 1 | P56: 3 | Q56: 2 | R56: 0 | S56: 0 | T56: 1 | U56: 1 | V56: 0
F57: 9leté a starší | J57: 0 | K57: 0 | L57: 0 | M57: 0 | N57: 0 | O57: 0 | P57: 0 | Q57: 0 | R57: 0 | S57: 0 | T57: 0 | U57: 0 | V57: 0
E58: Z toho dívky | J58: 5693 | K58: 5747 | L58: 5747 | M58: 5599 | N58: 5848 | O58: 5966 | P58: 5222 | Q58: 5510 | R58: 5414 | S58: 5647 | T58: 5406 | U58: 7678 | V58: 7823
E59: v tom | F59: 5leté | J59: 69 | K59: 41 | L59: 41 | M59: 54 | N59: 0 | O59: 0 | P59: 0 | Q59: 0 | R59: 0 | S59: 0 | T59: 0 | U59: 0 | V59: 0
F60: 6leté | J60: 5536 | K60: 5614 | L60: 5614 | M60: 5462 | N60: 5774 | O60: 5923 | P60: 5186 | Q60: 5490 | R60: 5401 | S60: 5634 | T60: 5398 | U60: 7670 | V60: 7816
F61: 7leté | J61: 87 | K61: 91 | L61: 91 | M61: 83 | N61: 74 | O61: 43 | P61: 35 | Q61: 20 | R61: 13 | S61: 13 | T61: 8 | U61: 7 | V61: 7
F62: 8leté | J62: 1 | K62: 1 | L62: 1 | M62: 0 | N62: 0 | O62: 0 | P62: 1 | Q62: 0 | R62: 0 | S62: 0 | T62: 0 | U62: 1 | V62: 0
F63: 9leté a starší | J63: 0 | K63: 0 | L63: 0 | M63: 0 | N63: 0 | O63: 0 | P63: 0 | Q63: 0 | R63: 0 | S63: 0 | T63: 0 | U63: 0 | V63: 0
D64: Vzdělávání podle § 42 zákona
E65: Celkem | J65: 49 | K65: 19 | L65: 19 | M65: 14 | N65: 14 | O65: 7 | P65: 8 | Q65: 3 | R65: 13 | S65: 2 | T65: 3 | U65: 8 | V65: 12
E66: v tom | F66: 5leté | J66: 0 | K66: 0 | L66: 0 | M66: 0 | N66: 0 | O66: 0 | P66: 0 | Q66: 0 | R66: 0 | S66: 0 | T66: 0 | U66: 0 | V66: 0
F67: 6leté | J67: 3 | K67: 3 | L67: 3 | M67: 2 | N67: 2 | O67: 1 | P67: 1 | Q67: 0 | R67: 0 | S67: 0 | T67: 0 | U67: 3 | V67: 1
F68: 7leté | J68: 16 | K68: 13 | L68: 13 | M68: 10 | N68: 11 | O68: 6 | P68: 6 | Q68: 3 | R68: 12 | S68: 2 | T68: 3 | U68: 4 | V68: 11
F69: 8leté | J69: 4 | K69: 3 | L69: 3 | M69: 2 | N69: 1 | O69: 0 | P69: 1 | Q69: 0 | R69: 0 | S69: 0 | T69: 0 | U69: 1 | V69: 0
F70: 9leté a starší | J70: 26 | K70: 0 | L70: 0 | M70: 0 | N70: 0 | O70: 0 | P70: 0 | Q70: 0 | R70: 1 | S70: 0 | T70: 0 | U70: 0 | V70: 0
E71: Z toho dívky | J71: 19 | K71: 7 | L71: 7 | M71: 7 | N71: 5 | O71: 3 | P71: 5 | Q71: 1 | R71: 7 | S71: 2 | T71: 0 | U71: 4 | V71: 4
E72: v tom | F72: 5leté | J72: 0 | K72: 0 | L72: 0 | M72: 0 | N72: 0 | O72: 0 | P72: 0 | Q72: 0 | R72: 0 | S72: 0 | T72: 0 | U72: 0 | V72: 0
F73: 6leté | J73: 2 | K73: 1 | L73: 1 | M73: 0 | N73: 0 | O73: 1 | P73: 1 | Q73: 0 | R73: 0 | S73: 0 | T73: 0 | U73: 2 | V73: 0
F74: 7leté | J74: 7 | K74: 6 | L74: 6 | M74: 6 | N74: 5 | O74: 2 | P74: 4 | Q74: 1 | R74: 6 | S74: 2 | T74: 0 | U74: 1 | V74: 4
F75: 8leté | J75: 2 | K75: 0 | L75: 0 | M75: 1 | N75: 0 | O75: 0 | P75: 0 | Q75: 0 | R75: 0 | S75: 0 | T75: 0 | U75: 1 | V75: 0
F76: 9leté a starší | J76: 8 | K76: 0 | L76: 0 | M76: 0 | N76: 0 | O76: 0 | P76: 0 | Q76: 0 | R76: 1 | S76: 0 | T76: 0 | U76: 0 | V76: 0
D77: Neuzavřený zápis 5letých
E78: Celkem | J78: . | K78: . | L78: . | M78: . | N78: . | O78: 655 | P78: 802 | Q78: 911 | R78: 1491 | S78: 1372 | T78: 1361 | U78: 402 | V78: 466
E79: v tom | F79: 5leté | J79: . | K79: . | L79: . | M79: . | N79: . | O79: 655 | P79: 802 | Q79: 911 | R79: 960 | S79: 941 | T79: 883 | U79: 129 | V79: 119
F80: 6leté | O80: 0 | P80: 0 | Q80: 0 | R80: 388 | S80: 259 | T80: 292 | U80: 167 | V80: 236
F81: 7leté | O81: 0 | P81: 0 | Q81: 0 | R81: 139 | S81: 167 | T81: 174 | U81: 97 | V81: 105
F82: 8leté | J82: . | K82: . | L82: . | M82: . | N82: . | O82: 0 | P82: 0 | Q82: 0 | R82: 3 | S82: 5 | T82: 12 | U82: 8 | V82: 6
F83: 9leté a starší | J83: . | K83: . | L83: . | M83: . | N83: . | O83: 0 | P83: 0 | Q83: 0 | R83: 1 | S83: 0 | T83: 0 | U83: 1 | V83: 0
E84: Z toho dívky | J84: . | K84: . | L84: . | M84: . | N84: . | O84: 433 | P84: 536 | Q84: 599 | R84: 880 | S84: 800 | T84: 785 | U84: 198 | V84: 216
E85: v tom | F85: 5leté | J85: . | K85: . | L85: . | M85: . | N85: . | O85: 433 | P85: 536 | Q85: 599 | R85: 647 | S85: 635 | T85: 594 | U85: 96 | V85: 79
F86: 6leté | O86: 0 | P86: 0 | Q86: 0 | R86: 181 | S86: 105 | T86: 126 | U86: 73 | V86: 95
F87: 7leté | O87: 0 | P87: 0 | Q87: 0 | R87: 51 | S87: 60 | T87: 62 | U87: 27 | V87: 38
F88: 8leté | O88: 0 | P88: 0 | Q88: 0 | R88: 1 | S88: 0 | T88: 3 | U88: 1 | V88: 4
F89: 9leté a starší | J89: . | K89: . | L89: . | M89: . | N89: . | O89: 0 | P89: 0 | Q89: 0 | R89: 0 | S89: 0 | T89: 0 | U89: 1 | V89: 0
V90: Zdroj: databáze MŠMT

Sheet B4.21
D4: Tab. B4.21: | H4: ZŠ – žáci plnící školní docházku podle § 38, § 41 a § 42 školského zákona
B5: 0 | D5: ve školním roce 2008/09 až 2018/19 – podle ročníků
J7: 2003/04 | K7: 2004/05 | L7: 2005/06 | M7: 2006/07 | N7: 2007/08 | O7: 2008/09 | P7: 2009/10 | Q7: 2010/11 | R7: 2011/12 | S7: 2012/13 | T7: 2013/14 | U7: 2014/15 | V7: 2015/16 | W7: 2016/17 | X7: 2017/18 | Y7: 2018/19
J11: 1) | K11: 1)
D12: Vzdělávání v zahraničí nebo na zahraniční škole v ČR (školní docházka podle § 38 )
E13: Žáci celkem | J13: . | K13: . | L13: 2202 | M13: 1996 | N13: 2221 | O13: 2744 | P13: 3276 | Q13: 3622 | R13: 3905 | S13: 4866 | T13: 5979 | U13: 6862 | V13: 7430 | W13: 8263 | X13: 8914 | Y13: 9274
E14: v tom | F14: 1. ročník | J14: . | K14: . | L14: 208 | M14: 231 | N14: 250 | O14: 331 | P14: 385 | Q14: 396 | R14: 474 | S14: 553 | T14: 674 | U14: 788 | V14: 836 | W14: 1010 | X14: 929 | Y14: 763
F15: 2. ročník | J15: . | K15: . | L15: 239 | M15: 277 | N15: 284 | O15: 364 | P15: 410 | Q15: 480 | R15: 488 | S15: 648 | T15: 797 | U15: 939 | V15: 923 | W15: 908 | X15: 1047 | Y15: 980
F16: 3. ročník | J16: . | K16: . | L16: 268 | M16: 257 | N16: 298 | O16: 338 | P16: 426 | Q16: 470 | R16: 516 | S16: 602 | T16: 811 | U16: 853 | V16: 1020 | W16: 917 | X16: 900 | Y16: 999
F17: 4. ročník | J17: . | K17: . | L17: 294 | M17: 232 | N17: 267 | O17: 362 | P17: 413 | Q17: 473 | R17: 479 | S17: 634 | T17: 708 | U17: 883 | V17: 894 | W17: 896 | X17: 941 | Y17: 891
F18: 5. ročník | J18: . | K18: . | L18: 281 | M18: 245 | N18: 259 | O18: 320 | P18: 381 | Q18: 469 | R18: 502 | S18: 595 | T18: 751 | U18: 770 | V18: 883 | W18: 785 | X18: 853 | Y18: 906
F19: 6. ročník | J19: . | K19: . | L19: 252 | M19: 209 | N19: 253 | O19: 319 | P19: 396 | Q19: 421 | R19: 425 | S19: 570 | T19: 672 | U19: 822 | V19: 811 | W19: 726 | X19: 740 | Y19: 801
F20: 7. ročník | J20: . | K20: . | L20: 257 | M20: 204 | N20: 236 | O20: 266 | P20: 352 | Q20: 364 | R20: 404 | S20: 513 | T20: 644 | U20: 695 | V20: 733 | W20: 649 | X20: 669 | Y20: 728
F21: 8. ročník | J21: . | K21: . | L21: 230 | M21: 193 | N21: 204 | O21: 232 | P21: 273 | Q21: 318 | R21: 344 | S21: 424 | T21: 528 | U21: 648 | V21: 632 | W21: 566 | X21: 581 | Y21: 643
F22: 9. ročník | J22: . | K22: . | L22: 169 | M22: 147 | N22: 169 | O22: 210 | P22: 240 | Q22: 229 | R22: 273 | S22: 327 | T22: 392 | U22: 460 | V22: 552 | W22: 432 | X22: 476 | Y22: 512
F23: 10. ročník | J23: . | K23: . | L23: 4 | M23: 1 | N23: 1 | O23: 2 | P23: 0 | Q23: 2 | R23: 0 | S23: 0 | T23: 2 | U23: 4 | V23: 0 | W23: 2 | X23: 0 | Y23: 0
F24: nezařazeni do ročníku | L24: . | M24: . | N24: . | O24: . | P24: . | Q24: . | R24: . | S24: . | T24: . | U24: . | V24: 146 | W24: 1372 | X24: 1778 | Y24: 2051
D25: Individuální vzdělávání (školní docházka podle § 41 )
E26: Žáci celkem | J26: . | K26: . | L26: 546 | M26: 360 | N26: 376 | O26: 433 | P26: 473 | Q26: 481 | R26: 553 | S26: 629 | T26: 832 | U26: 1038 | V26: 1339 | W26: 2067 | X26: 2591 | Y26: 3232
E27: v tom | F27: 1. ročník | J27: . | K27: . | L27: 131 | M27: 89 | N27: 96 | O27: 98 | P27: 123 | Q27: 128 | R27: 130 | S27: 169 | T27: 217 | U27: 267 | V27: 390 | W27: 404 | X27: 495 | Y27: 642
F28: 2. ročník | J28: . | K28: . | L28: 111 | M28: 88 | N28: 88 | O28: 91 | P28: 100 | Q28: 108 | R28: 132 | S28: 126 | T28: 215 | U28: 241 | V28: 280 | W28: 401 | X28: 442 | Y28: 531
F29: 3. ročník | J29: . | K29: . | L29: 99 | M29: 76 | N29: 76 | O29: 88 | P29: 88 | Q29: 95 | R29: 121 | S29: 110 | T29: 158 | U29: 230 | V29: 266 | W29: 293 | X29: 416 | Y29: 474
F30: 4. ročník | J30: . | K30: . | L30: 107 | M30: 41 | N30: 60 | O30: 84 | P30: 75 | Q30: 71 | R30: 95 | S30: 129 | T30: 128 | U30: 159 | V30: 239 | W30: 268 | X30: 329 | Y30: 441
F31: 5. ročník | J31: . | K31: . | L31: 75 | M31: 57 | N31: 43 | O31: 64 | P31: 77 | Q31: 73 | R31: 69 | S31: 93 | T31: 112 | U31: 141 | V31: 163 | W31: 252 | X31: 295 | Y31: 378
F32: 6. ročník | J32: . | K32: . | L32: 23 | M32: 9 | N32: 13 | O32: 8 | P32: 10 | Q32: 6 | R32: 6 | S32: 2 | T32: 2 | U32: 0 | V32: 1 | W32: 138 | X32: 190 | Y32: 241
F33: 7. ročník | J33: . | K33: . | L33: x | M33: x | N33: x | O33: x | P33: x | Q33: x | R33: x | S33: x | T33: x | U33: x | V33: x | W33: 114 | X33: 154 | Y33: 202
F34: 8. ročník | J34: . | K34: . | L34: x | M34: x | N34: x | O34: x | P34: x | Q34: x | R34: x | S34: x | T34: x | U34: x | V34: x | W34: 111 | X34: 137 | Y34: 165
F35: 9. ročník | J35: . | K35: . | L35: x | M35: x | N35: x | O35: x | P35: x | Q35: x | R35: x | S35: x | T35: x | U35: x | V35: x | W35: 85 | X35: 130 | Y35: 157
F36: 10. ročník | J36: . | K36: . | L36: x | M36: x | N36: x | O36: x | P36: x | Q36: x | R36: x | S36: x | T36: x | U36: x | V36: x | W36: 1 | X36: 3 | Y36: 1
D37: Vzdělávání žáků s hlubokým mentálním postižením (školní docházka podle § 42 )
E38: Žáci celkem | J38: . | K38: . | L38: 222 | M38: 94 | N38: 136 | O38: 164 | P38: 124 | Q38: 162 | R38: 126 | S38: 126 | T38: 121 | U38: 118 | V38: 110 | W38: 90 | X38: 77 | Y38: 83
E39: v tom | F39: 1. ročník | J39: . | K39: . | L39: 64 | M39: 59 | N39: 26 | O39: 19 | P39: 17 | Q39: 12 | R39: 3 | S39: 4 | T39: 8 | U39: 6 | V39: 5 | W39: 6 | X39: 4 | Y39: 12
F40: 2. ročník | J40: . | K40: . | L40: 39 | M40: 9 | N40: 66 | O40: 41 | P40: 10 | Q40: 7 | R40: 15 | S40: 9 | T40: 3 | U40: 9 | V40: 12 | W40: 4 | X40: 5 | Y40: 8
F41: 3. ročník | J41: . | K41: . | L41: 26 | M41: 5 | N41: 6 | O41: 35 | P41: 28 | Q41: 20 | R41: 10 | S41: 13 | T41: 8 | U41: 4 | V41: 6 | W41: 12 | X41: 4 | Y41: 6
F42: 4. ročník | J42: . | K42: . | L42: 9 | M42: 4 | N42: 12 | O42: 26 | P42: 30 | Q42: 26 | R42: 11 | S42: 12 | T42: 11 | U42: 8 | V42: 6 | W42: 8 | X42: 8 | Y42: 4
F43: 5. ročník | J43: . | K43: . | L43: 16 | M43: 1 | N43: 5 | O43: 10 | P43: 20 | Q43: 34 | R43: 10 | S43: 7 | T43: 12 | U43: 11 | V43: 9 | W43: 5 | X43: 7 | Y43: 7
F44: 6. ročník | J44: . | K44: . | L44: 24 | M44: 2 | N44: 4 | O44: 9 | P44: 10 | Q44: 25 | R44: 22 | S44: 11 | T44: 9 | U44: 13 | V44: 9 | W44: 8 | X44: 3 | Y44: 7
F45: 7. ročník | J45: . | K45: . | L45: 22 | M45: 3 | N45: 2 | O45: 11 | P45: 5 | Q45: 12 | R45: 31 | S45: 19 | T45: 9 | U45: 9 | V45: 13 | W45: 8 | X45: 11 | Y45: 3
F46: 8. ročník | J46: . | K46: . | L46: 16 | M46: 3 | N46: 5 | O46: 6 | P46: 2 | Q46: 8 | R46: 7 | S46: 33 | T46: 23 | U46: 9 | V46: 9 | W46: 10 | X46: 8 | Y46: 9
F47: 9. ročník | J47: . | K47: . | L47: 2 | M47: 7 | N47: 5 | O47: 4 | P47: 1 | Q47: 10 | R47: 15 | S47: 6 | T47: 32 | U47: 20 | V47: 11 | W47: 10 | X47: 9 | Y47: 6
F48: 10. ročník | J48: . | K48: . | L48: 4 | M48: 1 | N48: 5 | O48: 3 | P48: 1 | Q48: 8 | R48: 2 | S48: 12 | T48: 6 | U48: 29 | V48: 30 | W48: 19 | X48: 18 | Y48: 21
Y49: Zdroj: databáze MŠMT

Sheet B4.22
D4: Tab. B4.22: | H4: ZŠ – žáci s individuálními vzdělávacími plány
B5: 0 | D5: ve školním roce 2008/09 až 2018/19 – podle ročníků
J7: 2008/09 | K7: 2009/10 | L7: 2010/11 | M7: 2011/12 | N7: 2012/13 | O7: 2013/14 | P7: 2014/15 | Q7: 2015/16 | R7: 2016/17 | S7: 2017/18 | T7: 2018/19
D12: Individuální vzdělávací plány – žáci se SVP
E13: Žáci celkem | J13: 35340 | K13: 35201 | L13: 35972 | M13: 36608 | N13: 37608 | O13: 39121 | P13: 41439 | Q13: 44172 | R13: 48854 | S13: 45098 | T13: 52503
E14: v tom | F14: 1. ročník | J14: 1100 | K14: 1106 | L14: 1238 | M14: 1304 | N14: 1453 | O14: 1495 | P14: 1686 | Q14: 1976 | R14: 2470 | S14: 2230 | T14: 2404
F15: 2. ročník | J15: 1885 | K15: 2080 | L15: 2086 | M15: 2167 | N15: 2321 | O15: 2466 | P15: 2641 | Q15: 2824 | R15: 3540 | S15: 3412 | T15: 3984
F16: 3. ročník | J16: 4198 | K16: 4095 | L16: 4194 | M16: 4157 | N16: 4190 | O16: 4439 | P16: 4791 | Q16: 5101 | R16: 5673 | S16: 5041 | T16: 6524
F17: 4. ročník | J17: 5316 | K17: 5503 | L17: 5510 | M17: 5506 | N17: 5539 | O17: 5680 | P17: 6081 | Q17: 6562 | R17: 7436 | S17: 6400 | T17: 7995
F18: 5. ročník | J18: 5188 | K18: 5543 | L18: 5785 | M18: 5755 | N18: 5764 | O18: 5912 | P18: 6203 | Q18: 6708 | R18: 7619 | S18: 6977 | T18: 7967
F19: 6. ročník | J19: 4757 | K19: 4705 | L19: 5185 | M19: 5237 | N19: 5198 | O19: 5505 | P19: 5675 | Q19: 6020 | R19: 6495 | S19: 6335 | T19: 7292
F20: 7. ročník | J20: 4696 | K20: 4451 | L20: 4496 | M20: 4923 | N20: 5027 | O20: 5034 | P20: 5326 | Q20: 5611 | R20: 5835 | S20: 5600 | T20: 6852
F21: 8. ročník | J21: 4177 | K21: 3986 | L21: 3867 | M21: 3962 | N21: 4411 | O21: 4509 | P21: 4554 | Q21: 4902 | R21: 5125 | S21: 4630 | T21: 5281
F22: 9. ročník | J22: 3787 | K22: 3476 | L22: 3353 | M22: 3306 | N22: 3376 | O22: 3735 | P22: 3944 | Q22: 3986 | R22: 4202 | S22: 3996 | T22: 3759
F23: 10. ročník | J23: 236 | K23: 256 | L23: 258 | M23: 291 | N23: 329 | O23: 346 | P23: 538 | Q23: 482 | R23: 459 | S23: 477 | T23: 445
D24: Individuální vzdělávací plány – nadaní žáci
E25: Žáci celkem | J25: 883 | K25: 884 | L25: 880 | M25: 858 | N25: 765 | O25: 723 | P25: 789 | Q25: 792 | R25: 826 | S25: 739 | T25: 698
E26: v tom | F26: 1. ročník | J26: 92 | K26: 79 | L26: 106 | M26: 65 | N26: 87 | O26: 55 | P26: 65 | Q26: 58 | R26: 67 | S26: 55 | T26: 44
F27: 2. ročník | J27: 145 | K27: 126 | L27: 144 | M27: 164 | N27: 113 | O27: 133 | P27: 118 | Q27: 106 | R27: 99 | S27: 121 | T27: 89
F28: 3. ročník | J28: 158 | K28: 160 | L28: 181 | M28: 146 | N28: 161 | O28: 129 | P28: 155 | Q28: 145 | R28: 150 | S28: 116 | T28: 157
F29: 4. ročník | J29: 120 | K29: 155 | L29: 164 | M29: 174 | N29: 140 | O29: 166 | P29: 142 | Q29: 180 | R29: 149 | S29: 153 | T29: 132
F30: 5. ročník | J30: 111 | K30: 134 | L30: 131 | M30: 164 | N30: 139 | O30: 130 | P30: 168 | Q30: 149 | R30: 203 | S30: 144 | T30: 131
F31: 6. ročník | J31: 55 | K31: 55 | L31: 28 | M31: 33 | N31: 32 | O31: 30 | P31: 44 | Q31: 33 | R31: 49 | S31: 50 | T31: 40
F32: 7. ročník | J32: 75 | K32: 57 | L32: 47 | M32: 40 | N32: 30 | O32: 22 | P32: 32 | Q32: 46 | R32: 37 | S32: 41 | T32: 48
F33: 8. ročník | J33: 73 | K33: 67 | L33: 43 | M33: 38 | N33: 31 | O33: 31 | P33: 26 | Q33: 45 | R33: 39 | S33: 32 | T33: 29
F34: 9. ročník | J34: 54 | K34: 51 | L34: 34 | M34: 34 | N34: 32 | O34: 27 | P34: 39 | Q34: 30 | R34: 33 | S34: 27 | T34: 28
F35: 10. ročník | J35: 0 | K35: 0 | L35: 2 | M35: 0 | N35: 0 | O35: 0 | P35: 0 | Q35: 0 | R35: 0 | S35: 0 | T35: 0
T36: Zdroj: databáze MŠMT

Sheet GB1
D4: Obr. B1: | H4: Povinná školní docházka – počty žáků na pozadí odpovídající věkové populace
B5: 0 | D5: 6–14letých ve školním roce 2008/09 až 2018/19
K10: 2005/06 | L10: 2007/08 | M10: 2008/09 | N10: 2009/10 | O10: 2010/11 | P10: 2011/12 | Q10: 2012/13 | R10: 2013/14 | S10: 2014/15 | T10: 2015/16 | U10: 2016/17 | V10: 2017/18 | W10: 2018/19
J11: 1. stupeň ZŠ | K11: 473269 | L11: 458046 | M11: 458198 | N11: 460754 | O11: 465380 | P11: 474327 | Q11: 488106 | R11: 505983 | S11: 529604 | T11: 551428 | U11: 568966 | V11: 575699 | W11: 573442
J12: 2. stupeň ZŠ | K12: 443306 | L12: 386817 | M12: 357817 | N12: 333705 | O12: 324106 | P12: 320315 | Q12: 319844 | R12: 321671 | S12: 324533 | T12: 328823 | U12: 337222 | V12: 350409 | W12: 367486
J13: Žáci SŠ – ročníky odpovídající 6.–9. roč. ZŠ | K13: 43459 | L13: 43137 | M13: 42612 | N13: 41913 | O13: 41422 | P13: 41154 | Q13: 40805 | R13: 40670 | S13: 40678 | T13: 40803 | U13: 40980 | V13: 41609 | W13: 41950
J14: Polulace 6–14letých | K14: 932667 | L14: 867082 | M14: 842030 | N14: 831034 | O14: 834721 | P14: 841785 | Q14: 860211 | R14: 888233 | S14: 922461 | T14: 953677 | U14: 982626 | V14: 999745 | W14: 1016541
W37: Zdroj: databáze MŠMT

Sheet GB2
D4: Obr. B2: | H4: ZŠ – struktura škol ve školním roce 2008/09 až 2018/19 – podle počtu žáků
B5: 0
K10: 2005/06 | L10: 2007/08 | M10: 2008/09 | N10: 2009/10 | O10: 2010/11 | P10: 2011/12 | Q10: 2012/13 | R10: 2013/14 | S10: 2014/15 | T10: 2015/16 | U10: 2016/17 | V10: 2017/18 | W10: 2018/19
J11: 0–100 | K11: 0.3810907465 | L11: 0.3858002407 | M11: 0.4326155335 | N11: 0.4368484848 | O11: 0.4698035411 | P11: 0.4388226709 | Q11: 0.4434676435 | R11: 0.4354090354 | S11: 0.4301022893 | T11: 0.4264884569 | U11: 0.4264884569 | V11: 0.423345367 | W11: 0.4240172579
J12: 101–250 | K12: 0.2270898525 | L12: 0.227677497 | M12: 0.2395354464 | N12: 0.2419393939 | O12: 0.2396313364 | P12: 0.2434930674 | Q12: 0.2378510379 | R12: 0.2395604396 | S12: 0.2406234778 | T12: 0.2381530984 | U12: 0.2381530984 | V12: 0.2281588448 | W12: 0.223873442
J13: 251–500 | K13: 0.260393384 | L13: 0.2671480144 | M13: 0.2402613114 | N13: 0.2448484848 | O13: 0.2287169537 | P13: 0.2410605692 | Q13: 0.2356532357 | R13: 0.2288156288 | S13: 0.2250365319 | T13: 0.2201701094 | U13: 0.2201701094 | V13: 0.2166064982 | W13: 0.2140460211
J14: 501–750 | K14: 0.1166741171 | L14: 0.1090252708 | M14: 0.08226469877 | N14: 0.07151515152 | O14: 0.05893766675 | P14: 0.07151544636 | Q14: 0.07692307692 | R14: 0.08742368742 | S14: 0.09230394545 | T14: 0.1001215067 | U14: 0.1001215067 | V14: 0.1102286402 | W14: 0.1148130393
J15: nad 750 | K15: 0.01475189987 | L15: 0.01034897714 | M15: 0.00532300992 | N15: 0.004848484848 | O15: 0.002910502062 | P15: 0.005108246169 | Q15: 0.006105006105 | R15: 0.008791208791 | S15: 0.01193375548 | T15: 0.01506682868 | U15: 0.01506682868 | V15: 0.02166064982 | W15: 0.02325023969
W35: Zdroj: databáze MŠMT

Sheet GB3
D4: Obr. B3: | G4: ZŠ – školy, třídy, žáci, učitelé (přepočtené počty) – poměrové ukazatele v letech 2008/09 až 2018/19
B5: 0
J10: 2005/06 | K10: 2007/08 | L10: 2008/09 | M10: 2009/10 | N10: 2010/11 | O10: 2011/12 | P10: 2012/13 | Q10: 2013/14 | R10: 2014/15 | S10: 2015/16 | T10: 2016/17 | U10: 2017/18 | V10: 2018/19
I11: průměrný počet žáků na školu – celkem | J11: 204.8670094 | K11: 203.3364621 | L11: 197.4389064 | M11: 192.5961212 | N11: 191.4833859 | O11: 193.2965215 | P11: 197.3015873 | Q11: 202.1133089 | R11: 208.0216756 | S11: 213.9127582 | T11: 218.8859903 | U11: 222.890012 | V11: 225.5340364
I12: průměrný počet žáků na školu – 1. stupeň | J12: 106.7122886 | K12: 110.8533398 | L12: 111.5379747 | M12: 112.4338702 | N12: 113.6181641 | O12: 116.0007337 | P12: 119.8100147 | Q12: 124.1980854 | R12: 129.646022 | S12: 134.5602733 | T12: 137.9311515 | U12: 139.0913264 | V12: 137.979307
I13: průměrný počet žáků na školu – 2. stupeň | J13: 145.250983 | K13: 139.3935135 | L13: 129.6438406 | M13: 121.1270417 | N13: 117.9425036 | O13: 116.9886779 | P13: 117.6762325 | Q13: 118.9171904 | R13: 119.8865903 | S13: 121.3369004 | T13: 124.0242736 | U13: 128.4019787 | V13: 133.8259286
J15: 2005/06 | K15: 2007/08 | L15: 2008/09 | M15: 2009/10 | N15: 2010/11 | O15: 2011/12 | P15: 2012/13 | Q15: 2013/14 | R15: 2014/15 | S15: 2015/16 | T15: 2016/17 | U15: 2017/18 | V15: 2018/19
I16: průměrný počet žáků na třídu – celkem | J16: 20.02610938 | K16: 19.45209863 | L16: 19.20125653 | M16: 18.9422999 | N16: 18.92344199 | O16: 18.87286546 | P16: 19.35719591 | Q16: 19.55057401 | R16: 19.74472364 | S16: 19.96441451 | T16: 20.08573455 | U16: 20.12272125 | V16: 20.11647496
I17: průměrný počet žáků na třídu – 1. stupeň | J17: 19.01442346 | K17: 18.83103108 | L17: 18.83650565 | M17: 18.79017985 | N17: 18.83900741 | O17: 18.765162 | P17: 19.37928296 | Q17: 19.63914765 | R17: 19.86288115 | S17: 20.07748043 | T17: 20.16037134 | U17: 20.11245808 | V17: 19.93956674
I18: průměrný počet žáků na třídu – 2. stupeň | J18: 21.23214713 | K18: 20.24266053 | L18: 19.6894844 | M18: 19.15642939 | N18: 19.04601281 | O18: 19.03464464 | P18: 19.32358627 | Q18: 19.41285456 | R18: 19.55489275 | S18: 19.77763744 | T18: 19.96105126 | U18: 20.13960572 | V18: 20.39888981
J20: 2005/06 | K20: 2007/08 | L20: 2008/09 | M20: 2009/10 | N20: 2010/11 | O20: 2011/12 | P20: 2012/13 | Q20: 2013/14 | R20: 2014/15 | S20: 2015/16 | T20: 2016/17 | U20: 2017/18 | V20: 2018/19
I21: průměrný počet učitelů na třídu – celkem | J21: 1.379920907 | K21: 1.403845003 | L21: 1.3998847 | M21: 1.39284471 | N21: 1.390771812 | O21: 1.373110082 | P21: 1.381655047 | Q21: 1.376413757 | R21: 1.36685314 | S21: 1.365827493 | T21: 1.366142832 | U21: 1.368985073 | V21: 1.37566383
I22: průměrný počet učitelů na třídu – 1. stupeň | J22: 1.108316593 | K22: 1.131392863 | L22: 1.131724563 | M22: 1.126989111 | N22: 1.125207465 | O22: 1.112260157 | P22: 1.126569262 | Q22: 1.126575842 | R22: 1.120965383 | S22: 1.12248316 | T22: 1.127769116 | U22: 1.13374441 | V22: 1.141545255
I23: průměrný počet učitelů na třídu – 2. stupeň | J23: 1.703702285 | K23: 1.750651525 | L23: 1.758823529 | M23: 1.767072331 | N23: 1.776282541 | O23: 1.764927502 | P23: 1.769816336 | Q23: 1.764876282 | R23: 1.761894432 | S23: 1.76781547 | T23: 1.764354209 | U23: 1.755991724 | V23: 1.749408826
J25: 2005/06 | K25: 2007/08 | L25: 2008/09 | M25: 2009/10 | N25: 2010/11 | O25: 2011/12 | P25: 2012/13 | Q25: 2013/14 | R25: 2014/15 | S25: 2015/16 | T25: 2016/17 | U25: 2017/18 | V25: 2018/19
I26: průměrný počet žáků na učitele – celkem | J26: 14.51250523 | K26: 13.83451887 | L26: 13.71631287 | M26: 13.59972132 | N26: 13.60643193 | O26: 13.74461211 | P26: 14.01015105 | Q26: 14.20399491 | R26: 14.44538777 | S26: 14.61708349 | T26: 14.70251432 | U26: 14.69900706 | V26: 14.62310379
I27: průměrný počet žáků na učitele – 1. stupeň | J27: 17.15612992 | K27: 16.64411337 | L27: 16.64407248 | M27: 16.67290274 | N27: 16.74269679 | O27: 16.87119859 | P27: 17.20203419 | Q27: 17.43260144 | R27: 17.71944206 | S27: 17.88666515 | T27: 17.87632863 | U27: 17.73985203 | V27: 17.46717149
I28: průměrný počet žáků na učitele – 2. stupeň | J28: 12.46235761 | K28: 11.5629297 | L28: 11.19469013 | M28: 10.84077265 | N28: 10.7224005 | O28: 10.78494421 | P28: 10.91841333 | Q28: 10.99955546 | R28: 11.09878798 | S28: 11.18761419 | T28: 11.31351696 | U28: 11.46907782 | V28: 11.66044752
F31: Poměrové ukazatele | L31: 2008/09 | M31: 2009/10 | N31: 2010/11 | O31: 2011/12 | P31: 2012/13 | Q31: 2013/14 | R31: 2014/15 | S31: 2015/16 | T31: 2016/17 | U31: 2017/18 | V31: 2018/19
V60: Zdroj: databáze MŠMT

Sheet GB4
D4: Obr. B4: | H4: ZŠ – všichni zřizovatelé – průměrné přepočtené počty zaměstnanců a učitelů, průměrné
B5: 0 | D5: měsíční nominální a reálné mzdy v letech 2008 až 2018
J10: zaměstnanci
K11: 2003 | L11: 2004 | M11: 2005 | N11: 2007 | O11: 2008 | P11: 2009 | Q11: 2010 | R11: 2011 | S11: 2012 | T11: 2013 | U11: 2014 | V11: 2015 | W11: 2016 | X11: 2017 | Y11: 2018
J12: nominální mzdy | K12: 16628.98072 | L12: 18046.91632 | M12: 19180.9129 | N12: 21370 | O12: ='B4.15'!O14 -> 22104.96608 | P12: ='B4.15'!P14 -> 23658.13023 | Q12: ='B4.15'!Q14 -> 22925.20907 | R12: ='B4.15'!R14 -> 23883.29677 | S12: ='B4.15'!S14 -> 24160.72594 | T12: ='B4.15'!T14 -> 24398.54354 | U12: ='B4.15'!U14 -> 24856.44268 | V12: ='B4.15'!V14 -> 25513.41198 | W12: ='B4.15'!W14 -> 26841.64015 | X12: ='B4.15'!X14 -> 28741.28101 | Y12: ='B4.15'!Y14 -> 31661.8
J13: reálné mzdy | K13: 17412.54526 | L13: 18396.44885 | M13: 19180.9129 | N13: 25052.75498 | O13: ='B4.15'!O17 -> 24371.51718 | P13: ='B4.15'!P17 -> 25799.48771 | Q13: ='B4.15'!Q17 -> 24650.76244 | R13: ='B4.15'!R17 -> 25193.35103 | S13: ='B4.15'!S17 -> 24678.98461 | T13: ='B4.15'!T17 -> 24570.5373 | U13: ='B4.15'!U17 -> 24931.23639 | V13: ='B4.15'!V17 -> 25513.41198 | W13: ='B4.15'!W17 -> 26655.05477 | X13: ='B4.15'!X17 -> 27877.09118 | Y13: ='B4.15'!Y17 -> 30068.18613
J14: počty | K14: 87.259594 | L14: 85.207249 | M14: 83.512342 | N14: 82.023446 | O14: ='B4.14'!O13/1000 -> 80.586011 | P14: ='B4.14'!P13/1000 -> 79.390132 | Q14: ='B4.14'!Q13/1000 -> 79.060596 | R14: ='B4.14'!R13/1000 -> 78.44915 | S14: ='B4.14'!S13/1000 -> 78.210537 | T14: ='B4.14'!T13/1000 -> 78.657622 | U14: ='B4.14'!U13/1000 -> 80.204172 | V14: ='B4.14'!V13/1000 -> 82.478382 | W14: ='B4.14'!W13/1000 -> 85.045596 | X14: ='B4.14'!X13/1000 -> 89.941204 | Y14: ='B4.14'!Y13/1000 -> 94.5336493
J17: učitelé
K18: 2003 | L18: 2004 | M18: 2005 | N18: 2007 | O18: 2008 | P18: 2009 | Q18: 2010 | R18: 2011 | S18: 2012 | T18: 2013 | U18: 2014 | V18: 2015 | W18: 2016 | X18: 2017 | Y18: 2018
J19: nominální mzdy | K19: 18645.8851 | L19: 20388.87855 | M19: 21797.41802 | N19: 24327 | O19: ='B4.15'!O15 -> 25209.41617 | P19: ='B4.15'!P15 -> 26807.35545 | Q19: ='B4.15'!Q15 -> 25802.22227 | R19: ='B4.15'!R15 -> 26994.61002 | S19: ='B4.15'!S15 -> 27331.91201 | T19: ='B4.15'!T15 -> 27622.98414 | U19: ='B4.15'!U15 -> 28151.47136 | V19: ='B4.15'!V15 -> 29004.56607 | W19: ='B4.15'!W15 -> 30670.78189 | X19: ='B4.15'!X15 -> 33039.68345 | Y19: ='B4.15'!Y15 -> 36622.6
J20: reálné mzdy | K20: 19524.48702 | L20: 20783.77019 | M20: 21797.41802 | N20: 28519.34349 | O20: ='B4.15'!O18 -> 27794.28465 | P20: ='B4.15'!P18 -> 29233.75731 | Q20: ='B4.15'!Q18 -> 27744.32502 | R20: ='B4.15'!R18 -> 28475.32702 | S20: ='B4.15'!S18 -> 27918.19409 | T20: ='B4.15'!T18 -> 27817.7081 | U20: ='B4.15'!U18 -> 28236.1799 | V20: ='B4.15'!V18 -> 29004.56607 | W20: ='B4.15'!W18 -> 30457.57884 | X20: ='B4.15'!X18 -> 32046.24971 | Y20: ='B4.15'!Y18 -> 34779.29725
J21: počty | K21: 66.965167 | L21: 65.304272 | M21: 63.782147 | N21: 61.933266 | O21: ='B4.14'!O14/1000 -> 60.403918 | P21: ='B4.14'!P14/1000 -> 59.183683 | Q21: ='B4.14'!Q14/1000 -> 58.762003 | R21: ='B4.14'!R14/1000 -> 58.583761 | S21: ='B4.14'!S14/1000 -> 58.502984 | T21: ='B4.14'!T14/1000 -> 58.63732 | U21: ='B4.14'!U14/1000 -> 59.3699 | V21: ='B4.14'!V14/1000 -> 60.533178 | W21: ='B4.14'!W14/1000 -> 61.592398 | X21: ='B4.14'!X14/1000 -> 63.116945 | Y21: ='B4.14'!Y14/1000 -> 64.6312078
D39: Komenráře: | Y39: Zdroj: databáze MŠMT, ČSÚ
E40: Průměrná reálná měsíční mzda ve stálých cenách roku 2015.
D41: 1) | E41: Učitelé včetně vedoucích zaměstnanců.
